Workbook

Sheet HVAC-Tool
C3: Heat Pump Tool
C5: ="Version: " & INDEX(CurrentVersion_List,MATCH("a",CurrentVersionSelected_List,0)) -> Version: 4012025.1 | H5: Application Date
H6: Invoice/Install Date | N6: =IF(InstallDate="","",INDEX(TariffTable,MATCH(InstallState,InstallStates_List,0),3)) ->  | O6: =TODAY() -> 2026-02-09 | P6: =IF(InstallDate="","Please enter project date",IF(ISNUMBER(SEARCH("applicable to",N12)),"Please contact Coordinator","")) -> Please enter project date
C7: Project Information | R7: Instructions
C8: Project Name/Type | P8: User Input Fields | S8: 1 - Complete all yellow fields, and the "Equipment Info" tab | BZ8: TRUE
C9: Installation Address | P9: Completed Fields | S9: 2 - Save a copy of this HVAC tool | BZ9: FALSE
C10: City/State/Zip | H10: UT | P10: Calculated Fields | BZ10: TRUE
C11: Contractor/Dealer Name | S11: 4 - Follow the instructions on the incentive application
C12: Participant Information | N12: =IF(AND(InstallState="",InstallDate="", BusinessType=""),"",IF(InstallState="","Please select the project state to continue.",IF(BusinessType="","Please select the business type to continue.",IF(InstallDate="","Please enter the project invoice/install date to continue.","Calculator results are in accordance with "&INDEX(StateName_List,MATCH(InstallState,StateAbrev_List,0))&" Tariff "&IF(InstallState="CA","A-140","140"))&", effective "&TEXT(INDEX(TariffTable,MATCH(InstallState,InstallStates_List,0),3),"mm/dd/yyyy")&", and are estimates only."))&IF(InstallState="","",IF(InstallDate="","",IF(InstallDate<INDEX(TariffTable,MATCH(InstallState,InstallStates_List,0),3)," Please contact your project Coordinator for an HVAC calculator tool applicable to your project."," Actual energy savings and incentives paid will be determined based on the results of a post-installation inspection and review of project invoices."&" Calculator results are only valid for equipment purchased and installed, on or after the tariff effective date.")))) -> Please select the business type to continue.
C13: Business Name
C14: Address
C15: City/State/Zip | H15: UT
C16: Contact Person/Title
C17: Phone/Email | N17: Incentive Payee Information
C18: Business Type | N18: Select where the incentive will be paid in the drop down selector >> | V18: Participant Business Address
C19: Participant is >> | N19: Business Name
C20: Account Information (as shown on bill) | H20: =IF(RateSchedule="","",RateScheduleEffectiveDateNote) ->  | N20: Contact Name/Phone
C21: Account Name | N21: Address
C22: Account/Meter/Rate | N22: City/State/Zip

Sheet Equipment Info
C1: Heat Pump Tool
L2: hide | M2: hide | N2: hide | O2: hide | P2: hide
C3: Equipment Information
R4: =SUM(Table3[Incentive]) -> 0
Q5: Calculated Fields
C6: Line | D6: Baseline Equipment | E6: Proposed Equipment | F6: Manufacturer | G6: Model Number | H6: AHRI Reference Number | I6: Capacity (BTU/hr) | J6: Quantity | K6: Equipment Costs | L6: Measure Version ID | M6: Equipment ID | N6: Incentive Per Unit | O6: kWh Savings Per Unit | P6: kW Savings Per Unit | Q6: Capacity (Tons) | R6: Incentive | S6: kWh Savings (kWh/yr) | T6: kW Savings | U6: Upgrade Type
C7: =ROW(Table3[[#This Row],[Baseline Equipment]])-6 -> 1 | L7: =IFERROR(IF(InstallDate="","", INDEX(Measures[Measure Version ID],MATCH(1, (Table3[[#This Row],[Upgrade Type]]=Measures[Upgrade Type])* (IFERROR(Table3[[#This Row],[Capacity (BTU/hr)]]/1000>Measures[Capacity Low (kBTU/hr)],1))* (IFERROR(Table3[[#This Row],[Capacity (BTU/hr)]]/1000<=Measures[Capacity High (kBTU/hr)],1))* (InstallDate>=Measures[Effective Start Date])* (InstallDate<=IF(Measures[Effective End Date]=0,50000,Measures[Effective End Date])), 0)+0)),"") ->  | M7: =IFERROR(IF(Table3[[#This Row],[Proposed Equipment]]="","", INDEX(Equipment[ID],MATCH(1, (BusinessType=Equipment[Facility Type])* (Table3[[#This Row],[Baseline Equipment]]=Equipment[Baseline Equipment])* (Table3[[#This Row],[Proposed Equipment]]=Equipment[Proposed Equipment])* (IFERROR(Table3[[#This Row],[Capacity (BTU/hr)]]/1000>Equipment[Size Low],1))* (IFERROR(Table3[[#This Row],[Capacity (BTU/hr)]]/1000<=Equipment[Size High],1)), 0)+0)),"") ->  | N7: =IF(Table3[[#This Row],[Measure Version ID]]="","", INDEX(Measures[Customer Incentive ($/unit)],MATCH(Table3[[#This Row],[Measure Version ID]],Measures[Measure Version ID],0))) ->  | O7: =IF(Table3[[#This Row],[Equipment ID]]="","", INDEX(Equipment[kWh Savings Per Unit],MATCH(Table3[[#This Row],[Equipment ID]],Equipment[ID],0))) ->  | P7: =IF(Table3[[#This Row],[Equipment ID]]="","", INDEX(Equipment[kW Savings Per Unit],MATCH(Table3[[#This Row],[Equipment ID]],Equipment[ID],0))) ->  | Q7: =IF(Table3[[#This Row],[Capacity (BTU/hr)]]="","",ROUND(Table3[[#This Row],[Capacity (BTU/hr)]]/12000,1)) ->  | R7: =IF(Table3[[#This Row],[Measure Version ID]]="","",Table3[[#This Row],[Incentive Per Unit]]*Table3[[#This Row],[Capacity (Tons)]]*Table3[[#This Row],[Quantity]]) ->  | S7: =IF(OR(Table3[[#This Row],[Equipment ID]]="",Table3[[#This Row],[Capacity (BTU/hr)]]="",Table3[[#This Row],[Quantity]]=""),"",Table3[[#This Row],[kWh Savings Per Unit]]*Table3[[#This Row],[Capacity (Tons)]]*Table3[[#This Row],[Quantity]]) ->  | T7: =IF(OR(Table3[[#This Row],[Equipment ID]]="",Table3[[#This Row],[Capacity (BTU/hr)]]="",Table3[[#This Row],[Quantity]]=""),"",Table3[[#This Row],[kW Savings Per Unit]]*Table3[[#This Row],[Capacity (Tons)]]*Table3[[#This Row],[Quantity]]) ->  | U7: =IF(Table3[[#This Row],[Baseline Equipment]]="","",INDEX(BaselineEquipment[Upgrade Type],MATCH(Table3[[#This Row],[Baseline Equipment]],BaselineEquipment[Baseline Equipment],0))) -> 
C8: =ROW(Table3[[#This Row],[Baseline Equipment]])-6 -> 2 | L8: =IFERROR(IF(InstallDate="","", INDEX(Measures[Measure Version ID],MATCH(1, (Table3[[#This Row],[Upgrade Type]]=Measures[Upgrade Type])* (IFERROR(Table3[[#This Row],[Capacity (BTU/hr)]]/1000>Measures[Capacity Low (kBTU/hr)],1))* (IFERROR(Table3[[#This Row],[Capacity (BTU/hr)]]/1000<=Measures[Capacity High (kBTU/hr)],1))* (InstallDate>=Measures[Effective Start Date])* (InstallDate<=IF(Measures[Effective End Date]=0,50000,Measures[Effective End Date])), 0)+0)),"") ->  | M8: =IFERROR(IF(Table3[[#This Row],[Proposed Equipment]]="","", INDEX(Equipment[ID],MATCH(1, (BusinessType=Equipment[Facility Type])* (Table3[[#This Row],[Baseline Equipment]]=Equipment[Baseline Equipment])* (Table3[[#This Row],[Proposed Equipment]]=Equipment[Proposed Equipment])* (IFERROR(Table3[[#This Row],[Capacity (BTU/hr)]]/1000>Equipment[Size Low],1))* (IFERROR(Table3[[#This Row],[Capacity (BTU/hr)]]/1000<=Equipment[Size High],1)), 0)+0)),"") ->  | N8: =IF(Table3[[#This Row],[Measure Version ID]]="","", INDEX(Measures[Customer Incentive ($/unit)],MATCH(Table3[[#This Row],[Measure Version ID]],Measures[Measure Version ID],0))) ->  | O8: =IF(Table3[[#This Row],[Equipment ID]]="","", INDEX(Equipment[kWh Savings Per Unit],MATCH(Table3[[#This Row],[Equipment ID]],Equipment[ID],0))) ->  | P8: =IF(Table3[[#This Row],[Equipment ID]]="","", INDEX(Equipment[kW Savings Per Unit],MATCH(Table3[[#This Row],[Equipment ID]],Equipment[ID],0))) ->  | Q8: =IF(Table3[[#This Row],[Capacity (BTU/hr)]]="","",ROUND(Table3[[#This Row],[Capacity (BTU/hr)]]/12000,1)) ->  | R8: =IF(Table3[[#This Row],[Measure Version ID]]="","",Table3[[#This Row],[Incentive Per Unit]]*Table3[[#This Row],[Capacity (Tons)]]*Table3[[#This Row],[Quantity]]) ->  | S8: =IF(OR(Table3[[#This Row],[Equipment ID]]="",Table3[[#This Row],[Capacity (BTU/hr)]]="",Table3[[#This Row],[Quantity]]=""),"",Table3[[#This Row],[kWh Savings Per Unit]]*Table3[[#This Row],[Capacity (Tons)]]*Table3[[#This Row],[Quantity]]) ->  | T8: =IF(OR(Table3[[#This Row],[Equipment ID]]="",Table3[[#This Row],[Capacity (BTU/hr)]]="",Table3[[#This Row],[Quantity]]=""),"",Table3[[#This Row],[kW Savings Per Unit]]*Table3[[#This Row],[Capacity (Tons)]]*Table3[[#This Row],[Quantity]]) ->  | U8: =IF(Table3[[#This Row],[Baseline Equipment]]="","",INDEX(BaselineEquipment[Upgrade Type],MATCH(Table3[[#This Row],[Baseline Equipment]],BaselineEquipment[Baseline Equipment],0))) -> 
C9: =ROW(Table3[[#This Row],[Baseline Equipment]])-6 -> 3 | L9: =IFERROR(IF(InstallDate="","", INDEX(Measures[Measure Version ID],MATCH(1, (Table3[[#This Row],[Upgrade Type]]=Measures[Upgrade Type])* (IFERROR(Table3[[#This Row],[Capacity (BTU/hr)]]/1000>Measures[Capacity Low (kBTU/hr)],1))* (IFERROR(Table3[[#This Row],[Capacity (BTU/hr)]]/1000<=Measures[Capacity High (kBTU/hr)],1))* (InstallDate>=Measures[Effective Start Date])* (InstallDate<=IF(Measures[Effective End Date]=0,50000,Measures[Effective End Date])), 0)+0)),"") ->  | M9: =IFERROR(IF(Table3[[#This Row],[Proposed Equipment]]="","", INDEX(Equipment[ID],MATCH(1, (BusinessType=Equipment[Facility Type])* (Table3[[#This Row],[Baseline Equipment]]=Equipment[Baseline Equipment])* (Table3[[#This Row],[Proposed Equipment]]=Equipment[Proposed Equipment])* (IFERROR(Table3[[#This Row],[Capacity (BTU/hr)]]/1000>Equipment[Size Low],1))* (IFERROR(Table3[[#This Row],[Capacity (BTU/hr)]]/1000<=Equipment[Size High],1)), 0)+0)),"") ->  | N9: =IF(Table3[[#This Row],[Measure Version ID]]="","", INDEX(Measures[Customer Incentive ($/unit)],MATCH(Table3[[#This Row],[Measure Version ID]],Measures[Measure Version ID],0))) ->  | O9: =IF(Table3[[#This Row],[Equipment ID]]="","", INDEX(Equipment[kWh Savings Per Unit],MATCH(Table3[[#This Row],[Equipment ID]],Equipment[ID],0))) ->  | P9: =IF(Table3[[#This Row],[Equipment ID]]="","", INDEX(Equipment[kW Savings Per Unit],MATCH(Table3[[#This Row],[Equipment ID]],Equipment[ID],0))) ->  | Q9: =IF(Table3[[#This Row],[Capacity (BTU/hr)]]="","",ROUND(Table3[[#This Row],[Capacity (BTU/hr)]]/12000,1)) ->  | R9: =IF(Table3[[#This Row],[Measure Version ID]]="","",Table3[[#This Row],[Incentive Per Unit]]*Table3[[#This Row],[Capacity (Tons)]]*Table3[[#This Row],[Quantity]]) ->  | S9: =IF(OR(Table3[[#This Row],[Equipment ID]]="",Table3[[#This Row],[Capacity (BTU/hr)]]="",Table3[[#This Row],[Quantity]]=""),"",Table3[[#This Row],[kWh Savings Per Unit]]*Table3[[#This Row],[Capacity (Tons)]]*Table3[[#This Row],[Quantity]]) ->  | T9: =IF(OR(Table3[[#This Row],[Equipment ID]]="",Table3[[#This Row],[Capacity (BTU/hr)]]="",Table3[[#This Row],[Quantity]]=""),"",Table3[[#This Row],[kW Savings Per Unit]]*Table3[[#This Row],[Capacity (Tons)]]*Table3[[#This Row],[Quantity]]) ->  | U9: =IF(Table3[[#This Row],[Baseline Equipment]]="","",INDEX(BaselineEquipment[Upgrade Type],MATCH(Table3[[#This Row],[Baseline Equipment]],BaselineEquipment[Baseline Equipment],0))) -> 
C10: =ROW(Table3[[#This Row],[Baseline Equipment]])-6 -> 4 | L10: =IFERROR(IF(InstallDate="","", INDEX(Measures[Measure Version ID],MATCH(1, (Table3[[#This Row],[Upgrade Type]]=Measures[Upgrade Type])* (IFERROR(Table3[[#This Row],[Capacity (BTU/hr)]]/1000>Measures[Capacity Low (kBTU/hr)],1))* (IFERROR(Table3[[#This Row],[Capacity (BTU/hr)]]/1000<=Measures[Capacity High (kBTU/hr)],1))* (InstallDate>=Measures[Effective Start Date])* (InstallDate<=IF(Measures[Effective End Date]=0,50000,Measures[Effective End Date])), 0)+0)),"") ->  | M10: =IFERROR(IF(Table3[[#This Row],[Proposed Equipment]]="","", INDEX(Equipment[ID],MATCH(1, (BusinessType=Equipment[Facility Type])* (Table3[[#This Row],[Baseline Equipment]]=Equipment[Baseline Equipment])* (Table3[[#This Row],[Proposed Equipment]]=Equipment[Proposed Equipment])* (IFERROR(Table3[[#This Row],[Capacity (BTU/hr)]]/1000>Equipment[Size Low],1))* (IFERROR(Table3[[#This Row],[Capacity (BTU/hr)]]/1000<=Equipment[Size High],1)), 0)+0)),"") ->  | N10: =IF(Table3[[#This Row],[Measure Version ID]]="","", INDEX(Measures[Customer Incentive ($/unit)],MATCH(Table3[[#This Row],[Measure Version ID]],Measures[Measure Version ID],0))) ->  | O10: =IF(Table3[[#This Row],[Equipment ID]]="","", INDEX(Equipment[kWh Savings Per Unit],MATCH(Table3[[#This Row],[Equipment ID]],Equipment[ID],0))) ->  | P10: =IF(Table3[[#This Row],[Equipment ID]]="","", INDEX(Equipment[kW Savings Per Unit],MATCH(Table3[[#This Row],[Equipment ID]],Equipment[ID],0))) ->  | Q10: =IF(Table3[[#This Row],[Capacity (BTU/hr)]]="","",ROUND(Table3[[#This Row],[Capacity (BTU/hr)]]/12000,1)) ->  | R10: =IF(Table3[[#This Row],[Measure Version ID]]="","",Table3[[#This Row],[Incentive Per Unit]]*Table3[[#This Row],[Capacity (Tons)]]*Table3[[#This Row],[Quantity]]) ->  | S10: =IF(OR(Table3[[#This Row],[Equipment ID]]="",Table3[[#This Row],[Capacity (BTU/hr)]]="",Table3[[#This Row],[Quantity]]=""),"",Table3[[#This Row],[kWh Savings Per Unit]]*Table3[[#This Row],[Capacity (Tons)]]*Table3[[#This Row],[Quantity]]) ->  | T10: =IF(OR(Table3[[#This Row],[Equipment ID]]="",Table3[[#This Row],[Capacity (BTU/hr)]]="",Table3[[#This Row],[Quantity]]=""),"",Table3[[#This Row],[kW Savings Per Unit]]*Table3[[#This Row],[Capacity (Tons)]]*Table3[[#This Row],[Quantity]]) ->  | U10: =IF(Table3[[#This Row],[Baseline Equipment]]="","",INDEX(BaselineEquipment[Upgrade Type],MATCH(Table3[[#This Row],[Baseline Equipment]],BaselineEquipment[Baseline Equipment],0))) -> 
C11: =ROW(Table3[[#This Row],[Baseline Equipment]])-6 -> 5 | L11: =IFERROR(IF(InstallDate="","", INDEX(Measures[Measure Version ID],MATCH(1, (Table3[[#This Row],[Upgrade Type]]=Measures[Upgrade Type])* (IFERROR(Table3[[#This Row],[Capacity (BTU/hr)]]/1000>Measures[Capacity Low (kBTU/hr)],1))* (IFERROR(Table3[[#This Row],[Capacity (BTU/hr)]]/1000<=Measures[Capacity High (kBTU/hr)],1))* (InstallDate>=Measures[Effective Start Date])* (InstallDate<=IF(Measures[Effective End Date]=0,50000,Measures[Effective End Date])), 0)+0)),"") ->  | M11: =IFERROR(IF(Table3[[#This Row],[Proposed Equipment]]="","", INDEX(Equipment[ID],MATCH(1, (BusinessType=Equipment[Facility Type])* (Table3[[#This Row],[Baseline Equipment]]=Equipment[Baseline Equipment])* (Table3[[#This Row],[Proposed Equipment]]=Equipment[Proposed Equipment])* (IFERROR(Table3[[#This Row],[Capacity (BTU/hr)]]/1000>Equipment[Size Low],1))* (IFERROR(Table3[[#This Row],[Capacity (BTU/hr)]]/1000<=Equipment[Size High],1)), 0)+0)),"") ->  | N11: =IF(Table3[[#This Row],[Measure Version ID]]="","", INDEX(Measures[Customer Incentive ($/unit)],MATCH(Table3[[#This Row],[Measure Version ID]],Measures[Measure Version ID],0))) ->  | O11: =IF(Table3[[#This Row],[Equipment ID]]="","", INDEX(Equipment[kWh Savings Per Unit],MATCH(Table3[[#This Row],[Equipment ID]],Equipment[ID],0))) ->  | P11: =IF(Table3[[#This Row],[Equipment ID]]="","", INDEX(Equipment[kW Savings Per Unit],MATCH(Table3[[#This Row],[Equipment ID]],Equipment[ID],0))) ->  | Q11: =IF(Table3[[#This Row],[Capacity (BTU/hr)]]="","",ROUND(Table3[[#This Row],[Capacity (BTU/hr)]]/12000,1)) ->  | R11: =IF(Table3[[#This Row],[Measure Version ID]]="","",Table3[[#This Row],[Incentive Per Unit]]*Table3[[#This Row],[Capacity (Tons)]]*Table3[[#This Row],[Quantity]]) ->  | S11: =IF(OR(Table3[[#This Row],[Equipment ID]]="",Table3[[#This Row],[Capacity (BTU/hr)]]="",Table3[[#This Row],[Quantity]]=""),"",Table3[[#This Row],[kWh Savings Per Unit]]*Table3[[#This Row],[Capacity (Tons)]]*Table3[[#This Row],[Quantity]]) ->  | T11: =IF(OR(Table3[[#This Row],[Equipment ID]]="",Table3[[#This Row],[Capacity (BTU/hr)]]="",Table3[[#This Row],[Quantity]]=""),"",Table3[[#This Row],[kW Savings Per Unit]]*Table3[[#This Row],[Capacity (Tons)]]*Table3[[#This Row],[Quantity]]) ->  | U11: =IF(Table3[[#This Row],[Baseline Equipment]]="","",INDEX(BaselineEquipment[Upgrade Type],MATCH(Table3[[#This Row],[Baseline Equipment]],BaselineEquipment[Baseline Equipment],0))) -> 
C12: =ROW(Table3[[#This Row],[Baseline Equipment]])-6 -> 6 | L12: =IFERROR(IF(InstallDate="","", INDEX(Measures[Measure Version ID],MATCH(1, (Table3[[#This Row],[Upgrade Type]]=Measures[Upgrade Type])* (IFERROR(Table3[[#This Row],[Capacity (BTU/hr)]]/1000>Measures[Capacity Low (kBTU/hr)],1))* (IFERROR(Table3[[#This Row],[Capacity (BTU/hr)]]/1000<=Measures[Capacity High (kBTU/hr)],1))* (InstallDate>=Measures[Effective Start Date])* (InstallDate<=IF(Measures[Effective End Date]=0,50000,Measures[Effective End Date])), 0)+0)),"") ->  | M12: =IFERROR(IF(Table3[[#This Row],[Proposed Equipment]]="","", INDEX(Equipment[ID],MATCH(1, (BusinessType=Equipment[Facility Type])* (Table3[[#This Row],[Baseline Equipment]]=Equipment[Baseline Equipment])* (Table3[[#This Row],[Proposed Equipment]]=Equipment[Proposed Equipment])* (IFERROR(Table3[[#This Row],[Capacity (BTU/hr)]]/1000>Equipment[Size Low],1))* (IFERROR(Table3[[#This Row],[Capacity (BTU/hr)]]/1000<=Equipment[Size High],1)), 0)+0)),"") ->  | N12: =IF(Table3[[#This Row],[Measure Version ID]]="","", INDEX(Measures[Customer Incentive ($/unit)],MATCH(Table3[[#This Row],[Measure Version ID]],Measures[Measure Version ID],0))) ->  | O12: =IF(Table3[[#This Row],[Equipment ID]]="","", INDEX(Equipment[kWh Savings Per Unit],MATCH(Table3[[#This Row],[Equipment ID]],Equipment[ID],0))) ->  | P12: =IF(Table3[[#This Row],[Equipment ID]]="","", INDEX(Equipment[kW Savings Per Unit],MATCH(Table3[[#This Row],[Equipment ID]],Equipment[ID],0))) ->  | Q12: =IF(Table3[[#This Row],[Capacity (BTU/hr)]]="","",ROUND(Table3[[#This Row],[Capacity (BTU/hr)]]/12000,1)) ->  | R12: =IF(Table3[[#This Row],[Measure Version ID]]="","",Table3[[#This Row],[Incentive Per Unit]]*Table3[[#This Row],[Capacity (Tons)]]*Table3[[#This Row],[Quantity]]) ->  | S12: =IF(OR(Table3[[#This Row],[Equipment ID]]="",Table3[[#This Row],[Capacity (BTU/hr)]]="",Table3[[#This Row],[Quantity]]=""),"",Table3[[#This Row],[kWh Savings Per Unit]]*Table3[[#This Row],[Capacity (Tons)]]*Table3[[#This Row],[Quantity]]) ->  | T12: =IF(OR(Table3[[#This Row],[Equipment ID]]="",Table3[[#This Row],[Capacity (BTU/hr)]]="",Table3[[#This Row],[Quantity]]=""),"",Table3[[#This Row],[kW Savings Per Unit]]*Table3[[#This Row],[Capacity (Tons)]]*Table3[[#This Row],[Quantity]]) ->  | U12: =IF(Table3[[#This Row],[Baseline Equipment]]="","",INDEX(BaselineEquipment[Upgrade Type],MATCH(Table3[[#This Row],[Baseline Equipment]],BaselineEquipment[Baseline Equipment],0))) -> 
C13: =ROW(Table3[[#This Row],[Baseline Equipment]])-6 -> 7 | L13: =IFERROR(IF(InstallDate="","", INDEX(Measures[Measure Version ID],MATCH(1, (Table3[[#This Row],[Upgrade Type]]=Measures[Upgrade Type])* (IFERROR(Table3[[#This Row],[Capacity (BTU/hr)]]/1000>Measures[Capacity Low (kBTU/hr)],1))* (IFERROR(Table3[[#This Row],[Capacity (BTU/hr)]]/1000<=Measures[Capacity High (kBTU/hr)],1))* (InstallDate>=Measures[Effective Start Date])* (InstallDate<=IF(Measures[Effective End Date]=0,50000,Measures[Effective End Date])), 0)+0)),"") ->  | M13: =IFERROR(IF(Table3[[#This Row],[Proposed Equipment]]="","", INDEX(Equipment[ID],MATCH(1, (BusinessType=Equipment[Facility Type])* (Table3[[#This Row],[Baseline Equipment]]=Equipment[Baseline Equipment])* (Table3[[#This Row],[Proposed Equipment]]=Equipment[Proposed Equipment])* (IFERROR(Table3[[#This Row],[Capacity (BTU/hr)]]/1000>Equipment[Size Low],1))* (IFERROR(Table3[[#This Row],[Capacity (BTU/hr)]]/1000<=Equipment[Size High],1)), 0)+0)),"") ->  | N13: =IF(Table3[[#This Row],[Measure Version ID]]="","", INDEX(Measures[Customer Incentive ($/unit)],MATCH(Table3[[#This Row],[Measure Version ID]],Measures[Measure Version ID],0))) ->  | O13: =IF(Table3[[#This Row],[Equipment ID]]="","", INDEX(Equipment[kWh Savings Per Unit],MATCH(Table3[[#This Row],[Equipment ID]],Equipment[ID],0))) ->  | P13: =IF(Table3[[#This Row],[Equipment ID]]="","", INDEX(Equipment[kW Savings Per Unit],MATCH(Table3[[#This Row],[Equipment ID]],Equipment[ID],0))) ->  | Q13: =IF(Table3[[#This Row],[Capacity (BTU/hr)]]="","",ROUND(Table3[[#This Row],[Capacity (BTU/hr)]]/12000,1)) ->  | R13: =IF(Table3[[#This Row],[Measure Version ID]]="","",Table3[[#This Row],[Incentive Per Unit]]*Table3[[#This Row],[Capacity (Tons)]]*Table3[[#This Row],[Quantity]]) ->  | S13: =IF(OR(Table3[[#This Row],[Equipment ID]]="",Table3[[#This Row],[Capacity (BTU/hr)]]="",Table3[[#This Row],[Quantity]]=""),"",Table3[[#This Row],[kWh Savings Per Unit]]*Table3[[#This Row],[Capacity (Tons)]]*Table3[[#This Row],[Quantity]]) ->  | T13: =IF(OR(Table3[[#This Row],[Equipment ID]]="",Table3[[#This Row],[Capacity (BTU/hr)]]="",Table3[[#This Row],[Quantity]]=""),"",Table3[[#This Row],[kW Savings Per Unit]]*Table3[[#This Row],[Capacity (Tons)]]*Table3[[#This Row],[Quantity]]) ->  | U13: =IF(Table3[[#This Row],[Baseline Equipment]]="","",INDEX(BaselineEquipment[Upgrade Type],MATCH(Table3[[#This Row],[Baseline Equipment]],BaselineEquipment[Baseline Equipment],0))) -> 
C14: =ROW(Table3[[#This Row],[Baseline Equipment]])-6 -> 8 | L14: =IFERROR(IF(InstallDate="","", INDEX(Measures[Measure Version ID],MATCH(1, (Table3[[#This Row],[Upgrade Type]]=Measures[Upgrade Type])* (IFERROR(Table3[[#This Row],[Capacity (BTU/hr)]]/1000>Measures[Capacity Low (kBTU/hr)],1))* (IFERROR(Table3[[#This Row],[Capacity (BTU/hr)]]/1000<=Measures[Capacity High (kBTU/hr)],1))* (InstallDate>=Measures[Effective Start Date])* (InstallDate<=IF(Measures[Effective End Date]=0,50000,Measures[Effective End Date])), 0)+0)),"") ->  | M14: =IFERROR(IF(Table3[[#This Row],[Proposed Equipment]]="","", INDEX(Equipment[ID],MATCH(1, (BusinessType=Equipment[Facility Type])* (Table3[[#This Row],[Baseline Equipment]]=Equipment[Baseline Equipment])* (Table3[[#This Row],[Proposed Equipment]]=Equipment[Proposed Equipment])* (IFERROR(Table3[[#This Row],[Capacity (BTU/hr)]]/1000>Equipment[Size Low],1))* (IFERROR(Table3[[#This Row],[Capacity (BTU/hr)]]/1000<=Equipment[Size High],1)), 0)+0)),"") ->  | N14: =IF(Table3[[#This Row],[Measure Version ID]]="","", INDEX(Measures[Customer Incentive ($/unit)],MATCH(Table3[[#This Row],[Measure Version ID]],Measures[Measure Version ID],0))) ->  | O14: =IF(Table3[[#This Row],[Equipment ID]]="","", INDEX(Equipment[kWh Savings Per Unit],MATCH(Table3[[#This Row],[Equipment ID]],Equipment[ID],0))) ->  | P14: =IF(Table3[[#This Row],[Equipment ID]]="","", INDEX(Equipment[kW Savings Per Unit],MATCH(Table3[[#This Row],[Equipment ID]],Equipment[ID],0))) ->  | Q14: =IF(Table3[[#This Row],[Capacity (BTU/hr)]]="","",ROUND(Table3[[#This Row],[Capacity (BTU/hr)]]/12000,1)) ->  | R14: =IF(Table3[[#This Row],[Measure Version ID]]="","",Table3[[#This Row],[Incentive Per Unit]]*Table3[[#This Row],[Capacity (Tons)]]*Table3[[#This Row],[Quantity]]) ->  | S14: =IF(OR(Table3[[#This Row],[Equipment ID]]="",Table3[[#This Row],[Capacity (BTU/hr)]]="",Table3[[#This Row],[Quantity]]=""),"",Table3[[#This Row],[kWh Savings Per Unit]]*Table3[[#This Row],[Capacity (Tons)]]*Table3[[#This Row],[Quantity]]) ->  | T14: =IF(OR(Table3[[#This Row],[Equipment ID]]="",Table3[[#This Row],[Capacity (BTU/hr)]]="",Table3[[#This Row],[Quantity]]=""),"",Table3[[#This Row],[kW Savings Per Unit]]*Table3[[#This Row],[Capacity (Tons)]]*Table3[[#This Row],[Quantity]]) ->  | U14: =IF(Table3[[#This Row],[Baseline Equipment]]="","",INDEX(BaselineEquipment[Upgrade Type],MATCH(Table3[[#This Row],[Baseline Equipment]],BaselineEquipment[Baseline Equipment],0))) -> 
C15: =ROW(Table3[[#This Row],[Baseline Equipment]])-6 -> 9 | L15: =IFERROR(IF(InstallDate="","", INDEX(Measures[Measure Version ID],MATCH(1, (Table3[[#This Row],[Upgrade Type]]=Measures[Upgrade Type])* (IFERROR(Table3[[#This Row],[Capacity (BTU/hr)]]/1000>Measures[Capacity Low (kBTU/hr)],1))* (IFERROR(Table3[[#This Row],[Capacity (BTU/hr)]]/1000<=Measures[Capacity High (kBTU/hr)],1))* (InstallDate>=Measures[Effective Start Date])* (InstallDate<=IF(Measures[Effective End Date]=0,50000,Measures[Effective End Date])), 0)+0)),"") ->  | M15: =IFERROR(IF(Table3[[#This Row],[Proposed Equipment]]="","", INDEX(Equipment[ID],MATCH(1, (BusinessType=Equipment[Facility Type])* (Table3[[#This Row],[Baseline Equipment]]=Equipment[Baseline Equipment])* (Table3[[#This Row],[Proposed Equipment]]=Equipment[Proposed Equipment])* (IFERROR(Table3[[#This Row],[Capacity (BTU/hr)]]/1000>Equipment[Size Low],1))* (IFERROR(Table3[[#This Row],[Capacity (BTU/hr)]]/1000<=Equipment[Size High],1)), 0)+0)),"") ->  | N15: =IF(Table3[[#This Row],[Measure Version ID]]="","", INDEX(Measures[Customer Incentive ($/unit)],MATCH(Table3[[#This Row],[Measure Version ID]],Measures[Measure Version ID],0))) ->  | O15: =IF(Table3[[#This Row],[Equipment ID]]="","", INDEX(Equipment[kWh Savings Per Unit],MATCH(Table3[[#This Row],[Equipment ID]],Equipment[ID],0))) ->  | P15: =IF(Table3[[#This Row],[Equipment ID]]="","", INDEX(Equipment[kW Savings Per Unit],MATCH(Table3[[#This Row],[Equipment ID]],Equipment[ID],0))) ->  | Q15: =IF(Table3[[#This Row],[Capacity (BTU/hr)]]="","",ROUND(Table3[[#This Row],[Capacity (BTU/hr)]]/12000,1)) ->  | R15: =IF(Table3[[#This Row],[Measure Version ID]]="","",Table3[[#This Row],[Incentive Per Unit]]*Table3[[#This Row],[Capacity (Tons)]]*Table3[[#This Row],[Quantity]]) ->  | S15: =IF(OR(Table3[[#This Row],[Equipment ID]]="",Table3[[#This Row],[Capacity (BTU/hr)]]="",Table3[[#This Row],[Quantity]]=""),"",Table3[[#This Row],[kWh Savings Per Unit]]*Table3[[#This Row],[Capacity (Tons)]]*Table3[[#This Row],[Quantity]]) ->  | T15: =IF(OR(Table3[[#This Row],[Equipment ID]]="",Table3[[#This Row],[Capacity (BTU/hr)]]="",Table3[[#This Row],[Quantity]]=""),"",Table3[[#This Row],[kW Savings Per Unit]]*Table3[[#This Row],[Capacity (Tons)]]*Table3[[#This Row],[Quantity]]) ->  | U15: =IF(Table3[[#This Row],[Baseline Equipment]]="","",INDEX(BaselineEquipment[Upgrade Type],MATCH(Table3[[#This Row],[Baseline Equipment]],BaselineEquipment[Baseline Equipment],0))) -> 
C16: =ROW(Table3[[#This Row],[Baseline Equipment]])-6 -> 10 | L16: =IFERROR(IF(InstallDate="","", INDEX(Measures[Measure Version ID],MATCH(1, (Table3[[#This Row],[Upgrade Type]]=Measures[Upgrade Type])* (IFERROR(Table3[[#This Row],[Capacity (BTU/hr)]]/1000>Measures[Capacity Low (kBTU/hr)],1))* (IFERROR(Table3[[#This Row],[Capacity (BTU/hr)]]/1000<=Measures[Capacity High (kBTU/hr)],1))* (InstallDate>=Measures[Effective Start Date])* (InstallDate<=IF(Measures[Effective End Date]=0,50000,Measures[Effective End Date])), 0)+0)),"") ->  | M16: =IFERROR(IF(Table3[[#This Row],[Proposed Equipment]]="","", INDEX(Equipment[ID],MATCH(1, (BusinessType=Equipment[Facility Type])* (Table3[[#This Row],[Baseline Equipment]]=Equipment[Baseline Equipment])* (Table3[[#This Row],[Proposed Equipment]]=Equipment[Proposed Equipment])* (IFERROR(Table3[[#This Row],[Capacity (BTU/hr)]]/1000>Equipment[Size Low],1))* (IFERROR(Table3[[#This Row],[Capacity (BTU/hr)]]/1000<=Equipment[Size High],1)), 0)+0)),"") ->  | N16: =IF(Table3[[#This Row],[Measure Version ID]]="","", INDEX(Measures[Customer Incentive ($/unit)],MATCH(Table3[[#This Row],[Measure Version ID]],Measures[Measure Version ID],0))) ->  | O16: =IF(Table3[[#This Row],[Equipment ID]]="","", INDEX(Equipment[kWh Savings Per Unit],MATCH(Table3[[#This Row],[Equipment ID]],Equipment[ID],0))) ->  | P16: =IF(Table3[[#This Row],[Equipment ID]]="","", INDEX(Equipment[kW Savings Per Unit],MATCH(Table3[[#This Row],[Equipment ID]],Equipment[ID],0))) ->  | Q16: =IF(Table3[[#This Row],[Capacity (BTU/hr)]]="","",ROUND(Table3[[#This Row],[Capacity (BTU/hr)]]/12000,1)) ->  | R16: =IF(Table3[[#This Row],[Measure Version ID]]="","",Table3[[#This Row],[Incentive Per Unit]]*Table3[[#This Row],[Capacity (Tons)]]*Table3[[#This Row],[Quantity]]) ->  | S16: =IF(OR(Table3[[#This Row],[Equipment ID]]="",Table3[[#This Row],[Capacity (BTU/hr)]]="",Table3[[#This Row],[Quantity]]=""),"",Table3[[#This Row],[kWh Savings Per Unit]]*Table3[[#This Row],[Capacity (Tons)]]*Table3[[#This Row],[Quantity]]) ->  | T16: =IF(OR(Table3[[#This Row],[Equipment ID]]="",Table3[[#This Row],[Capacity (BTU/hr)]]="",Table3[[#This Row],[Quantity]]=""),"",Table3[[#This Row],[kW Savings Per Unit]]*Table3[[#This Row],[Capacity (Tons)]]*Table3[[#This Row],[Quantity]]) ->  | U16: =IF(Table3[[#This Row],[Baseline Equipment]]="","",INDEX(BaselineEquipment[Upgrade Type],MATCH(Table3[[#This Row],[Baseline Equipment]],BaselineEquipment[Baseline Equipment],0))) -> 
C17: =ROW(Table3[[#This Row],[Baseline Equipment]])-6 -> 11 | L17: =IFERROR(IF(InstallDate="","", INDEX(Measures[Measure Version ID],MATCH(1, (Table3[[#This Row],[Upgrade Type]]=Measures[Upgrade Type])* (IFERROR(Table3[[#This Row],[Capacity (BTU/hr)]]/1000>Measures[Capacity Low (kBTU/hr)],1))* (IFERROR(Table3[[#This Row],[Capacity (BTU/hr)]]/1000<=Measures[Capacity High (kBTU/hr)],1))* (InstallDate>=Measures[Effective Start Date])* (InstallDate<=IF(Measures[Effective End Date]=0,50000,Measures[Effective End Date])), 0)+0)),"") ->  | M17: =IFERROR(IF(Table3[[#This Row],[Proposed Equipment]]="","", INDEX(Equipment[ID],MATCH(1, (BusinessType=Equipment[Facility Type])* (Table3[[#This Row],[Baseline Equipment]]=Equipment[Baseline Equipment])* (Table3[[#This Row],[Proposed Equipment]]=Equipment[Proposed Equipment])* (IFERROR(Table3[[#This Row],[Capacity (BTU/hr)]]/1000>Equipment[Size Low],1))* (IFERROR(Table3[[#This Row],[Capacity (BTU/hr)]]/1000<=Equipment[Size High],1)), 0)+0)),"") ->  | N17: =IF(Table3[[#This Row],[Measure Version ID]]="","", INDEX(Measures[Customer Incentive ($/unit)],MATCH(Table3[[#This Row],[Measure Version ID]],Measures[Measure Version ID],0))) ->  | O17: =IF(Table3[[#This Row],[Equipment ID]]="","", INDEX(Equipment[kWh Savings Per Unit],MATCH(Table3[[#This Row],[Equipment ID]],Equipment[ID],0))) ->  | P17: =IF(Table3[[#This Row],[Equipment ID]]="","", INDEX(Equipment[kW Savings Per Unit],MATCH(Table3[[#This Row],[Equipment ID]],Equipment[ID],0))) ->  | Q17: =IF(Table3[[#This Row],[Capacity (BTU/hr)]]="","",ROUND(Table3[[#This Row],[Capacity (BTU/hr)]]/12000,1)) ->  | R17: =IF(Table3[[#This Row],[Measure Version ID]]="","",Table3[[#This Row],[Incentive Per Unit]]*Table3[[#This Row],[Capacity (Tons)]]*Table3[[#This Row],[Quantity]]) ->  | S17: =IF(OR(Table3[[#This Row],[Equipment ID]]="",Table3[[#This Row],[Capacity (BTU/hr)]]="",Table3[[#This Row],[Quantity]]=""),"",Table3[[#This Row],[kWh Savings Per Unit]]*Table3[[#This Row],[Capacity (Tons)]]*Table3[[#This Row],[Quantity]]) ->  | T17: =IF(OR(Table3[[#This Row],[Equipment ID]]="",Table3[[#This Row],[Capacity (BTU/hr)]]="",Table3[[#This Row],[Quantity]]=""),"",Table3[[#This Row],[kW Savings Per Unit]]*Table3[[#This Row],[Capacity (Tons)]]*Table3[[#This Row],[Quantity]]) ->  | U17: =IF(Table3[[#This Row],[Baseline Equipment]]="","",INDEX(BaselineEquipment[Upgrade Type],MATCH(Table3[[#This Row],[Baseline Equipment]],BaselineEquipment[Baseline Equipment],0))) -> 
C18: =ROW(Table3[[#This Row],[Baseline Equipment]])-6 -> 12 | L18: =IFERROR(IF(InstallDate="","", INDEX(Measures[Measure Version ID],MATCH(1, (Table3[[#This Row],[Upgrade Type]]=Measures[Upgrade Type])* (IFERROR(Table3[[#This Row],[Capacity (BTU/hr)]]/1000>Measures[Capacity Low (kBTU/hr)],1))* (IFERROR(Table3[[#This Row],[Capacity (BTU/hr)]]/1000<=Measures[Capacity High (kBTU/hr)],1))* (InstallDate>=Measures[Effective Start Date])* (InstallDate<=IF(Measures[Effective End Date]=0,50000,Measures[Effective End Date])), 0)+0)),"") ->  | M18: =IFERROR(IF(Table3[[#This Row],[Proposed Equipment]]="","", INDEX(Equipment[ID],MATCH(1, (BusinessType=Equipment[Facility Type])* (Table3[[#This Row],[Baseline Equipment]]=Equipment[Baseline Equipment])* (Table3[[#This Row],[Proposed Equipment]]=Equipment[Proposed Equipment])* (IFERROR(Table3[[#This Row],[Capacity (BTU/hr)]]/1000>Equipment[Size Low],1))* (IFERROR(Table3[[#This Row],[Capacity (BTU/hr)]]/1000<=Equipment[Size High],1)), 0)+0)),"") ->  | N18: =IF(Table3[[#This Row],[Measure Version ID]]="","", INDEX(Measures[Customer Incentive ($/unit)],MATCH(Table3[[#This Row],[Measure Version ID]],Measures[Measure Version ID],0))) ->  | O18: =IF(Table3[[#This Row],[Equipment ID]]="","", INDEX(Equipment[kWh Savings Per Unit],MATCH(Table3[[#This Row],[Equipment ID]],Equipment[ID],0))) ->  | P18: =IF(Table3[[#This Row],[Equipment ID]]="","", INDEX(Equipment[kW Savings Per Unit],MATCH(Table3[[#This Row],[Equipment ID]],Equipment[ID],0))) ->  | Q18: =IF(Table3[[#This Row],[Capacity (BTU/hr)]]="","",ROUND(Table3[[#This Row],[Capacity (BTU/hr)]]/12000,1)) ->  | R18: =IF(Table3[[#This Row],[Measure Version ID]]="","",Table3[[#This Row],[Incentive Per Unit]]*Table3[[#This Row],[Capacity (Tons)]]*Table3[[#This Row],[Quantity]]) ->  | S18: =IF(OR(Table3[[#This Row],[Equipment ID]]="",Table3[[#This Row],[Capacity (BTU/hr)]]="",Table3[[#This Row],[Quantity]]=""),"",Table3[[#This Row],[kWh Savings Per Unit]]*Table3[[#This Row],[Capacity (Tons)]]*Table3[[#This Row],[Quantity]]) ->  | T18: =IF(OR(Table3[[#This Row],[Equipment ID]]="",Table3[[#This Row],[Capacity (BTU/hr)]]="",Table3[[#This Row],[Quantity]]=""),"",Table3[[#This Row],[kW Savings Per Unit]]*Table3[[#This Row],[Capacity (Tons)]]*Table3[[#This Row],[Quantity]]) ->  | U18: =IF(Table3[[#This Row],[Baseline Equipment]]="","",INDEX(BaselineEquipment[Upgrade Type],MATCH(Table3[[#This Row],[Baseline Equipment]],BaselineEquipment[Baseline Equipment],0))) -> 
C19: =ROW(Table3[[#This Row],[Baseline Equipment]])-6 -> 13 | L19: =IFERROR(IF(InstallDate="","", INDEX(Measures[Measure Version ID],MATCH(1, (Table3[[#This Row],[Upgrade Type]]=Measures[Upgrade Type])* (IFERROR(Table3[[#This Row],[Capacity (BTU/hr)]]/1000>Measures[Capacity Low (kBTU/hr)],1))* (IFERROR(Table3[[#This Row],[Capacity (BTU/hr)]]/1000<=Measures[Capacity High (kBTU/hr)],1))* (InstallDate>=Measures[Effective Start Date])* (InstallDate<=IF(Measures[Effective End Date]=0,50000,Measures[Effective End Date])), 0)+0)),"") ->  | M19: =IFERROR(IF(Table3[[#This Row],[Proposed Equipment]]="","", INDEX(Equipment[ID],MATCH(1, (BusinessType=Equipment[Facility Type])* (Table3[[#This Row],[Baseline Equipment]]=Equipment[Baseline Equipment])* (Table3[[#This Row],[Proposed Equipment]]=Equipment[Proposed Equipment])* (IFERROR(Table3[[#This Row],[Capacity (BTU/hr)]]/1000>Equipment[Size Low],1))* (IFERROR(Table3[[#This Row],[Capacity (BTU/hr)]]/1000<=Equipment[Size High],1)), 0)+0)),"") ->  | N19: =IF(Table3[[#This Row],[Measure Version ID]]="","", INDEX(Measures[Customer Incentive ($/unit)],MATCH(Table3[[#This Row],[Measure Version ID]],Measures[Measure Version ID],0))) ->  | O19: =IF(Table3[[#This Row],[Equipment ID]]="","", INDEX(Equipment[kWh Savings Per Unit],MATCH(Table3[[#This Row],[Equipment ID]],Equipment[ID],0))) ->  | P19: =IF(Table3[[#This Row],[Equipment ID]]="","", INDEX(Equipment[kW Savings Per Unit],MATCH(Table3[[#This Row],[Equipment ID]],Equipment[ID],0))) ->  | Q19: =IF(Table3[[#This Row],[Capacity (BTU/hr)]]="","",ROUND(Table3[[#This Row],[Capacity (BTU/hr)]]/12000,1)) ->  | R19: =IF(Table3[[#This Row],[Measure Version ID]]="","",Table3[[#This Row],[Incentive Per Unit]]*Table3[[#This Row],[Capacity (Tons)]]*Table3[[#This Row],[Quantity]]) ->  | S19: =IF(OR(Table3[[#This Row],[Equipment ID]]="",Table3[[#This Row],[Capacity (BTU/hr)]]="",Table3[[#This Row],[Quantity]]=""),"",Table3[[#This Row],[kWh Savings Per Unit]]*Table3[[#This Row],[Capacity (Tons)]]*Table3[[#This Row],[Quantity]]) ->  | T19: =IF(OR(Table3[[#This Row],[Equipment ID]]="",Table3[[#This Row],[Capacity (BTU/hr)]]="",Table3[[#This Row],[Quantity]]=""),"",Table3[[#This Row],[kW Savings Per Unit]]*Table3[[#This Row],[Capacity (Tons)]]*Table3[[#This Row],[Quantity]]) ->  | U19: =IF(Table3[[#This Row],[Baseline Equipment]]="","",INDEX(BaselineEquipment[Upgrade Type],MATCH(Table3[[#This Row],[Baseline Equipment]],BaselineEquipment[Baseline Equipment],0))) -> 
C20: =ROW(Table3[[#This Row],[Baseline Equipment]])-6 -> 14 | L20: =IFERROR(IF(InstallDate="","", INDEX(Measures[Measure Version ID],MATCH(1, (Table3[[#This Row],[Upgrade Type]]=Measures[Upgrade Type])* (IFERROR(Table3[[#This Row],[Capacity (BTU/hr)]]/1000>Measures[Capacity Low (kBTU/hr)],1))* (IFERROR(Table3[[#This Row],[Capacity (BTU/hr)]]/1000<=Measures[Capacity High (kBTU/hr)],1))* (InstallDate>=Measures[Effective Start Date])* (InstallDate<=IF(Measures[Effective End Date]=0,50000,Measures[Effective End Date])), 0)+0)),"") ->  | M20: =IFERROR(IF(Table3[[#This Row],[Proposed Equipment]]="","", INDEX(Equipment[ID],MATCH(1, (BusinessType=Equipment[Facility Type])* (Table3[[#This Row],[Baseline Equipment]]=Equipment[Baseline Equipment])* (Table3[[#This Row],[Proposed Equipment]]=Equipment[Proposed Equipment])* (IFERROR(Table3[[#This Row],[Capacity (BTU/hr)]]/1000>Equipment[Size Low],1))* (IFERROR(Table3[[#This Row],[Capacity (BTU/hr)]]/1000<=Equipment[Size High],1)), 0)+0)),"") ->  | N20: =IF(Table3[[#This Row],[Measure Version ID]]="","", INDEX(Measures[Customer Incentive ($/unit)],MATCH(Table3[[#This Row],[Measure Version ID]],Measures[Measure Version ID],0))) ->  | O20: =IF(Table3[[#This Row],[Equipment ID]]="","", INDEX(Equipment[kWh Savings Per Unit],MATCH(Table3[[#This Row],[Equipment ID]],Equipment[ID],0))) ->  | P20: =IF(Table3[[#This Row],[Equipment ID]]="","", INDEX(Equipment[kW Savings Per Unit],MATCH(Table3[[#This Row],[Equipment ID]],Equipment[ID],0))) ->  | Q20: =IF(Table3[[#This Row],[Capacity (BTU/hr)]]="","",ROUND(Table3[[#This Row],[Capacity (BTU/hr)]]/12000,1)) ->  | R20: =IF(Table3[[#This Row],[Measure Version ID]]="","",Table3[[#This Row],[Incentive Per Unit]]*Table3[[#This Row],[Capacity (Tons)]]*Table3[[#This Row],[Quantity]]) ->  | S20: =IF(OR(Table3[[#This Row],[Equipment ID]]="",Table3[[#This Row],[Capacity (BTU/hr)]]="",Table3[[#This Row],[Quantity]]=""),"",Table3[[#This Row],[kWh Savings Per Unit]]*Table3[[#This Row],[Capacity (Tons)]]*Table3[[#This Row],[Quantity]]) ->  | T20: =IF(OR(Table3[[#This Row],[Equipment ID]]="",Table3[[#This Row],[Capacity (BTU/hr)]]="",Table3[[#This Row],[Quantity]]=""),"",Table3[[#This Row],[kW Savings Per Unit]]*Table3[[#This Row],[Capacity (Tons)]]*Table3[[#This Row],[Quantity]]) ->  | U20: =IF(Table3[[#This Row],[Baseline Equipment]]="","",INDEX(BaselineEquipment[Upgrade Type],MATCH(Table3[[#This Row],[Baseline Equipment]],BaselineEquipment[Baseline Equipment],0))) -> 
C21: =ROW(Table3[[#This Row],[Baseline Equipment]])-6 -> 15 | L21: =IFERROR(IF(InstallDate="","", INDEX(Measures[Measure Version ID],MATCH(1, (Table3[[#This Row],[Upgrade Type]]=Measures[Upgrade Type])* (IFERROR(Table3[[#This Row],[Capacity (BTU/hr)]]/1000>Measures[Capacity Low (kBTU/hr)],1))* (IFERROR(Table3[[#This Row],[Capacity (BTU/hr)]]/1000<=Measures[Capacity High (kBTU/hr)],1))* (InstallDate>=Measures[Effective Start Date])* (InstallDate<=IF(Measures[Effective End Date]=0,50000,Measures[Effective End Date])), 0)+0)),"") ->  | M21: =IFERROR(IF(Table3[[#This Row],[Proposed Equipment]]="","", INDEX(Equipment[ID],MATCH(1, (BusinessType=Equipment[Facility Type])* (Table3[[#This Row],[Baseline Equipment]]=Equipment[Baseline Equipment])* (Table3[[#This Row],[Proposed Equipment]]=Equipment[Proposed Equipment])* (IFERROR(Table3[[#This Row],[Capacity (BTU/hr)]]/1000>Equipment[Size Low],1))* (IFERROR(Table3[[#This Row],[Capacity (BTU/hr)]]/1000<=Equipment[Size High],1)), 0)+0)),"") ->  | N21: =IF(Table3[[#This Row],[Measure Version ID]]="","", INDEX(Measures[Customer Incentive ($/unit)],MATCH(Table3[[#This Row],[Measure Version ID]],Measures[Measure Version ID],0))) ->  | O21: =IF(Table3[[#This Row],[Equipment ID]]="","", INDEX(Equipment[kWh Savings Per Unit],MATCH(Table3[[#This Row],[Equipment ID]],Equipment[ID],0))) ->  | P21: =IF(Table3[[#This Row],[Equipment ID]]="","", INDEX(Equipment[kW Savings Per Unit],MATCH(Table3[[#This Row],[Equipment ID]],Equipment[ID],0))) ->  | Q21: =IF(Table3[[#This Row],[Capacity (BTU/hr)]]="","",ROUND(Table3[[#This Row],[Capacity (BTU/hr)]]/12000,1)) ->  | R21: =IF(Table3[[#This Row],[Measure Version ID]]="","",Table3[[#This Row],[Incentive Per Unit]]*Table3[[#This Row],[Capacity (Tons)]]*Table3[[#This Row],[Quantity]]) ->  | S21: =IF(OR(Table3[[#This Row],[Equipment ID]]="",Table3[[#This Row],[Capacity (BTU/hr)]]="",Table3[[#This Row],[Quantity]]=""),"",Table3[[#This Row],[kWh Savings Per Unit]]*Table3[[#This Row],[Capacity (Tons)]]*Table3[[#This Row],[Quantity]]) ->  | T21: =IF(OR(Table3[[#This Row],[Equipment ID]]="",Table3[[#This Row],[Capacity (BTU/hr)]]="",Table3[[#This Row],[Quantity]]=""),"",Table3[[#This Row],[kW Savings Per Unit]]*Table3[[#This Row],[Capacity (Tons)]]*Table3[[#This Row],[Quantity]]) ->  | U21: =IF(Table3[[#This Row],[Baseline Equipment]]="","",INDEX(BaselineEquipment[Upgrade Type],MATCH(Table3[[#This Row],[Baseline Equipment]],BaselineEquipment[Baseline Equipment],0))) -> 
C22: =ROW(Table3[[#This Row],[Baseline Equipment]])-6 -> 16 | L22: =IFERROR(IF(InstallDate="","", INDEX(Measures[Measure Version ID],MATCH(1, (Table3[[#This Row],[Upgrade Type]]=Measures[Upgrade Type])* (IFERROR(Table3[[#This Row],[Capacity (BTU/hr)]]/1000>Measures[Capacity Low (kBTU/hr)],1))* (IFERROR(Table3[[#This Row],[Capacity (BTU/hr)]]/1000<=Measures[Capacity High (kBTU/hr)],1))* (InstallDate>=Measures[Effective Start Date])* (InstallDate<=IF(Measures[Effective End Date]=0,50000,Measures[Effective End Date])), 0)+0)),"") ->  | M22: =IFERROR(IF(Table3[[#This Row],[Proposed Equipment]]="","", INDEX(Equipment[ID],MATCH(1, (BusinessType=Equipment[Facility Type])* (Table3[[#This Row],[Baseline Equipment]]=Equipment[Baseline Equipment])* (Table3[[#This Row],[Proposed Equipment]]=Equipment[Proposed Equipment])* (IFERROR(Table3[[#This Row],[Capacity (BTU/hr)]]/1000>Equipment[Size Low],1))* (IFERROR(Table3[[#This Row],[Capacity (BTU/hr)]]/1000<=Equipment[Size High],1)), 0)+0)),"") ->  | N22: =IF(Table3[[#This Row],[Measure Version ID]]="","", INDEX(Measures[Customer Incentive ($/unit)],MATCH(Table3[[#This Row],[Measure Version ID]],Measures[Measure Version ID],0))) ->  | O22: =IF(Table3[[#This Row],[Equipment ID]]="","", INDEX(Equipment[kWh Savings Per Unit],MATCH(Table3[[#This Row],[Equipment ID]],Equipment[ID],0))) ->  | P22: =IF(Table3[[#This Row],[Equipment ID]]="","", INDEX(Equipment[kW Savings Per Unit],MATCH(Table3[[#This Row],[Equipment ID]],Equipment[ID],0))) ->  | Q22: =IF(Table3[[#This Row],[Capacity (BTU/hr)]]="","",ROUND(Table3[[#This Row],[Capacity (BTU/hr)]]/12000,1)) ->  | R22: =IF(Table3[[#This Row],[Measure Version ID]]="","",Table3[[#This Row],[Incentive Per Unit]]*Table3[[#This Row],[Capacity (Tons)]]*Table3[[#This Row],[Quantity]]) ->  | S22: =IF(OR(Table3[[#This Row],[Equipment ID]]="",Table3[[#This Row],[Capacity (BTU/hr)]]="",Table3[[#This Row],[Quantity]]=""),"",Table3[[#This Row],[kWh Savings Per Unit]]*Table3[[#This Row],[Capacity (Tons)]]*Table3[[#This Row],[Quantity]]) ->  | T22: =IF(OR(Table3[[#This Row],[Equipment ID]]="",Table3[[#This Row],[Capacity (BTU/hr)]]="",Table3[[#This Row],[Quantity]]=""),"",Table3[[#This Row],[kW Savings Per Unit]]*Table3[[#This Row],[Capacity (Tons)]]*Table3[[#This Row],[Quantity]]) ->  | U22: =IF(Table3[[#This Row],[Baseline Equipment]]="","",INDEX(BaselineEquipment[Upgrade Type],MATCH(Table3[[#This Row],[Baseline Equipment]],BaselineEquipment[Baseline Equipment],0))) -> 
C23: =ROW(Table3[[#This Row],[Baseline Equipment]])-6 -> 17 | L23: =IFERROR(IF(InstallDate="","", INDEX(Measures[Measure Version ID],MATCH(1, (Table3[[#This Row],[Upgrade Type]]=Measures[Upgrade Type])* (IFERROR(Table3[[#This Row],[Capacity (BTU/hr)]]/1000>Measures[Capacity Low (kBTU/hr)],1))* (IFERROR(Table3[[#This Row],[Capacity (BTU/hr)]]/1000<=Measures[Capacity High (kBTU/hr)],1))* (InstallDate>=Measures[Effective Start Date])* (InstallDate<=IF(Measures[Effective End Date]=0,50000,Measures[Effective End Date])), 0)+0)),"") ->  | M23: =IFERROR(IF(Table3[[#This Row],[Proposed Equipment]]="","", INDEX(Equipment[ID],MATCH(1, (BusinessType=Equipment[Facility Type])* (Table3[[#This Row],[Baseline Equipment]]=Equipment[Baseline Equipment])* (Table3[[#This Row],[Proposed Equipment]]=Equipment[Proposed Equipment])* (IFERROR(Table3[[#This Row],[Capacity (BTU/hr)]]/1000>Equipment[Size Low],1))* (IFERROR(Table3[[#This Row],[Capacity (BTU/hr)]]/1000<=Equipment[Size High],1)), 0)+0)),"") ->  | N23: =IF(Table3[[#This Row],[Measure Version ID]]="","", INDEX(Measures[Customer Incentive ($/unit)],MATCH(Table3[[#This Row],[Measure Version ID]],Measures[Measure Version ID],0))) ->  | O23: =IF(Table3[[#This Row],[Equipment ID]]="","", INDEX(Equipment[kWh Savings Per Unit],MATCH(Table3[[#This Row],[Equipment ID]],Equipment[ID],0))) ->  | P23: =IF(Table3[[#This Row],[Equipment ID]]="","", INDEX(Equipment[kW Savings Per Unit],MATCH(Table3[[#This Row],[Equipment ID]],Equipment[ID],0))) ->  | Q23: =IF(Table3[[#This Row],[Capacity (BTU/hr)]]="","",ROUND(Table3[[#This Row],[Capacity (BTU/hr)]]/12000,1)) ->  | R23: =IF(Table3[[#This Row],[Measure Version ID]]="","",Table3[[#This Row],[Incentive Per Unit]]*Table3[[#This Row],[Capacity (Tons)]]*Table3[[#This Row],[Quantity]]) ->  | S23: =IF(OR(Table3[[#This Row],[Equipment ID]]="",Table3[[#This Row],[Capacity (BTU/hr)]]="",Table3[[#This Row],[Quantity]]=""),"",Table3[[#This Row],[kWh Savings Per Unit]]*Table3[[#This Row],[Capacity (Tons)]]*Table3[[#This Row],[Quantity]]) ->  | T23: =IF(OR(Table3[[#This Row],[Equipment ID]]="",Table3[[#This Row],[Capacity (BTU/hr)]]="",Table3[[#This Row],[Quantity]]=""),"",Table3[[#This Row],[kW Savings Per Unit]]*Table3[[#This Row],[Capacity (Tons)]]*Table3[[#This Row],[Quantity]]) ->  | U23: =IF(Table3[[#This Row],[Baseline Equipment]]="","",INDEX(BaselineEquipment[Upgrade Type],MATCH(Table3[[#This Row],[Baseline Equipment]],BaselineEquipment[Baseline Equipment],0))) -> 
C24: =ROW(Table3[[#This Row],[Baseline Equipment]])-6 -> 18 | L24: =IFERROR(IF(InstallDate="","", INDEX(Measures[Measure Version ID],MATCH(1, (Table3[[#This Row],[Upgrade Type]]=Measures[Upgrade Type])* (IFERROR(Table3[[#This Row],[Capacity (BTU/hr)]]/1000>Measures[Capacity Low (kBTU/hr)],1))* (IFERROR(Table3[[#This Row],[Capacity (BTU/hr)]]/1000<=Measures[Capacity High (kBTU/hr)],1))* (InstallDate>=Measures[Effective Start Date])* (InstallDate<=IF(Measures[Effective End Date]=0,50000,Measures[Effective End Date])), 0)+0)),"") ->  | M24: =IFERROR(IF(Table3[[#This Row],[Proposed Equipment]]="","", INDEX(Equipment[ID],MATCH(1, (BusinessType=Equipment[Facility Type])* (Table3[[#This Row],[Baseline Equipment]]=Equipment[Baseline Equipment])* (Table3[[#This Row],[Proposed Equipment]]=Equipment[Proposed Equipment])* (IFERROR(Table3[[#This Row],[Capacity (BTU/hr)]]/1000>Equipment[Size Low],1))* (IFERROR(Table3[[#This Row],[Capacity (BTU/hr)]]/1000<=Equipment[Size High],1)), 0)+0)),"") ->  | N24: =IF(Table3[[#This Row],[Measure Version ID]]="","", INDEX(Measures[Customer Incentive ($/unit)],MATCH(Table3[[#This Row],[Measure Version ID]],Measures[Measure Version ID],0))) ->  | O24: =IF(Table3[[#This Row],[Equipment ID]]="","", INDEX(Equipment[kWh Savings Per Unit],MATCH(Table3[[#This Row],[Equipment ID]],Equipment[ID],0))) ->  | P24: =IF(Table3[[#This Row],[Equipment ID]]="","", INDEX(Equipment[kW Savings Per Unit],MATCH(Table3[[#This Row],[Equipment ID]],Equipment[ID],0))) ->  | Q24: =IF(Table3[[#This Row],[Capacity (BTU/hr)]]="","",ROUND(Table3[[#This Row],[Capacity (BTU/hr)]]/12000,1)) ->  | R24: =IF(Table3[[#This Row],[Measure Version ID]]="","",Table3[[#This Row],[Incentive Per Unit]]*Table3[[#This Row],[Capacity (Tons)]]*Table3[[#This Row],[Quantity]]) ->  | S24: =IF(OR(Table3[[#This Row],[Equipment ID]]="",Table3[[#This Row],[Capacity (BTU/hr)]]="",Table3[[#This Row],[Quantity]]=""),"",Table3[[#This Row],[kWh Savings Per Unit]]*Table3[[#This Row],[Capacity (Tons)]]*Table3[[#This Row],[Quantity]]) ->  | T24: =IF(OR(Table3[[#This Row],[Equipment ID]]="",Table3[[#This Row],[Capacity (BTU/hr)]]="",Table3[[#This Row],[Quantity]]=""),"",Table3[[#This Row],[kW Savings Per Unit]]*Table3[[#This Row],[Capacity (Tons)]]*Table3[[#This Row],[Quantity]]) ->  | U24: =IF(Table3[[#This Row],[Baseline Equipment]]="","",INDEX(BaselineEquipment[Upgrade Type],MATCH(Table3[[#This Row],[Baseline Equipment]],BaselineEquipment[Baseline Equipment],0))) -> 
C25: =ROW(Table3[[#This Row],[Baseline Equipment]])-6 -> 19 | L25: =IFERROR(IF(InstallDate="","", INDEX(Measures[Measure Version ID],MATCH(1, (Table3[[#This Row],[Upgrade Type]]=Measures[Upgrade Type])* (IFERROR(Table3[[#This Row],[Capacity (BTU/hr)]]/1000>Measures[Capacity Low (kBTU/hr)],1))* (IFERROR(Table3[[#This Row],[Capacity (BTU/hr)]]/1000<=Measures[Capacity High (kBTU/hr)],1))* (InstallDate>=Measures[Effective Start Date])* (InstallDate<=IF(Measures[Effective End Date]=0,50000,Measures[Effective End Date])), 0)+0)),"") ->  | M25: =IFERROR(IF(Table3[[#This Row],[Proposed Equipment]]="","", INDEX(Equipment[ID],MATCH(1, (BusinessType=Equipment[Facility Type])* (Table3[[#This Row],[Baseline Equipment]]=Equipment[Baseline Equipment])* (Table3[[#This Row],[Proposed Equipment]]=Equipment[Proposed Equipment])* (IFERROR(Table3[[#This Row],[Capacity (BTU/hr)]]/1000>Equipment[Size Low],1))* (IFERROR(Table3[[#This Row],[Capacity (BTU/hr)]]/1000<=Equipment[Size High],1)), 0)+0)),"") ->  | N25: =IF(Table3[[#This Row],[Measure Version ID]]="","", INDEX(Measures[Customer Incentive ($/unit)],MATCH(Table3[[#This Row],[Measure Version ID]],Measures[Measure Version ID],0))) ->  | O25: =IF(Table3[[#This Row],[Equipment ID]]="","", INDEX(Equipment[kWh Savings Per Unit],MATCH(Table3[[#This Row],[Equipment ID]],Equipment[ID],0))) ->  | P25: =IF(Table3[[#This Row],[Equipment ID]]="","", INDEX(Equipment[kW Savings Per Unit],MATCH(Table3[[#This Row],[Equipment ID]],Equipment[ID],0))) ->  | Q25: =IF(Table3[[#This Row],[Capacity (BTU/hr)]]="","",ROUND(Table3[[#This Row],[Capacity (BTU/hr)]]/12000,1)) ->  | R25: =IF(Table3[[#This Row],[Measure Version ID]]="","",Table3[[#This Row],[Incentive Per Unit]]*Table3[[#This Row],[Capacity (Tons)]]*Table3[[#This Row],[Quantity]]) ->  | S25: =IF(OR(Table3[[#This Row],[Equipment ID]]="",Table3[[#This Row],[Capacity (BTU/hr)]]="",Table3[[#This Row],[Quantity]]=""),"",Table3[[#This Row],[kWh Savings Per Unit]]*Table3[[#This Row],[Capacity (Tons)]]*Table3[[#This Row],[Quantity]]) ->  | T25: =IF(OR(Table3[[#This Row],[Equipment ID]]="",Table3[[#This Row],[Capacity (BTU/hr)]]="",Table3[[#This Row],[Quantity]]=""),"",Table3[[#This Row],[kW Savings Per Unit]]*Table3[[#This Row],[Capacity (Tons)]]*Table3[[#This Row],[Quantity]]) ->  | U25: =IF(Table3[[#This Row],[Baseline Equipment]]="","",INDEX(BaselineEquipment[Upgrade Type],MATCH(Table3[[#This Row],[Baseline Equipment]],BaselineEquipment[Baseline Equipment],0))) -> 
C26: =ROW(Table3[[#This Row],[Baseline Equipment]])-6 -> 20 | L26: =IFERROR(IF(InstallDate="","", INDEX(Measures[Measure Version ID],MATCH(1, (Table3[[#This Row],[Upgrade Type]]=Measures[Upgrade Type])* (IFERROR(Table3[[#This Row],[Capacity (BTU/hr)]]/1000>Measures[Capacity Low (kBTU/hr)],1))* (IFERROR(Table3[[#This Row],[Capacity (BTU/hr)]]/1000<=Measures[Capacity High (kBTU/hr)],1))* (InstallDate>=Measures[Effective Start Date])* (InstallDate<=IF(Measures[Effective End Date]=0,50000,Measures[Effective End Date])), 0)+0)),"") ->  | M26: =IFERROR(IF(Table3[[#This Row],[Proposed Equipment]]="","", INDEX(Equipment[ID],MATCH(1, (BusinessType=Equipment[Facility Type])* (Table3[[#This Row],[Baseline Equipment]]=Equipment[Baseline Equipment])* (Table3[[#This Row],[Proposed Equipment]]=Equipment[Proposed Equipment])* (IFERROR(Table3[[#This Row],[Capacity (BTU/hr)]]/1000>Equipment[Size Low],1))* (IFERROR(Table3[[#This Row],[Capacity (BTU/hr)]]/1000<=Equipment[Size High],1)), 0)+0)),"") ->  | N26: =IF(Table3[[#This Row],[Measure Version ID]]="","", INDEX(Measures[Customer Incentive ($/unit)],MATCH(Table3[[#This Row],[Measure Version ID]],Measures[Measure Version ID],0))) ->  | O26: =IF(Table3[[#This Row],[Equipment ID]]="","", INDEX(Equipment[kWh Savings Per Unit],MATCH(Table3[[#This Row],[Equipment ID]],Equipment[ID],0))) ->  | P26: =IF(Table3[[#This Row],[Equipment ID]]="","", INDEX(Equipment[kW Savings Per Unit],MATCH(Table3[[#This Row],[Equipment ID]],Equipment[ID],0))) ->  | Q26: =IF(Table3[[#This Row],[Capacity (BTU/hr)]]="","",ROUND(Table3[[#This Row],[Capacity (BTU/hr)]]/12000,1)) ->  | R26: =IF(Table3[[#This Row],[Measure Version ID]]="","",Table3[[#This Row],[Incentive Per Unit]]*Table3[[#This Row],[Capacity (Tons)]]*Table3[[#This Row],[Quantity]]) ->  | S26: =IF(OR(Table3[[#This Row],[Equipment ID]]="",Table3[[#This Row],[Capacity (BTU/hr)]]="",Table3[[#This Row],[Quantity]]=""),"",Table3[[#This Row],[kWh Savings Per Unit]]*Table3[[#This Row],[Capacity (Tons)]]*Table3[[#This Row],[Quantity]]) ->  | T26: =IF(OR(Table3[[#This Row],[Equipment ID]]="",Table3[[#This Row],[Capacity (BTU/hr)]]="",Table3[[#This Row],[Quantity]]=""),"",Table3[[#This Row],[kW Savings Per Unit]]*Table3[[#This Row],[Capacity (Tons)]]*Table3[[#This Row],[Quantity]]) ->  | U26: =IF(Table3[[#This Row],[Baseline Equipment]]="","",INDEX(BaselineEquipment[Upgrade Type],MATCH(Table3[[#This Row],[Baseline Equipment]],BaselineEquipment[Baseline Equipment],0))) -> 
C27: =ROW(Table3[[#This Row],[Baseline Equipment]])-6 -> 21 | L27: =IFERROR(IF(InstallDate="","", INDEX(Measures[Measure Version ID],MATCH(1, (Table3[[#This Row],[Upgrade Type]]=Measures[Upgrade Type])* (IFERROR(Table3[[#This Row],[Capacity (BTU/hr)]]/1000>Measures[Capacity Low (kBTU/hr)],1))* (IFERROR(Table3[[#This Row],[Capacity (BTU/hr)]]/1000<=Measures[Capacity High (kBTU/hr)],1))* (InstallDate>=Measures[Effective Start Date])* (InstallDate<=IF(Measures[Effective End Date]=0,50000,Measures[Effective End Date])), 0)+0)),"") ->  | M27: =IFERROR(IF(Table3[[#This Row],[Proposed Equipment]]="","", INDEX(Equipment[ID],MATCH(1, (BusinessType=Equipment[Facility Type])* (Table3[[#This Row],[Baseline Equipment]]=Equipment[Baseline Equipment])* (Table3[[#This Row],[Proposed Equipment]]=Equipment[Proposed Equipment])* (IFERROR(Table3[[#This Row],[Capacity (BTU/hr)]]/1000>Equipment[Size Low],1))* (IFERROR(Table3[[#This Row],[Capacity (BTU/hr)]]/1000<=Equipment[Size High],1)), 0)+0)),"") ->  | N27: =IF(Table3[[#This Row],[Measure Version ID]]="","", INDEX(Measures[Customer Incentive ($/unit)],MATCH(Table3[[#This Row],[Measure Version ID]],Measures[Measure Version ID],0))) ->  | O27: =IF(Table3[[#This Row],[Equipment ID]]="","", INDEX(Equipment[kWh Savings Per Unit],MATCH(Table3[[#This Row],[Equipment ID]],Equipment[ID],0))) ->  | P27: =IF(Table3[[#This Row],[Equipment ID]]="","", INDEX(Equipment[kW Savings Per Unit],MATCH(Table3[[#This Row],[Equipment ID]],Equipment[ID],0))) ->  | Q27: =IF(Table3[[#This Row],[Capacity (BTU/hr)]]="","",ROUND(Table3[[#This Row],[Capacity (BTU/hr)]]/12000,1)) ->  | R27: =IF(Table3[[#This Row],[Measure Version ID]]="","",Table3[[#This Row],[Incentive Per Unit]]*Table3[[#This Row],[Capacity (Tons)]]*Table3[[#This Row],[Quantity]]) ->  | S27: =IF(OR(Table3[[#This Row],[Equipment ID]]="",Table3[[#This Row],[Capacity (BTU/hr)]]="",Table3[[#This Row],[Quantity]]=""),"",Table3[[#This Row],[kWh Savings Per Unit]]*Table3[[#This Row],[Capacity (Tons)]]*Table3[[#This Row],[Quantity]]) ->  | T27: =IF(OR(Table3[[#This Row],[Equipment ID]]="",Table3[[#This Row],[Capacity (BTU/hr)]]="",Table3[[#This Row],[Quantity]]=""),"",Table3[[#This Row],[kW Savings Per Unit]]*Table3[[#This Row],[Capacity (Tons)]]*Table3[[#This Row],[Quantity]]) ->  | U27: =IF(Table3[[#This Row],[Baseline Equipment]]="","",INDEX(BaselineEquipment[Upgrade Type],MATCH(Table3[[#This Row],[Baseline Equipment]],BaselineEquipment[Baseline Equipment],0))) -> 
C28: =ROW(Table3[[#This Row],[Baseline Equipment]])-6 -> 22 | L28: =IFERROR(IF(InstallDate="","", INDEX(Measures[Measure Version ID],MATCH(1, (Table3[[#This Row],[Upgrade Type]]=Measures[Upgrade Type])* (IFERROR(Table3[[#This Row],[Capacity (BTU/hr)]]/1000>Measures[Capacity Low (kBTU/hr)],1))* (IFERROR(Table3[[#This Row],[Capacity (BTU/hr)]]/1000<=Measures[Capacity High (kBTU/hr)],1))* (InstallDate>=Measures[Effective Start Date])* (InstallDate<=IF(Measures[Effective End Date]=0,50000,Measures[Effective End Date])), 0)+0)),"") ->  | M28: =IFERROR(IF(Table3[[#This Row],[Proposed Equipment]]="","", INDEX(Equipment[ID],MATCH(1, (BusinessType=Equipment[Facility Type])* (Table3[[#This Row],[Baseline Equipment]]=Equipment[Baseline Equipment])* (Table3[[#This Row],[Proposed Equipment]]=Equipment[Proposed Equipment])* (IFERROR(Table3[[#This Row],[Capacity (BTU/hr)]]/1000>Equipment[Size Low],1))* (IFERROR(Table3[[#This Row],[Capacity (BTU/hr)]]/1000<=Equipment[Size High],1)), 0)+0)),"") ->  | N28: =IF(Table3[[#This Row],[Measure Version ID]]="","", INDEX(Measures[Customer Incentive ($/unit)],MATCH(Table3[[#This Row],[Measure Version ID]],Measures[Measure Version ID],0))) ->  | O28: =IF(Table3[[#This Row],[Equipment ID]]="","", INDEX(Equipment[kWh Savings Per Unit],MATCH(Table3[[#This Row],[Equipment ID]],Equipment[ID],0))) ->  | P28: =IF(Table3[[#This Row],[Equipment ID]]="","", INDEX(Equipment[kW Savings Per Unit],MATCH(Table3[[#This Row],[Equipment ID]],Equipment[ID],0))) ->  | Q28: =IF(Table3[[#This Row],[Capacity (BTU/hr)]]="","",ROUND(Table3[[#This Row],[Capacity (BTU/hr)]]/12000,1)) ->  | R28: =IF(Table3[[#This Row],[Measure Version ID]]="","",Table3[[#This Row],[Incentive Per Unit]]*Table3[[#This Row],[Capacity (Tons)]]*Table3[[#This Row],[Quantity]]) ->  | S28: =IF(OR(Table3[[#This Row],[Equipment ID]]="",Table3[[#This Row],[Capacity (BTU/hr)]]="",Table3[[#This Row],[Quantity]]=""),"",Table3[[#This Row],[kWh Savings Per Unit]]*Table3[[#This Row],[Capacity (Tons)]]*Table3[[#This Row],[Quantity]]) ->  | T28: =IF(OR(Table3[[#This Row],[Equipment ID]]="",Table3[[#This Row],[Capacity (BTU/hr)]]="",Table3[[#This Row],[Quantity]]=""),"",Table3[[#This Row],[kW Savings Per Unit]]*Table3[[#This Row],[Capacity (Tons)]]*Table3[[#This Row],[Quantity]]) ->  | U28: =IF(Table3[[#This Row],[Baseline Equipment]]="","",INDEX(BaselineEquipment[Upgrade Type],MATCH(Table3[[#This Row],[Baseline Equipment]],BaselineEquipment[Baseline Equipment],0))) -> 
C29: =ROW(Table3[[#This Row],[Baseline Equipment]])-6 -> 23 | L29: =IFERROR(IF(InstallDate="","", INDEX(Measures[Measure Version ID],MATCH(1, (Table3[[#This Row],[Upgrade Type]]=Measures[Upgrade Type])* (IFERROR(Table3[[#This Row],[Capacity (BTU/hr)]]/1000>Measures[Capacity Low (kBTU/hr)],1))* (IFERROR(Table3[[#This Row],[Capacity (BTU/hr)]]/1000<=Measures[Capacity High (kBTU/hr)],1))* (InstallDate>=Measures[Effective Start Date])* (InstallDate<=IF(Measures[Effective End Date]=0,50000,Measures[Effective End Date])), 0)+0)),"") ->  | M29: =IFERROR(IF(Table3[[#This Row],[Proposed Equipment]]="","", INDEX(Equipment[ID],MATCH(1, (BusinessType=Equipment[Facility Type])* (Table3[[#This Row],[Baseline Equipment]]=Equipment[Baseline Equipment])* (Table3[[#This Row],[Proposed Equipment]]=Equipment[Proposed Equipment])* (IFERROR(Table3[[#This Row],[Capacity (BTU/hr)]]/1000>Equipment[Size Low],1))* (IFERROR(Table3[[#This Row],[Capacity (BTU/hr)]]/1000<=Equipment[Size High],1)), 0)+0)),"") ->  | N29: =IF(Table3[[#This Row],[Measure Version ID]]="","", INDEX(Measures[Customer Incentive ($/unit)],MATCH(Table3[[#This Row],[Measure Version ID]],Measures[Measure Version ID],0))) ->  | O29: =IF(Table3[[#This Row],[Equipment ID]]="","", INDEX(Equipment[kWh Savings Per Unit],MATCH(Table3[[#This Row],[Equipment ID]],Equipment[ID],0))) ->  | P29: =IF(Table3[[#This Row],[Equipment ID]]="","", INDEX(Equipment[kW Savings Per Unit],MATCH(Table3[[#This Row],[Equipment ID]],Equipment[ID],0))) ->  | Q29: =IF(Table3[[#This Row],[Capacity (BTU/hr)]]="","",ROUND(Table3[[#This Row],[Capacity (BTU/hr)]]/12000,1)) ->  | R29: =IF(Table3[[#This Row],[Measure Version ID]]="","",Table3[[#This Row],[Incentive Per Unit]]*Table3[[#This Row],[Capacity (Tons)]]*Table3[[#This Row],[Quantity]]) ->  | S29: =IF(OR(Table3[[#This Row],[Equipment ID]]="",Table3[[#This Row],[Capacity (BTU/hr)]]="",Table3[[#This Row],[Quantity]]=""),"",Table3[[#This Row],[kWh Savings Per Unit]]*Table3[[#This Row],[Capacity (Tons)]]*Table3[[#This Row],[Quantity]]) ->  | T29: =IF(OR(Table3[[#This Row],[Equipment ID]]="",Table3[[#This Row],[Capacity (BTU/hr)]]="",Table3[[#This Row],[Quantity]]=""),"",Table3[[#This Row],[kW Savings Per Unit]]*Table3[[#This Row],[Capacity (Tons)]]*Table3[[#This Row],[Quantity]]) ->  | U29: =IF(Table3[[#This Row],[Baseline Equipment]]="","",INDEX(BaselineEquipment[Upgrade Type],MATCH(Table3[[#This Row],[Baseline Equipment]],BaselineEquipment[Baseline Equipment],0))) -> 
C30: =ROW(Table3[[#This Row],[Baseline Equipment]])-6 -> 24 | L30: =IFERROR(IF(InstallDate="","", INDEX(Measures[Measure Version ID],MATCH(1, (Table3[[#This Row],[Upgrade Type]]=Measures[Upgrade Type])* (IFERROR(Table3[[#This Row],[Capacity (BTU/hr)]]/1000>Measures[Capacity Low (kBTU/hr)],1))* (IFERROR(Table3[[#This Row],[Capacity (BTU/hr)]]/1000<=Measures[Capacity High (kBTU/hr)],1))* (InstallDate>=Measures[Effective Start Date])* (InstallDate<=IF(Measures[Effective End Date]=0,50000,Measures[Effective End Date])), 0)+0)),"") ->  | M30: =IFERROR(IF(Table3[[#This Row],[Proposed Equipment]]="","", INDEX(Equipment[ID],MATCH(1, (BusinessType=Equipment[Facility Type])* (Table3[[#This Row],[Baseline Equipment]]=Equipment[Baseline Equipment])* (Table3[[#This Row],[Proposed Equipment]]=Equipment[Proposed Equipment])* (IFERROR(Table3[[#This Row],[Capacity (BTU/hr)]]/1000>Equipment[Size Low],1))* (IFERROR(Table3[[#This Row],[Capacity (BTU/hr)]]/1000<=Equipment[Size High],1)), 0)+0)),"") ->  | N30: =IF(Table3[[#This Row],[Measure Version ID]]="","", INDEX(Measures[Customer Incentive ($/unit)],MATCH(Table3[[#This Row],[Measure Version ID]],Measures[Measure Version ID],0))) ->  | O30: =IF(Table3[[#This Row],[Equipment ID]]="","", INDEX(Equipment[kWh Savings Per Unit],MATCH(Table3[[#This Row],[Equipment ID]],Equipment[ID],0))) ->  | P30: =IF(Table3[[#This Row],[Equipment ID]]="","", INDEX(Equipment[kW Savings Per Unit],MATCH(Table3[[#This Row],[Equipment ID]],Equipment[ID],0))) ->  | Q30: =IF(Table3[[#This Row],[Capacity (BTU/hr)]]="","",ROUND(Table3[[#This Row],[Capacity (BTU/hr)]]/12000,1)) ->  | R30: =IF(Table3[[#This Row],[Measure Version ID]]="","",Table3[[#This Row],[Incentive Per Unit]]*Table3[[#This Row],[Capacity (Tons)]]*Table3[[#This Row],[Quantity]]) ->  | S30: =IF(OR(Table3[[#This Row],[Equipment ID]]="",Table3[[#This Row],[Capacity (BTU/hr)]]="",Table3[[#This Row],[Quantity]]=""),"",Table3[[#This Row],[kWh Savings Per Unit]]*Table3[[#This Row],[Capacity (Tons)]]*Table3[[#This Row],[Quantity]]) ->  | T30: =IF(OR(Table3[[#This Row],[Equipment ID]]="",Table3[[#This Row],[Capacity (BTU/hr)]]="",Table3[[#This Row],[Quantity]]=""),"",Table3[[#This Row],[kW Savings Per Unit]]*Table3[[#This Row],[Capacity (Tons)]]*Table3[[#This Row],[Quantity]]) ->  | U30: =IF(Table3[[#This Row],[Baseline Equipment]]="","",INDEX(BaselineEquipment[Upgrade Type],MATCH(Table3[[#This Row],[Baseline Equipment]],BaselineEquipment[Baseline Equipment],0))) -> 
C31: =ROW(Table3[[#This Row],[Baseline Equipment]])-6 -> 25 | L31: =IFERROR(IF(InstallDate="","", INDEX(Measures[Measure Version ID],MATCH(1, (Table3[[#This Row],[Upgrade Type]]=Measures[Upgrade Type])* (IFERROR(Table3[[#This Row],[Capacity (BTU/hr)]]/1000>Measures[Capacity Low (kBTU/hr)],1))* (IFERROR(Table3[[#This Row],[Capacity (BTU/hr)]]/1000<=Measures[Capacity High (kBTU/hr)],1))* (InstallDate>=Measures[Effective Start Date])* (InstallDate<=IF(Measures[Effective End Date]=0,50000,Measures[Effective End Date])), 0)+0)),"") ->  | M31: =IFERROR(IF(Table3[[#This Row],[Proposed Equipment]]="","", INDEX(Equipment[ID],MATCH(1, (BusinessType=Equipment[Facility Type])* (Table3[[#This Row],[Baseline Equipment]]=Equipment[Baseline Equipment])* (Table3[[#This Row],[Proposed Equipment]]=Equipment[Proposed Equipment])* (IFERROR(Table3[[#This Row],[Capacity (BTU/hr)]]/1000>Equipment[Size Low],1))* (IFERROR(Table3[[#This Row],[Capacity (BTU/hr)]]/1000<=Equipment[Size High],1)), 0)+0)),"") ->  | N31: =IF(Table3[[#This Row],[Measure Version ID]]="","", INDEX(Measures[Customer Incentive ($/unit)],MATCH(Table3[[#This Row],[Measure Version ID]],Measures[Measure Version ID],0))) ->  | O31: =IF(Table3[[#This Row],[Equipment ID]]="","", INDEX(Equipment[kWh Savings Per Unit],MATCH(Table3[[#This Row],[Equipment ID]],Equipment[ID],0))) ->  | P31: =IF(Table3[[#This Row],[Equipment ID]]="","", INDEX(Equipment[kW Savings Per Unit],MATCH(Table3[[#This Row],[Equipment ID]],Equipment[ID],0))) ->  | Q31: =IF(Table3[[#This Row],[Capacity (BTU/hr)]]="","",ROUND(Table3[[#This Row],[Capacity (BTU/hr)]]/12000,1)) ->  | R31: =IF(Table3[[#This Row],[Measure Version ID]]="","",Table3[[#This Row],[Incentive Per Unit]]*Table3[[#This Row],[Capacity (Tons)]]*Table3[[#This Row],[Quantity]]) ->  | S31: =IF(OR(Table3[[#This Row],[Equipment ID]]="",Table3[[#This Row],[Capacity (BTU/hr)]]="",Table3[[#This Row],[Quantity]]=""),"",Table3[[#This Row],[kWh Savings Per Unit]]*Table3[[#This Row],[Capacity (Tons)]]*Table3[[#This Row],[Quantity]]) ->  | T31: =IF(OR(Table3[[#This Row],[Equipment ID]]="",Table3[[#This Row],[Capacity (BTU/hr)]]="",Table3[[#This Row],[Quantity]]=""),"",Table3[[#This Row],[kW Savings Per Unit]]*Table3[[#This Row],[Capacity (Tons)]]*Table3[[#This Row],[Quantity]]) ->  | U31: =IF(Table3[[#This Row],[Baseline Equipment]]="","",INDEX(BaselineEquipment[Upgrade Type],MATCH(Table3[[#This Row],[Baseline Equipment]],BaselineEquipment[Baseline Equipment],0))) -> 
C32: =ROW(Table3[[#This Row],[Baseline Equipment]])-6 -> 26 | L32: =IFERROR(IF(InstallDate="","", INDEX(Measures[Measure Version ID],MATCH(1, (Table3[[#This Row],[Upgrade Type]]=Measures[Upgrade Type])* (IFERROR(Table3[[#This Row],[Capacity (BTU/hr)]]/1000>Measures[Capacity Low (kBTU/hr)],1))* (IFERROR(Table3[[#This Row],[Capacity (BTU/hr)]]/1000<=Measures[Capacity High (kBTU/hr)],1))* (InstallDate>=Measures[Effective Start Date])* (InstallDate<=IF(Measures[Effective End Date]=0,50000,Measures[Effective End Date])), 0)+0)),"") ->  | M32: =IFERROR(IF(Table3[[#This Row],[Proposed Equipment]]="","", INDEX(Equipment[ID],MATCH(1, (BusinessType=Equipment[Facility Type])* (Table3[[#This Row],[Baseline Equipment]]=Equipment[Baseline Equipment])* (Table3[[#This Row],[Proposed Equipment]]=Equipment[Proposed Equipment])* (IFERROR(Table3[[#This Row],[Capacity (BTU/hr)]]/1000>Equipment[Size Low],1))* (IFERROR(Table3[[#This Row],[Capacity (BTU/hr)]]/1000<=Equipment[Size High],1)), 0)+0)),"") ->  | N32: =IF(Table3[[#This Row],[Measure Version ID]]="","", INDEX(Measures[Customer Incentive ($/unit)],MATCH(Table3[[#This Row],[Measure Version ID]],Measures[Measure Version ID],0))) ->  | O32: =IF(Table3[[#This Row],[Equipment ID]]="","", INDEX(Equipment[kWh Savings Per Unit],MATCH(Table3[[#This Row],[Equipment ID]],Equipment[ID],0))) ->  | P32: =IF(Table3[[#This Row],[Equipment ID]]="","", INDEX(Equipment[kW Savings Per Unit],MATCH(Table3[[#This Row],[Equipment ID]],Equipment[ID],0))) ->  | Q32: =IF(Table3[[#This Row],[Capacity (BTU/hr)]]="","",ROUND(Table3[[#This Row],[Capacity (BTU/hr)]]/12000,1)) ->  | R32: =IF(Table3[[#This Row],[Measure Version ID]]="","",Table3[[#This Row],[Incentive Per Unit]]*Table3[[#This Row],[Capacity (Tons)]]*Table3[[#This Row],[Quantity]]) ->  | S32: =IF(OR(Table3[[#This Row],[Equipment ID]]="",Table3[[#This Row],[Capacity (BTU/hr)]]="",Table3[[#This Row],[Quantity]]=""),"",Table3[[#This Row],[kWh Savings Per Unit]]*Table3[[#This Row],[Capacity (Tons)]]*Table3[[#This Row],[Quantity]]) ->  | T32: =IF(OR(Table3[[#This Row],[Equipment ID]]="",Table3[[#This Row],[Capacity (BTU/hr)]]="",Table3[[#This Row],[Quantity]]=""),"",Table3[[#This Row],[kW Savings Per Unit]]*Table3[[#This Row],[Capacity (Tons)]]*Table3[[#This Row],[Quantity]]) ->  | U32: =IF(Table3[[#This Row],[Baseline Equipment]]="","",INDEX(BaselineEquipment[Upgrade Type],MATCH(Table3[[#This Row],[Baseline Equipment]],BaselineEquipment[Baseline Equipment],0))) -> 
C33: =ROW(Table3[[#This Row],[Baseline Equipment]])-6 -> 27 | L33: =IFERROR(IF(InstallDate="","", INDEX(Measures[Measure Version ID],MATCH(1, (Table3[[#This Row],[Upgrade Type]]=Measures[Upgrade Type])* (IFERROR(Table3[[#This Row],[Capacity (BTU/hr)]]/1000>Measures[Capacity Low (kBTU/hr)],1))* (IFERROR(Table3[[#This Row],[Capacity (BTU/hr)]]/1000<=Measures[Capacity High (kBTU/hr)],1))* (InstallDate>=Measures[Effective Start Date])* (InstallDate<=IF(Measures[Effective End Date]=0,50000,Measures[Effective End Date])), 0)+0)),"") ->  | M33: =IFERROR(IF(Table3[[#This Row],[Proposed Equipment]]="","", INDEX(Equipment[ID],MATCH(1, (BusinessType=Equipment[Facility Type])* (Table3[[#This Row],[Baseline Equipment]]=Equipment[Baseline Equipment])* (Table3[[#This Row],[Proposed Equipment]]=Equipment[Proposed Equipment])* (IFERROR(Table3[[#This Row],[Capacity (BTU/hr)]]/1000>Equipment[Size Low],1))* (IFERROR(Table3[[#This Row],[Capacity (BTU/hr)]]/1000<=Equipment[Size High],1)), 0)+0)),"") ->  | N33: =IF(Table3[[#This Row],[Measure Version ID]]="","", INDEX(Measures[Customer Incentive ($/unit)],MATCH(Table3[[#This Row],[Measure Version ID]],Measures[Measure Version ID],0))) ->  | O33: =IF(Table3[[#This Row],[Equipment ID]]="","", INDEX(Equipment[kWh Savings Per Unit],MATCH(Table3[[#This Row],[Equipment ID]],Equipment[ID],0))) ->  | P33: =IF(Table3[[#This Row],[Equipment ID]]="","", INDEX(Equipment[kW Savings Per Unit],MATCH(Table3[[#This Row],[Equipment ID]],Equipment[ID],0))) ->  | Q33: =IF(Table3[[#This Row],[Capacity (BTU/hr)]]="","",ROUND(Table3[[#This Row],[Capacity (BTU/hr)]]/12000,1)) ->  | R33: =IF(Table3[[#This Row],[Measure Version ID]]="","",Table3[[#This Row],[Incentive Per Unit]]*Table3[[#This Row],[Capacity (Tons)]]*Table3[[#This Row],[Quantity]]) ->  | S33: =IF(OR(Table3[[#This Row],[Equipment ID]]="",Table3[[#This Row],[Capacity (BTU/hr)]]="",Table3[[#This Row],[Quantity]]=""),"",Table3[[#This Row],[kWh Savings Per Unit]]*Table3[[#This Row],[Capacity (Tons)]]*Table3[[#This Row],[Quantity]]) ->  | T33: =IF(OR(Table3[[#This Row],[Equipment ID]]="",Table3[[#This Row],[Capacity (BTU/hr)]]="",Table3[[#This Row],[Quantity]]=""),"",Table3[[#This Row],[kW Savings Per Unit]]*Table3[[#This Row],[Capacity (Tons)]]*Table3[[#This Row],[Quantity]]) ->  | U33: =IF(Table3[[#This Row],[Baseline Equipment]]="","",INDEX(BaselineEquipment[Upgrade Type],MATCH(Table3[[#This Row],[Baseline Equipment]],BaselineEquipment[Baseline Equipment],0))) -> 
C34: =ROW(Table3[[#This Row],[Baseline Equipment]])-6 -> 28 | L34: =IFERROR(IF(InstallDate="","", INDEX(Measures[Measure Version ID],MATCH(1, (Table3[[#This Row],[Upgrade Type]]=Measures[Upgrade Type])* (IFERROR(Table3[[#This Row],[Capacity (BTU/hr)]]/1000>Measures[Capacity Low (kBTU/hr)],1))* (IFERROR(Table3[[#This Row],[Capacity (BTU/hr)]]/1000<=Measures[Capacity High (kBTU/hr)],1))* (InstallDate>=Measures[Effective Start Date])* (InstallDate<=IF(Measures[Effective End Date]=0,50000,Measures[Effective End Date])), 0)+0)),"") ->  | M34: =IFERROR(IF(Table3[[#This Row],[Proposed Equipment]]="","", INDEX(Equipment[ID],MATCH(1, (BusinessType=Equipment[Facility Type])* (Table3[[#This Row],[Baseline Equipment]]=Equipment[Baseline Equipment])* (Table3[[#This Row],[Proposed Equipment]]=Equipment[Proposed Equipment])* (IFERROR(Table3[[#This Row],[Capacity (BTU/hr)]]/1000>Equipment[Size Low],1))* (IFERROR(Table3[[#This Row],[Capacity (BTU/hr)]]/1000<=Equipment[Size High],1)), 0)+0)),"") ->  | N34: =IF(Table3[[#This Row],[Measure Version ID]]="","", INDEX(Measures[Customer Incentive ($/unit)],MATCH(Table3[[#This Row],[Measure Version ID]],Measures[Measure Version ID],0))) ->  | O34: =IF(Table3[[#This Row],[Equipment ID]]="","", INDEX(Equipment[kWh Savings Per Unit],MATCH(Table3[[#This Row],[Equipment ID]],Equipment[ID],0))) ->  | P34: =IF(Table3[[#This Row],[Equipment ID]]="","", INDEX(Equipment[kW Savings Per Unit],MATCH(Table3[[#This Row],[Equipment ID]],Equipment[ID],0))) ->  | Q34: =IF(Table3[[#This Row],[Capacity (BTU/hr)]]="","",ROUND(Table3[[#This Row],[Capacity (BTU/hr)]]/12000,1)) ->  | R34: =IF(Table3[[#This Row],[Measure Version ID]]="","",Table3[[#This Row],[Incentive Per Unit]]*Table3[[#This Row],[Capacity (Tons)]]*Table3[[#This Row],[Quantity]]) ->  | S34: =IF(OR(Table3[[#This Row],[Equipment ID]]="",Table3[[#This Row],[Capacity (BTU/hr)]]="",Table3[[#This Row],[Quantity]]=""),"",Table3[[#This Row],[kWh Savings Per Unit]]*Table3[[#This Row],[Capacity (Tons)]]*Table3[[#This Row],[Quantity]]) ->  | T34: =IF(OR(Table3[[#This Row],[Equipment ID]]="",Table3[[#This Row],[Capacity (BTU/hr)]]="",Table3[[#This Row],[Quantity]]=""),"",Table3[[#This Row],[kW Savings Per Unit]]*Table3[[#This Row],[Capacity (Tons)]]*Table3[[#This Row],[Quantity]]) ->  | U34: =IF(Table3[[#This Row],[Baseline Equipment]]="","",INDEX(BaselineEquipment[Upgrade Type],MATCH(Table3[[#This Row],[Baseline Equipment]],BaselineEquipment[Baseline Equipment],0))) -> 
C35: =ROW(Table3[[#This Row],[Baseline Equipment]])-6 -> 29 | L35: =IFERROR(IF(InstallDate="","", INDEX(Measures[Measure Version ID],MATCH(1, (Table3[[#This Row],[Upgrade Type]]=Measures[Upgrade Type])* (IFERROR(Table3[[#This Row],[Capacity (BTU/hr)]]/1000>Measures[Capacity Low (kBTU/hr)],1))* (IFERROR(Table3[[#This Row],[Capacity (BTU/hr)]]/1000<=Measures[Capacity High (kBTU/hr)],1))* (InstallDate>=Measures[Effective Start Date])* (InstallDate<=IF(Measures[Effective End Date]=0,50000,Measures[Effective End Date])), 0)+0)),"") ->  | M35: =IFERROR(IF(Table3[[#This Row],[Proposed Equipment]]="","", INDEX(Equipment[ID],MATCH(1, (BusinessType=Equipment[Facility Type])* (Table3[[#This Row],[Baseline Equipment]]=Equipment[Baseline Equipment])* (Table3[[#This Row],[Proposed Equipment]]=Equipment[Proposed Equipment])* (IFERROR(Table3[[#This Row],[Capacity (BTU/hr)]]/1000>Equipment[Size Low],1))* (IFERROR(Table3[[#This Row],[Capacity (BTU/hr)]]/1000<=Equipment[Size High],1)), 0)+0)),"") ->  | N35: =IF(Table3[[#This Row],[Measure Version ID]]="","", INDEX(Measures[Customer Incentive ($/unit)],MATCH(Table3[[#This Row],[Measure Version ID]],Measures[Measure Version ID],0))) ->  | O35: =IF(Table3[[#This Row],[Equipment ID]]="","", INDEX(Equipment[kWh Savings Per Unit],MATCH(Table3[[#This Row],[Equipment ID]],Equipment[ID],0))) ->  | P35: =IF(Table3[[#This Row],[Equipment ID]]="","", INDEX(Equipment[kW Savings Per Unit],MATCH(Table3[[#This Row],[Equipment ID]],Equipment[ID],0))) ->  | Q35: =IF(Table3[[#This Row],[Capacity (BTU/hr)]]="","",ROUND(Table3[[#This Row],[Capacity (BTU/hr)]]/12000,1)) ->  | R35: =IF(Table3[[#This Row],[Measure Version ID]]="","",Table3[[#This Row],[Incentive Per Unit]]*Table3[[#This Row],[Capacity (Tons)]]*Table3[[#This Row],[Quantity]]) ->  | S35: =IF(OR(Table3[[#This Row],[Equipment ID]]="",Table3[[#This Row],[Capacity (BTU/hr)]]="",Table3[[#This Row],[Quantity]]=""),"",Table3[[#This Row],[kWh Savings Per Unit]]*Table3[[#This Row],[Capacity (Tons)]]*Table3[[#This Row],[Quantity]]) ->  | T35: =IF(OR(Table3[[#This Row],[Equipment ID]]="",Table3[[#This Row],[Capacity (BTU/hr)]]="",Table3[[#This Row],[Quantity]]=""),"",Table3[[#This Row],[kW Savings Per Unit]]*Table3[[#This Row],[Capacity (Tons)]]*Table3[[#This Row],[Quantity]]) ->  | U35: =IF(Table3[[#This Row],[Baseline Equipment]]="","",INDEX(BaselineEquipment[Upgrade Type],MATCH(Table3[[#This Row],[Baseline Equipment]],BaselineEquipment[Baseline Equipment],0))) -> 
C36: =ROW(Table3[[#This Row],[Baseline Equipment]])-6 -> 30 | L36: =IFERROR(IF(InstallDate="","", INDEX(Measures[Measure Version ID],MATCH(1, (Table3[[#This Row],[Upgrade Type]]=Measures[Upgrade Type])* (IFERROR(Table3[[#This Row],[Capacity (BTU/hr)]]/1000>Measures[Capacity Low (kBTU/hr)],1))* (IFERROR(Table3[[#This Row],[Capacity (BTU/hr)]]/1000<=Measures[Capacity High (kBTU/hr)],1))* (InstallDate>=Measures[Effective Start Date])* (InstallDate<=IF(Measures[Effective End Date]=0,50000,Measures[Effective End Date])), 0)+0)),"") ->  | M36: =IFERROR(IF(Table3[[#This Row],[Proposed Equipment]]="","", INDEX(Equipment[ID],MATCH(1, (BusinessType=Equipment[Facility Type])* (Table3[[#This Row],[Baseline Equipment]]=Equipment[Baseline Equipment])* (Table3[[#This Row],[Proposed Equipment]]=Equipment[Proposed Equipment])* (IFERROR(Table3[[#This Row],[Capacity (BTU/hr)]]/1000>Equipment[Size Low],1))* (IFERROR(Table3[[#This Row],[Capacity (BTU/hr)]]/1000<=Equipment[Size High],1)), 0)+0)),"") ->  | N36: =IF(Table3[[#This Row],[Measure Version ID]]="","", INDEX(Measures[Customer Incentive ($/unit)],MATCH(Table3[[#This Row],[Measure Version ID]],Measures[Measure Version ID],0))) ->  | O36: =IF(Table3[[#This Row],[Equipment ID]]="","", INDEX(Equipment[kWh Savings Per Unit],MATCH(Table3[[#This Row],[Equipment ID]],Equipment[ID],0))) ->  | P36: =IF(Table3[[#This Row],[Equipment ID]]="","", INDEX(Equipment[kW Savings Per Unit],MATCH(Table3[[#This Row],[Equipment ID]],Equipment[ID],0))) ->  | Q36: =IF(Table3[[#This Row],[Capacity (BTU/hr)]]="","",ROUND(Table3[[#This Row],[Capacity (BTU/hr)]]/12000,1)) ->  | R36: =IF(Table3[[#This Row],[Measure Version ID]]="","",Table3[[#This Row],[Incentive Per Unit]]*Table3[[#This Row],[Capacity (Tons)]]*Table3[[#This Row],[Quantity]]) ->  | S36: =IF(OR(Table3[[#This Row],[Equipment ID]]="",Table3[[#This Row],[Capacity (BTU/hr)]]="",Table3[[#This Row],[Quantity]]=""),"",Table3[[#This Row],[kWh Savings Per Unit]]*Table3[[#This Row],[Capacity (Tons)]]*Table3[[#This Row],[Quantity]]) ->  | T36: =IF(OR(Table3[[#This Row],[Equipment ID]]="",Table3[[#This Row],[Capacity (BTU/hr)]]="",Table3[[#This Row],[Quantity]]=""),"",Table3[[#This Row],[kW Savings Per Unit]]*Table3[[#This Row],[Capacity (Tons)]]*Table3[[#This Row],[Quantity]]) ->  | U36: =IF(Table3[[#This Row],[Baseline Equipment]]="","",INDEX(BaselineEquipment[Upgrade Type],MATCH(Table3[[#This Row],[Baseline Equipment]],BaselineEquipment[Baseline Equipment],0))) -> 

Sheet HVAC (hidden)
A1: =IF(H9="","",IF(OR(H9="UT",H9="ID",H9="WY"),2,1)) -> 2 | B1: RMP or PP | BF1: Lookup Tables Do Not Change
D2: This sheet used for calculations | U2: Version: | BG2: HVAC Type | BH2: System Type | BI2: Phase | BJ2: Eff2 | BK2: DB/WB
U3: =INDEX(CurrentVersion_List,MATCH("a",CurrentVersionSelected_List,0)) -> 4012025.1 | AE3: Effective Dates | AF3: Tariff | AG3: Tool | AW3: 1 | AX3: ID | AY3: RMP | AZ3: Rate Lookups | BB3: Simplified Rate Table For FinAnswer Express | BH3: Split (1 Phase) | BI3: 1 | BJ3: IPLV | BK3: 47/43 | BL3: =$H$9 -> UT | CB3: PTAC Calcs from Deemed Savings | CD3: PTAC | CG3: Incentive $/Ton
B4: Date | D4: =AY10 -> 2026-02-09 | E4: =IF(H9="","","Calculator results are in accordance with the tariff effective "&VLOOKUP(H9,TariffTable,2,FALSE)) -> Calculator results are in accordance with the tariff effective November 15, 2024 | S4: Project # | T4: =ProjectNumber ->  | AE4: CA | AF4: January 1, 2023 | AW4: 2 | AX4: UT | BH4: Package (1 Phase) | BI4: 3 | BJ4: SEER | BK4: 17/15 | BL4: =IF($BL$3="UT",1,IF($BL$3="WA",2,IF($BL$3="CA",3,IF($BL$3="ID",4,IF($BL$3="WY",5,0))))) -> 1 | BR4: =IF($BL$4=0,0,OFFSET(BR4,$BL$5*$BL$4,0)) -> Code | BS4: EFLCH | BT4: EFLHH | BU4: NTG | BV4: CF | BW4: Cooling Months | CD4: Cost | CE4: kW/Unit | CF4: Gross kWh/yr | CK4: Incentive
B5: Project/Customer Information (Optional) | L5: Incentive Payee Information (Optional) | AE5: ID | AF5: March 15, 2023 | AG5: 2023-03-15 | AW5: 3 | AX5: WY | BH5: Split (3 Phase) | BI5: HSPF | BJ5: IEER | BL5: 61 | BR5: IECC 2018, Tables C403.2.3(1) & C403.2.3(2) | BT5: =IF($BL$4=0,0,OFFSET(BT5,$BL$5*$BL$4,0)) ->  | BU5: 1 | BV5: 1 | BW5: 5 | CD5: =IF($BL$4=0,0,OFFSET(CD5,$BL$5*$BL$4,0)) -> 200 | CE5: =IF($BL$4=0,0,OFFSET(CE5,$BL$5*$BL$4,0)) -> 0.098 | CF5: =IF($BL$4=0,0,OFFSET(CF5,$BL$5*$BL$4,0)) -> 400 | CG5: =IF($BL$4=0,0,OFFSET(CG5,$BL$5*$BL$4,0)) -> 50 | CK5: Tier | CL5: =BS6 -> 1 | CM5: =BU6 -> 25
B6: Project Name | D6: =ProjectName -> 0 | L6: Attention | AE6: UT | AF6: November 15, 2024 | AG6: 2024-11-15 | AW6: 4 | AX6: CA | AY6: PP | BB6: =CONCATENATE(AT8, " Ave Secondary rates except where noted") -> Updated 3/31/2025 Ave Secondary rates except where noted | BH6: Package (3 Phase) | BI6: COP | BL6: Baseline | BO6: 0 | BP6: =BV6 -> per ton | BR6: =IF($BL$4=0,0,OFFSET(BR6,$BL$5*$BL$4,0)) -> Tier | BS6: =IF($BL$4=0,0,OFFSET(BS6,$BL$5*$BL$4,0)) -> 1 | BU6: =IF($BL$4=0,0,OFFSET(BU6,$BL$5*$BL$4,0)) -> 25 | BV6: =IF($BL$4=0,0,OFFSET(BV6,$BL$5*$BL$4,0)) -> per ton | BX6: =IF($BL$4=0,0,OFFSET(BX6,$BL$5*$BL$4,0)) -> Tier | BY6: =IF($BL$4=0,0,OFFSET(BY6,$BL$5*$BL$4,0)) -> 2 | CA6: =IF($BL$4=0,0,OFFSET(CA6,$BL$5*$BL$4,0)) -> 50 | CB6: =IF($BL$4=0,0,OFFSET(CB6,$BL$5*$BL$4,0)) -> per ton | CD6: =IF($BL$4=0,0,OFFSET(CD6,$BL$5*$BL$4,0)) -> Tier | CE6: =IF($BL$4=0,0,OFFSET(CE6,$BL$5*$BL$4,0)) -> 3 | CG6: =IF($BL$4=0,0,OFFSET(CG6,$BL$5*$BL$4,0)) -> 75 | CH6: =IF($BL$4=0,0,OFFSET(CH6,$BL$5*$BL$4,0)) -> per ton | CK6: Tier | CL6: =BY6 -> 2 | CM6: =CA6 -> 50
B7: Business Name | D7: =CustomerBusinessName -> 0 | L7: Business Name | O7: =PayeeBusinessName -> 0 | AE7: WA | AF7: July 1, 2023 | AG7: 2023-07-01 | AW7: 5 | AX7: WA | BL7: Cooling | BO7: Heating | BR7: Cooling | BU7: Heating | BW7: Gross Incremental Cost/Ton | BX7: Cooling | CA7: Heating | CC7: Gross Incremental Cost/Ton | CD7: Cooling | CG7: Heating | CI7: Gross Incremental Cost/Ton | CK7: Tier | CL7: =CE6 -> 3 | CM7: =CG6 -> 75
B8: Address | D8: =InstallAddress -> 0 | L8: Address | O8: =PayeeAddress -> 0 | AE8: WY | AF8: March 15, 2023 | AG8: 2023-03-15 | AT8: Updated 3/31/2025 | AW8: 6 | AX8: AK | AY8: Required Filled out | BB8: State | BC8: Cost | BJ8: Size (BTU/Hr or CFM) | BL8: EER | BM8: SEER IPLV | BN8: IEER | BO8: HSPF COP @ DB/WB | BR8: EER | BS8: SEER IPLV | BT8: IEER | BU8: HSPF COP @ DB/WB | BX8: EER | BY8: SEER IPLV | BZ8: IEER | CA8: HSPF COP @ DB/WB | CD8: EER | CE8: SEER IPLV | CF8: IEER | CG8: HSPF COP @ DB/WB
B9: City | D9: =InstallCity -> 0 | G9: State | H9: =InstallState -> UT | I9: Zip | J9: =InstallZip -> 0 | L9: City | O9: =PayeeCity -> 0 | R9: State | S9: =PayeeState -> 0 | T9: Zip | U9: =PayeeZip -> 0 | AT9: Rates Effective as of: | AW9: 7 | AX9: AL | AY9: =IF(F12="Project Name, State, and Rate are Required.",FALSE,TRUE) -> TRUE | BC9: =IF($H$9="","",VLOOKUP($H$9&" "&$J$11,$BB$11:$BD$67,2,0)) ->  | BD9: =IF($H$9="","",IF(VLOOKUP($H$9&" "&$J$11,$BB$11:$BD$67,3,0)=0,0,VLOOKUP($H$9&" "&$J$11,$BB$12:$BD$67,3,0))) ->  | BG9: Equip Type | BH9: Category | BI9: Phase | BJ9: Min | BK9: Max | BO9: 47/43 | BP9: 17/15 | BU9: 47/43 | BV9: 17/15 | CA9: 47/43 | CB9: 17/15 | CG9: 47/43 | CH9: 17/15 | CK9: HVAC Type_140 | CN9: HVAC Type_115
B10: Contact Person | D10: =CustomerContactName -> 0 | H10: Phone | I10: =CustomerContactPhone -> 0 | L10: Note | AT10: CA | AU10: 2025-02-06 | AW10: 8 | AX10: AR | AY10: =TODAY() -> 2026-02-09 | BC10: kWh | BD10: Demand | BF10: 1 | BG10: =IF($BL$4=0,0,OFFSET(BG10,$BL$5*$BL$4,0)) -> Heat Pump (Air Cooled) | BH10: Split (1 Phase) | BI10: 1 | BJ10: 0 | BK10: 65000 | BL10: 0 | BM10: 14 | BN10: 0 | BO10: 8.2 | BP10: 8.2 | BQ10: 0 | BR10: 0 | BS10: 0 | BT10: 0 | BU10: 0 | BV10: 0 | BW10: =IF($BL$4=0,0,OFFSET(BW10,$BL$5*$BL$4,0)) -> 0 | BX10: 0 | BY10: 16 | BZ10: 0 | CA10: 9.2 | CB10: 9.2 | CC10: 150 | CD10: 0 | CE10: 0 | CF10: 0 | CG10: 0 | CH10: 0 | CI10: 0 | CK10: Heat Pump (Air Cooled) | CN10: Unitary AC (Air Cooled)
B11: Account Number | D11: =AccountNumber -> 0 | H11: Rate Schedule | J11: =RateSchedule -> 0 | L11: Please fill in all blue fields. Incentive and energy savings are estimates only. The actual incentive paid will be determined based on the results of a post-installation inspection and review of project invoices. Please be sure all capacities and efficiencies are reported @ AHRI conditions. | AT11: ID | AU11: 2025-02-06 | AW11: 9 | AX11: AZ | AZ11: =IF(ISERROR(MID(VLOOKUP(LARGE($BA$11:$BA$67,AW3),$BA$11:$BB$68,2,),4,5)),"",MID(VLOOKUP(LARGE($BA$11:$BA$67,AW3),$BA$11:$BB$68,2,),4,5)) -> 6 | BA11: =IF(LEFT(BB11,2)=$H$9,AW3,"") ->  | BB11: WY 212 | BF11: 2 | BG11: =IF($BL$4=0,0,OFFSET(BG11,$BL$5*$BL$4,0)) -> Heat Pump (Air Cooled) | BH11: Package (1 Phase) | BI11: 1 | BJ11: 0 | BK11: 65000 | BL11: 0 | BM11: 14 | BN11: 0 | BO11: 8 | BP11: 8 | BQ11: 0 | BR11: 0 | BS11: 0 | BT11: 0 | BU11: 0 | BV11: 0 | BW11: 0 | BX11: 0 | BY11: 16 | BZ11: 0 | CA11: 8.5 | CB11: 8.5 | CC11: 150 | CD11: 0 | CE11: 0 | CF11: 0 | CG11: 0 | CH11: 0 | CI11: 0 | CK11: Heat Pump (Water Cooled) | CN11: Heat Pump (Air Cooled)
B12: Meter Number | D12: =MeterNumber -> 0 | F12: =IF(OR($H$9="",$J$11="",$D$6=""),"Project Name, State, and Rate are Required.",IF(ISERROR(MATCH($J$11,$AZ$11:$AZ$67,0)),CONCATENATE($J$11," is not a valid rate for ",$H$9),IF($BC$9=0,"Non-Qualifing Rate",CONCATENATE("Rate ",J11," effective as of ",TEXT(VLOOKUP(H9,AT10:AU14,2,FALSE),"mm/dd/yyyy"))))) -> 0 is not a valid rate for UT | AT12: UT | AU12: 2025-02-06 | AW12: 10 | AX12: CO | AZ12: 8 | BA12: =IF(LEFT(BB12,2)=$H$9,AW4,"") ->  | BB12: WY 210 | BF12: 3 | BG12: Heat Pump (Air Cooled) | BH12: Split (3 Phase) | BI12: 3 | BJ12: 0 | BK12: 65000 | BL12: 0 | BM12: 14 | BN12: 0 | BO12: 8.2 | BP12: 8.2 | BQ12: 0 | BR12: 0 | BS12: 16 | BT12: 0 | BU12: 8.5 | BV12: 8.5 | BW12: 105 | BX12: 0 | BY12: 16 | BZ12: 0 | CA12: 9.2 | CB12: 9.2 | CC12: 150 | CD12: 0 | CE12: 0 | CF12: 0 | CG12: 0 | CH12: 0 | CI12: 0 | CK12: Heat Pump (Air Cooled, Replacing Electric Resistance) | CN12: Heat Pump (Water Cooled)
B13: Project Information and Energy/Cost Savings | AT13: WA | AU13: 2025-02-06 | AW13: 11 | AX13: CT | AZ13: 9A | BB13: WY 58 | BC13: 0.06532 | BD13: 0 | BF13: 4 | BG13: Heat Pump (Air Cooled) | BH13: Package (3 Phase) | BI13: 3 | BJ13: 0 | BK13: 65000 | BL13: 0 | BM13: 14 | BN13: 0 | BO13: 8 | BP13: 8 | BQ13: 0 | BR13: 0 | BS13: 16 | BT13: 0 | BU13: 8.2 | BV13: 8.2 | BW13: 105 | BX13: 0 | BY13: 16 | BZ13: 0 | CA13: 8.5 | CB13: 8.5 | CC13: 150 | CD13: 0 | CE13: 0 | CF13: 0 | CG13: 0 | CH13: 0 | CI13: 0 | CK13: Ground-Source Heat Pump (Water-to-Air) | CN13: Ground-Source Heat Pump (Water-to-Air)
B14: HVAC Type | E14: System Type | F14: Cooling Capacity (BTU/Hr) | H14: Eff 1 (EER) | I14: Eff 2 (SEER, IPLV, or IEER) | K14: Eff 3 (HSPF COP) | N14: Wet/Dry Bulb (F°) | O14: QTY | P14: Tier | Q14: =IF(SUM(O17:O23)=0,"",IF(H9="WA",CONCATENATE("Tier ",CL6," = $",CM6,"/ton, ","Tier ",CL7," = $",CM7,"/ton."),CONCATENATE("Tier ",CL5," = $",CM5,"/ton, ","Tier ",CL6," = $",CM6,"/ton, ","Tier ",CL7," = $",CM7,"/ton."))) ->  | AE14: Eff1 | AI14: Eff2 | AM14: Eff3 | AT14: WY | AU14: 2025-02-06 | AW14: 12 | AX14: DE | AZ14: 9 | BB14: WY 54 | BC14: 0.06494 | BD14: 0 | BF14: 5 | BG14: Heat Pump (Air Cooled) | BH14: Split (3 Phase) Package (3 Phase) | BI14: 3 | BJ14: 65000 | BK14: 135000 | BL14: 10.8 | BM14: 0 | BN14: 13.9 | BO14: 3.4 | BP14: 2.25 | BQ14: 0 | BR14: 10.8 | BS14: 0 | BT14: 14.6 | BU14: 3.4 | BV14: 2.4 | BW14: 105 | BX14: 0 | BY14: 0 | BZ14: 0 | CA14: 0 | CB14: 0 | CC14: 150 | CD14: 0 | CE14: 0 | CF14: 0 | CG14: 0 | CH14: 0 | CI14: =IF($BL$4=0,0,OFFSET(CI14,$BL$5*$BL$4,0)) -> 0 | CK14: Ground-Source Heat Pump (Water-to-Water) | CN14: Ground-Source Heat Pump (Water-to-Water)
Q15: Incentive | S15: kWh/Yr | T15: kW/Month | U15: Deemed Cost | W15: =COUNT(SEARCH({"UT","WY"},State)) -> 1 | AA15: For Demand | AB15: For Cooling | AC15: For heating | AT15: Rates for Software 2-6-2025 | AW15: 13 | AX15: FL | AZ15: 10 | BB15: WY 48T | BC15: 0 | BD15: 0 | BF15: 6 | BG15: Heat Pump (Air Cooled) | BH15: Split (3 Phase) Package (3 Phase) | BI15: 3 | BJ15: 135000 | BK15: 240000 | BL15: 10.4 | BM15: 0 | BN15: 13.3 | BO15: 3.3 | BP15: 2.05 | BQ15: 0 | BR15: 10.4 | BS15: 0 | BT15: 13.8 | BU15: 3.3 | BV15: 2.1 | BW15: 105 | BX15: 0 | BY15: 0 | BZ15: 0 | CA15: 0 | CB15: 0 | CC15: 150 | CD15: 0 | CE15: 0 | CF15: 0 | CG15: 0 | CH15: 0 | CI15: 0 | CK15: Ground-Source Heat Pump (DGX) | CN15: Unitary AC (Water Cooled)
W16: Cooling kWh | X16: Heating kWh | Y16: Row | Z16: Cap/1000 | AA16: 1/EFF1 | AB16: 1/EFF2 | AC16: 1/EFF3 | AD16: Cooling Months | AE16: Tier | AF16: Code | AG16: Min | AI16: Tier | AJ16: Code | AK16: Min | AM16: Tier | AN16: Code | AO16: Min | AW16: 14 | AX16: GA | AZ16: 23 | BB16: WY 46 | BC16: 0.04919 | BD16: 21.109 | BF16: 7 | BG16: Heat Pump (Air Cooled) | BH16: Split (3 Phase) Package (3 Phase) | BI16: 3 | BJ16: 240000 | BK16: 10000000 | BL16: 9.3 | BM16: 0 | BN16: 12.3 | BO16: 3.2 | BP16: 2.05 | BQ16: 0 | BR16: 9.3 | BS16: 0 | BT16: 12.8 | BU16: 3.3 | BV16: 2.1 | BW16: 105 | BX16: 0 | BY16: 0 | BZ16: 0 | CA16: 0 | CB16: 0 | CC16: 150 | CD16: 0 | CE16: 0 | CF16: 0 | CG16: 0 | CH16: 0 | CI16: 0 | CK16: Unitary AC (Air Cooled) | CN16: Unitary AC (Evaporatively Cooled)
B17: ='HVAC-Tool'!#REF! ->  | E17: =IF(OR(HVAC_Type_1="Ground-Source Heat Pump",HVAC_Type_1="Groundwater Source Heat Pump", HVAC_Type_1="Heat Pump (Water Cooled)"),0,'HVAC-Tool'!#REF!) ->  | F17: ='HVAC-Tool'!#REF! ->  | H17: ='HVAC-Tool'!#REF! ->  | I17: ='HVAC-Tool'!#REF! ->  | J17: ='HVAC-Tool'!#REF! ->  | K17: ='HVAC-Tool'!#REF! ->  | M17: ='HVAC-Tool'!#REF! ->  | N17: =IF('HVAC-Tool'!#REF!="","",'HVAC-Tool'!#REF!) ->  | O17: =IF('HVAC-Tool'!#REF!="","",'HVAC-Tool'!#REF!) ->  | P17: =IF(OR($B17="",$F17="",$H17="",$O17="",IF($B17=HVACType_UnitaryAC_AirCooled,OR($E17="",$I17="",$J17=""),IF($B17=HVACType_HeatPump_WaterCooled,OR($K17="",$M17=""),IF($B17=HVACType_HeatPump_AirCooled,OR($E17="",$I17="",$J17="",$K17="",$M17="",$N17=""),FALSE)))),"",MIN($AE17,$AI17,$AM17)) ->  | Q17: =IF($P17=0,"Does not qualify",IF($P17="","",IF(AND(COUNT(SEARCH("VRF",B17)),COUNT(SEARCH({"UT","WY","ID"},HVAC!InstallState))),(VLOOKUP(P17,$CL$5:$CM$7,2,FALSE)+50)*(ROUND($F17/12000,1)*$O17),IF(ISNUMBER(SEARCH("electric resistance",B17)),(ROUNDDOWN(200*1.25,0)+(VLOOKUP(P17,$CL$5:$CM$7,2,FALSE)*(P17-1)))*ROUND($F17/12000,1)*$O17,VLOOKUP(P17,$CL$5:$CM$7,2,FALSE)*ROUND($F17/12000,1)*$O17) + IF(AND('HVAC-Tool'!#REF!="Yes",ISNUMBER(SEARCH("heat pump",B17))),100,0)))) ->  | S17: =IF(P17=0,0,IF(P17="","",SUM(W17:X17)*O17)) ->  | T17: =IF($P17=0,0,IF($P17="","",IF(AA17=0,"n/a",Z17*AA17*O17*IF(OR($B17=HVACType_UnitaryAC_AirCooled,$B17=HVACType_UnitaryAC_EvapCooled,$B17=HVACType_UnitaryAC_WaterCooled),$BV$5*$BU$5,1)))) ->  | U17: =IF($P17=0,0,IF($P17="","",IF($P17=0,0,$O17*$F17/12000*OFFSET($BQ$9,$Y17,P17*6)))) ->  | W17: =EFLCH*AB17*NTG*Z17 ->  | X17: =$AC17*EFLHH*$Z17/IF($M17="COP",3.412,1) ->  | Y17: =IF(OR($B17="",$F17=""),0,SUMPRODUCT($BF$10:$BF$63*($BG$10:$BG$63=$B17)*($F17>=$BJ$10:$BJ$63)*(F17<$BK$10:$BK$63)*(ISNUMBER(FIND($E17,$BH$10:$BH$63))))) ->  | Z17: =F17/1000 ->  | AA17: =IF(ISERROR(1/(OFFSET($BL$9,$Y17,0))-1/($H17)),0,1/(OFFSET($BL$9,$Y17,0))-1/($H17)) -> 0 | AB17: =IF(ISERROR(1/(OFFSET($BM$9,$Y17,IF($J17="IEER",1,0)))-1/($I17)),0,1/(OFFSET($BM$9,$Y17,IF($J17="IEER",1,0)))-1/($I17)) -> 0 | AC17: =IF(ISERROR((1/OFFSET($BO$9,$Y17,IF($N17=$BK$4,1,0))-1/$K17)),0,(1/OFFSET($BO$9,$Y17,IF($N17=$BK$4,1,0))-1/$K17)) -> 0 | AD17: =IF(OR($B17=$CK$14,$B17=$CK$16,$B17=$CK$17),$BW$5,12) ->  | AE17: =IF($Y17=0,0,IF(AND(AF17=0),MIN(AI17,AM17),IF(OR(AND($H17>=OFFSET($CD$9,$Y17,0),OFFSET($CD$9,$Y17,0)>0),AND($H17=0,AF17=0)),$CE$6,IF(AND($H17>=OFFSET($BX$9,$Y17,0),OFFSET($BX$9,$Y17,0)>0),$BY$6,IF(AND($H17>=OFFSET($BR$9,$Y17,0),OFFSET($BR$9,$Y17,0)>0),$BS$6,0))))) ->  | AF17: =IF($Y17=0,0,OFFSET($BL$9,$Y17,0)) ->  | AG17: =IF($Y17=0,0,OFFSET($BL$9,$Y17,$AE17*6)) ->  | AH17: =IF($Y17=0,0,"EER") ->  | AI17: =IF($Y17=0,0,IF(AND(AJ17=0),3,IF(OR($B17=HVACType_HeatPump_WaterCooled,$B17=HVACType_GroundSourceHeatPump,$B17=HVACType_GroundwaterSourceHeatPump,$B17=HVACType_VRF_HP__Water_Source,AND($I17>=OFFSET($CE$9,$Y17,IF($J17=$BJ$5,1,0)),OFFSET($CE$9,$Y17,IF($J17=$BJ$5,1,0))>0)),$CE$6,IF(AND($I17>=OFFSET($BY$9,$Y17,IF($J17=$BJ$5,1,0)),OFFSET($BY$9,$Y17,IF($J17=$BJ$5,1,0))>0),$BY$6,IF(AND($I17>=OFFSET($BS$9,$Y17,IF($J17=$BJ$5,1,0)),OFFSET($BS$9,$Y17,IF($J17=$BJ$5,1,0))>0),$BS$6,0))))) ->  | AJ17: =IF($Y17=0,0,OFFSET($BM$9,$Y17,IF($J17=$BJ$5,1,0))) ->  | AK17: =IF($Y17=0,0,OFFSET($BM$9,$Y17,$AE17*6+IF($J17="IEER",1,0))) ->  | AL17: =$J17 ->  | AM17: =IF($Y17=0,0,IF(AND(AN17=0),3,IF(OR(OR($B17=HVACType_UnitaryAC_AirCooled,$B17=HVACType_UnitaryAC_EvapCooled,$B17=HVACType_UnitaryAC_WaterCooled),AND($K17>=OFFSET($CG$9,$Y17,IF($N17=$BK$4,1,0)),OFFSET($CG$9,$Y17,IF($N17=$BK$4,1,0))>0)),$CE$6,IF(AND($K17>=OFFSET($CA$9,$Y17,IF($N17=$BK$4,1,0)),OFFSET($CA$9,$Y17,IF($N17=$BK$4,1,0))>0),$BY$6,IF(AND($K17>=OFFSET($BU$9,$Y17,IF($N17=$BK$4,1,0)),OFFSET($BU$9,$Y17,IF($N17=$BK$4,1,0))>0),$BS$6,0))))) ->  | AN17: =IF($Y17=0,0,OFFSET($BO$9,$Y17,IF($N17=$BK$4,1,0))) ->  | AO17: =IF($Y17=0,0,OFFSET($BO$9,$Y17,$AE17*6+IF($N17=$BK$4,1,0))) ->  | AP17: =$M17 ->  | AW17: 15 | AX17: HI | BB17: WY 40 | BC17: 0.06641 | BD17: 9.838 | BF17: 8 | BG17: Heat Pump (Water Cooled) | BH17: 0 | BI17: 0 | BJ17: 0 | BK17: 17000 | BL17: 12.2 | BM17: 0 | BN17: 14.03 | BO17: 4.3 | BP17: 4.3 | BQ17: 0 | BR17: 0 | BS17: 0 | BT17: 0 | BU17: 0 | BV17: 0 | BW17: 0 | BX17: 14 | BY17: 0 | BZ17: 0 | CA17: 4.6 | CB17: 4.6 | CC17: 100 | CD17: 0 | CE17: 0 | CF17: 0 | CG17: 0 | CH17: 0 | CI17: 0 | CK17: Unitary AC (Water Cooled)
B18: ='HVAC-Tool'!#REF! ->  | E18: =IF(OR(HVAC_Type_2="Ground-Source Heat Pump",HVAC_Type_2="Groundwater Source Heat Pump", HVAC_Type_2="Heat Pump (Water Cooled)"),0,'HVAC-Tool'!#REF!) ->  | F18: ='HVAC-Tool'!#REF! ->  | H18: ='HVAC-Tool'!#REF! ->  | I18: ='HVAC-Tool'!#REF! ->  | J18: ='HVAC-Tool'!#REF! ->  | K18: ='HVAC-Tool'!#REF! ->  | M18: ='HVAC-Tool'!#REF! ->  | N18: =IF('HVAC-Tool'!#REF!="","",'HVAC-Tool'!#REF!) ->  | O18: =IF('HVAC-Tool'!#REF!="","",'HVAC-Tool'!#REF!) ->  | P18: =IF(OR($B18="",$F18="",$H18="",$O18="",IF($B18=HVACType_UnitaryAC_AirCooled,OR($E18="",$I18="",$J18=""),IF($B18=HVACType_HeatPump_WaterCooled,OR($K18="",$M18=""),IF($B18=HVACType_HeatPump_AirCooled,OR($E18="",$I18="",$J18="",$K18="",$M18="",$N18=""),FALSE)))),"",MIN($AE18,$AI18,$AM18)) ->  | Q18: =IF($P18=0,"Does not qualify",IF($P18="","",IF(AND(COUNT(SEARCH("VRF",B18)),COUNT(SEARCH({"UT","WY","ID"},HVAC!InstallState))),(VLOOKUP(P18,$CL$5:$CM$7,2,FALSE)+50)*(ROUND($F18/12000,1)*$O18),IF(ISNUMBER(SEARCH("electric resistance",B18)),(ROUNDDOWN(200*1.25,0)+(VLOOKUP(P18,$CL$5:$CM$7,2,FALSE)*(P18-1)))*ROUND($F18/12000,1)*$O18,VLOOKUP(P18,$CL$5:$CM$7,2,FALSE)*ROUND($F18/12000,1)*$O18) + IF(AND('HVAC-Tool'!#REF!="Yes",ISNUMBER(SEARCH("heat pump",B18))),100,0)))) ->  | S18: =IF(P18=0,0,IF(P18="","",SUM(W18:X18)*O18)) ->  | T18: =IF($P18=0,0,IF($P18="","",IF(AA18=0,"n/a",Z18*AA18*O18*IF(OR($B18=HVACType_UnitaryAC_AirCooled,$B18=HVACType_UnitaryAC_EvapCooled,$B18=HVACType_UnitaryAC_WaterCooled),$BV$5*$BU$5,1)))) ->  | AA18: 0 | AB18: 0 | AC18: 0 | AE18: =IF($Y18=0,0,IF(AND(AF18=0),MIN(AI18,AM18),IF(OR(AND($H18>=OFFSET($CD$9,$Y18,0),OFFSET($CD$9,$Y18,0)>0),AND($H18=0,AF18=0)),$CE$6,IF(AND($H18>=OFFSET($BX$9,$Y18,0),OFFSET($BX$9,$Y18,0)>0),$BY$6,IF(AND($H18>=OFFSET($BR$9,$Y18,0),OFFSET($BR$9,$Y18,0)>0),$BS$6,0))))) ->  | AF18: =IF($Y18=0,0,OFFSET($BL$9,$Y18,0)) ->  | AG18: =IF($Y18=0,0,OFFSET($BL$9,$Y18,$AE18*6)) ->  | AH18: =IF($Y18=0,0,"EER") ->  | AW18: 16 | AX18: IA | BB18: WY 33 | BC18: 0.4828 | BD18: 21.473 | BF18: 9 | BG18: Heat Pump (Water Cooled) | BH18: 0 | BI18: 0 | BJ18: 17000 | BK18: 65000 | BL18: 13 | BM18: 0 | BN18: 14.95 | BO18: 4.3 | BP18: 4.3 | BQ18: 0 | BR18: 0 | BS18: 0 | BT18: 0 | BU18: 0 | BV18: 0 | BW18: 0 | BX18: 14 | BY18: 0 | BZ18: 0 | CA18: 4.6 | CB18: 4.6 | CC18: 100 | CD18: 0 | CE18: 0 | CF18: 0 | CG18: 0 | CH18: 0 | CI18: 0 | CK18: Unitary AC (Evaporatively Cooled)
B19: ='HVAC-Tool'!#REF! ->  | E19: =IF(OR(HVAC_Type_3="Ground-Source Heat Pump",HVAC_Type_3="Groundwater Source Heat Pump", HVAC_Type_3="Heat Pump (Water Cooled)"),0,'HVAC-Tool'!#REF!) ->  | F19: ='HVAC-Tool'!#REF! ->  | H19: ='HVAC-Tool'!#REF! ->  | I19: ='HVAC-Tool'!#REF! ->  | J19: ='HVAC-Tool'!#REF! ->  | K19: ='HVAC-Tool'!#REF! ->  | M19: ='HVAC-Tool'!#REF! ->  | N19: =IF('HVAC-Tool'!#REF!="","",'HVAC-Tool'!#REF!) ->  | O19: =IF('HVAC-Tool'!#REF!="","",'HVAC-Tool'!#REF!) ->  | Q19: =IF($P19=0,"Does not qualify",IF($P19="","",IF(AND(COUNT(SEARCH("VRF",B19)),COUNT(SEARCH({"UT","WY","ID"},HVAC!InstallState))),(VLOOKUP(P19,$CL$5:$CM$7,2,FALSE)+50)*(ROUND($F19/12000,1)*$O19),IF(ISNUMBER(SEARCH("electric resistance",B19)),(ROUNDDOWN(200*1.25,0)+(VLOOKUP(P19,$CL$5:$CM$7,2,FALSE)*(P19-1)))*ROUND($F19/12000,1)*$O19,VLOOKUP(P19,$CL$5:$CM$7,2,FALSE)*ROUND($F19/12000,1)*$O19) + IF(AND('HVAC-Tool'!#REF!="Yes",ISNUMBER(SEARCH("heat pump",B19))),100,0)))) ->  | S19: =IF(P19=0,0,IF(P19="","",SUM(W19:X19)*O19)) ->  | W19: =EFLCH*AB19*NTG*Z19 ->  | AA19: 0 | AB19: =IF(ISERROR(1/(OFFSET($BM$9,$Y19,IF($J19="IEER",1,0)))-1/($I19)),0,1/(OFFSET($BM$9,$Y19,IF($J19="IEER",1,0)))-1/($I19)) -> 0 | AC19: 0 | AE19: =IF($Y19=0,0,IF(AND(AF19=0),MIN(AI19,AM19),IF(OR(AND($H19>=OFFSET($CD$9,$Y19,0),OFFSET($CD$9,$Y19,0)>0),AND($H19=0,AF19=0)),$CE$6,IF(AND($H19>=OFFSET($BX$9,$Y19,0),OFFSET($BX$9,$Y19,0)>0),$BY$6,IF(AND($H19>=OFFSET($BR$9,$Y19,0),OFFSET($BR$9,$Y19,0)>0),$BS$6,0))))) ->  | AI19: =IF($Y19=0,0,IF(AND(AJ19=0),3,IF(OR($B19=HVACType_HeatPump_WaterCooled,$B19=HVACType_GroundSourceHeatPump,$B19=HVACType_GroundwaterSourceHeatPump,$B19=HVACType_VRF_HP__Water_Source,AND($I19>=OFFSET($CE$9,$Y19,IF($J19=$BJ$5,1,0)),OFFSET($CE$9,$Y19,IF($J19=$BJ$5,1,0))>0)),$CE$6,IF(AND($I19>=OFFSET($BY$9,$Y19,IF($J19=$BJ$5,1,0)),OFFSET($BY$9,$Y19,IF($J19=$BJ$5,1,0))>0),$BY$6,IF(AND($I19>=OFFSET($BS$9,$Y19,IF($J19=$BJ$5,1,0)),OFFSET($BS$9,$Y19,IF($J19=$BJ$5,1,0))>0),$BS$6,0))))) ->  | AW19: 17 | AX19: IL | BB19: WY 28 | BC19: 0.0478 | BD19: 21.651 | BF19: 10 | BG19: Heat Pump (Water Cooled) | BH19: 0 | BI19: 0 | BJ19: 65000 | BK19: 135000 | BL19: 13 | BM19: 0 | BN19: 14.95 | BO19: 4.3 | BP19: 4.3 | BQ19: 0 | BR19: 0 | BS19: 0 | BT19: 0 | BU19: 0 | BV19: 0 | BW19: 0 | BX19: 14 | BY19: 0 | BZ19: 0 | CA19: 4.6 | CB19: 4.6 | CC19: 100 | CD19: 0 | CE19: 0 | CF19: 0 | CG19: 0 | CH19: 0 | CI19: 0 | CK19: VRF HP (Air Cooled)
B20: ='HVAC-Tool'!#REF! ->  | E20: =IF(OR(HVAC_Type_4="Ground-Source Heat Pump",HVAC_Type_4="Groundwater Source Heat Pump", HVAC_Type_4="Heat Pump (Water Cooled)"),0,'HVAC-Tool'!#REF!) ->  | F20: ='HVAC-Tool'!#REF! ->  | H20: ='HVAC-Tool'!#REF! ->  | I20: ='HVAC-Tool'!#REF! ->  | J20: ='HVAC-Tool'!#REF! ->  | K20: ='HVAC-Tool'!#REF! ->  | M20: ='HVAC-Tool'!#REF! ->  | N20: =IF('HVAC-Tool'!#REF!="","",'HVAC-Tool'!#REF!) ->  | O20: =IF('HVAC-Tool'!#REF!="","",'HVAC-Tool'!#REF!) ->  | Q20: =IF($P20=0,"Does not qualify",IF($P20="","",IF(AND(COUNT(SEARCH("VRF",B20)),COUNT(SEARCH({"UT","WY","ID"},HVAC!InstallState))),(VLOOKUP(P20,$CL$5:$CM$7,2,FALSE)+50)*(ROUND($F20/12000,1)*$O20),IF(ISNUMBER(SEARCH("electric resistance",B20)),(ROUNDDOWN(200*1.25,0)+(VLOOKUP(P20,$CL$5:$CM$7,2,FALSE)*(P20-1)))*ROUND($F20/12000,1)*$O20,VLOOKUP(P20,$CL$5:$CM$7,2,FALSE)*ROUND($F20/12000,1)*$O20) + IF(AND('HVAC-Tool'!#REF!="Yes",ISNUMBER(SEARCH("heat pump",B20))),100,0)))) ->  | S20: =IF(P20=0,0,IF(P20="","",SUM(W20:X20)*O20)) ->  | AA20: 0 | AB20: 0 | AC20: 0 | AI20: =IF($Y20=0,0,IF(AND(AJ20=0),3,IF(OR($B20=HVACType_HeatPump_WaterCooled,$B20=HVACType_GroundSourceHeatPump,$B20=HVACType_GroundwaterSourceHeatPump,$B20=HVACType_VRF_HP__Water_Source,AND($I20>=OFFSET($CE$9,$Y20,IF($J20=$BJ$5,1,0)),OFFSET($CE$9,$Y20,IF($J20=$BJ$5,1,0))>0)),$CE$6,IF(AND($I20>=OFFSET($BY$9,$Y20,IF($J20=$BJ$5,1,0)),OFFSET($BY$9,$Y20,IF($J20=$BJ$5,1,0))>0),$BY$6,IF(AND($I20>=OFFSET($BS$9,$Y20,IF($J20=$BJ$5,1,0)),OFFSET($BS$9,$Y20,IF($J20=$BJ$5,1,0))>0),$BS$6,0))))) ->  | AW20: 18 | AX20: IN | BB20: WY 25 | BC20: 0.1051 | BD20: 0 | BF20: 11 | BG20: Unitary AC (Air Cooled) | BH20: Split (1 Phase) | BI20: 1 | BJ20: 0 | BK20: 45000 | BL20: 11 | BM20: 13 | BN20: 0 | BO20: 0 | BP20: 0 | BQ20: 0 | BR20: 0 | BS20: 0 | BT20: 0 | BU20: 0 | BV20: 0 | BW20: 0 | BX20: 11 | BY20: 16 | BZ20: 0 | CA20: 0 | CB20: 0 | CC20: 235 | CD20: 11 | CE20: 18 | CF20: 0 | CG20: 0 | CH20: 0 | CI20: 375 | CK20: VRF HP (Water Source)
B21: ='HVAC-Tool'!#REF! ->  | E21: =IF(OR(HVAC_Type_5="Ground-Source Heat Pump",HVAC_Type_5="Groundwater Source Heat Pump", HVAC_Type_5="Heat Pump (Water Cooled)"),0,'HVAC-Tool'!#REF!) ->  | F21: ='HVAC-Tool'!#REF! ->  | H21: ='HVAC-Tool'!#REF! ->  | I21: ='HVAC-Tool'!#REF! ->  | J21: ='HVAC-Tool'!#REF! ->  | K21: ='HVAC-Tool'!#REF! ->  | M21: ='HVAC-Tool'!#REF! ->  | N21: =IF('HVAC-Tool'!#REF!="","",'HVAC-Tool'!#REF!) ->  | O21: =IF('HVAC-Tool'!#REF!="","",'HVAC-Tool'!#REF!) ->  | Q21: =IF($P21=0,"Does not qualify",IF($P21="","",IF(AND(COUNT(SEARCH("VRF",B21)),COUNT(SEARCH({"UT","WY","ID"},HVAC!InstallState))),(VLOOKUP(P21,$CL$5:$CM$7,2,FALSE)+50)*(ROUND($F21/12000,1)*$O21),IF(ISNUMBER(SEARCH("electric resistance",B21)),(ROUNDDOWN(200*1.25,0)+(VLOOKUP(P21,$CL$5:$CM$7,2,FALSE)*(P21-1)))*ROUND($F21/12000,1)*$O21,VLOOKUP(P21,$CL$5:$CM$7,2,FALSE)*ROUND($F21/12000,1)*$O21) + IF(AND('HVAC-Tool'!#REF!="Yes",ISNUMBER(SEARCH("heat pump",B21))),100,0)))) ->  | AA21: 0 | AB21: 0 | AC21: 0 | AW21: 19 | AX21: KS | BF21: 12 | BG21: Unitary AC (Air Cooled) | BH21: Split (1 Phase) | BI21: 1 | BJ21: 45000 | BK21: 65000 | BL21: 11 | BM21: 13 | BN21: 0 | BO21: 0 | BP21: 0 | BQ21: 0 | BR21: 0 | BS21: 0 | BT21: 0 | BU21: 0 | BV21: 0 | BW21: 0 | BX21: 11 | BY21: 16 | BZ21: 0 | CA21: 0 | CB21: 0 | CC21: 235 | CD21: 11 | CE21: 18 | CF21: 0 | CG21: 0 | CH21: 0 | CI21: 375
B22: ='HVAC-Tool'!#REF! ->  | E22: =IF(OR(HVAC_Type_6="Ground-Source Heat Pump",HVAC_Type_6="Groundwater Source Heat Pump", HVAC_Type_6="Heat Pump (Water Cooled)"),0,'HVAC-Tool'!#REF!) ->  | F22: ='HVAC-Tool'!#REF! ->  | H22: ='HVAC-Tool'!#REF! ->  | I22: ='HVAC-Tool'!#REF! ->  | J22: ='HVAC-Tool'!#REF! ->  | K22: ='HVAC-Tool'!#REF! ->  | M22: ='HVAC-Tool'!#REF! ->  | N22: =IF('HVAC-Tool'!#REF!="","",'HVAC-Tool'!#REF!) ->  | O22: =IF('HVAC-Tool'!#REF!="","",'HVAC-Tool'!#REF!) ->  | Q22: =IF($P22=0,"Does not qualify",IF($P22="","",IF(AND(COUNT(SEARCH("VRF",B22)),COUNT(SEARCH({"UT","WY","ID"},HVAC!InstallState))),(VLOOKUP(P22,$CL$5:$CM$7,2,FALSE)+50)*(ROUND($F22/12000,1)*$O22),IF(ISNUMBER(SEARCH("electric resistance",B22)),(ROUNDDOWN(200*1.25,0)+(VLOOKUP(P22,$CL$5:$CM$7,2,FALSE)*(P22-1)))*ROUND($F22/12000,1)*$O22,VLOOKUP(P22,$CL$5:$CM$7,2,FALSE)*ROUND($F22/12000,1)*$O22) + IF(AND('HVAC-Tool'!#REF!="Yes",ISNUMBER(SEARCH("heat pump",B22))),100,0)))) ->  | AA22: 0 | AB22: 0 | AC22: 0 | AW22: 20 | AX22: KY | BF22: 13 | BG22: Unitary AC (Air Cooled) | BH22: Package (1 Phase) | BI22: 1 | BJ22: 0 | BK22: 65000 | BL22: 11 | BM22: 14 | BN22: 0 | BO22: 0 | BP22: 0 | BQ22: 0 | BR22: 0 | BS22: 0 | BT22: 0 | BU22: 0 | BV22: 0 | BW22: 0 | BX22: 10000 | BY22: 10000 | BZ22: 0 | CA22: 0 | CB22: 0 | CC22: 235 | CD22: 10000 | CE22: 10000 | CF22: 0 | CG22: 0 | CH22: 0 | CI22: 0 | CK22: VRF System Type | CN22: SystemType_UT | CP22: LoopType_GSHP
B23: ='HVAC-Tool'!#REF! ->  | E23: =IF(OR(HVAC_Type_7="Ground-Source Heat Pump",HVAC_Type_7="Groundwater Source Heat Pump", HVAC_Type_7="Heat Pump (Water Cooled)"),0,'HVAC-Tool'!#REF!) ->  | F23: ='HVAC-Tool'!#REF! ->  | H23: ='HVAC-Tool'!#REF! ->  | I23: ='HVAC-Tool'!#REF! ->  | J23: ='HVAC-Tool'!#REF! ->  | K23: ='HVAC-Tool'!#REF! ->  | M23: ='HVAC-Tool'!#REF! ->  | N23: =IF('HVAC-Tool'!#REF!="","",'HVAC-Tool'!#REF!) ->  | O23: =IF('HVAC-Tool'!#REF!="","",'HVAC-Tool'!#REF!) ->  | Q23: =IF($P23=0,"Does not qualify",IF($P23="","",IF(AND(COUNT(SEARCH("VRF",B23)),COUNT(SEARCH({"UT","WY","ID"},HVAC!InstallState))),(VLOOKUP(P23,$CL$5:$CM$7,2,FALSE)+50)*(ROUND($F23/12000,1)*$O23),IF(ISNUMBER(SEARCH("electric resistance",B23)),(ROUNDDOWN(200*1.25,0)+(VLOOKUP(P23,$CL$5:$CM$7,2,FALSE)*(P23-1)))*ROUND($F23/12000,1)*$O23,VLOOKUP(P23,$CL$5:$CM$7,2,FALSE)*ROUND($F23/12000,1)*$O23) + IF(AND('HVAC-Tool'!#REF!="Yes",ISNUMBER(SEARCH("heat pump",B23))),100,0)))) ->  | S23: =IF(P23=0,0,IF(P23="","",SUM(W23:X23)*O23)) ->  | AA23: 0 | AB23: 0 | AC23: 0 | AW23: 21 | AX23: LA | BF23: 14 | BG23: Unitary AC (Air Cooled) | BH23: Split (3 Phase) | BI23: 3 | BJ23: 0 | BK23: 65000 | BL23: 11 | BM23: 13 | BN23: 0 | BO23: 0 | BP23: 0 | BQ23: 0 | BR23: 0 | BS23: 0 | BT23: 0 | BU23: 0 | BV23: 0 | BW23: 0 | BX23: 11 | BY23: 16 | BZ23: 0 | CA23: 0 | CB23: 0 | CC23: 175 | CD23: =IF($BL$4=0,0,OFFSET(CD23,$BL$5*$BL$4,0)) -> 11 | CE23: 18 | CF23: 0 | CG23: 0 | CH23: 0 | CI23: 375 | CK23: Multi-split System | CN23: Split (1 Phase) | CP23: Closed Loop
B24: Total Project | D24: Baseline Energy Code | E24: Energy Savings (kWh/Yr) | F24: Demand Savings (kW) | G24: Deemed Cost | I24: Incentive | K24: Monthly Savings | M24: Annual Savings | O24: % of Cost Paid by Incentive | Q24: Net Project Cost | R24: Pre-incentive Payback (Yr) | T24: Post-incentive Payback (Yr) | AW24: 22 | AX24: MA | BF24: 15 | BG24: Unitary AC (Air Cooled) | BH24: Package (3 Phase) | BI24: 3 | BJ24: 0 | BK24: 65000 | BL24: 11 | BM24: 14 | BN24: 0 | BO24: 0 | BP24: 0 | BQ24: 0 | BR24: 0 | BS24: 0 | BT24: 0 | BU24: 0 | BV24: 0 | BW24: 0 | BX24: 10000 | BY24: 10000 | BZ24: 0 | CA24: 0 | CB24: 0 | CC24: 175 | CD24: 10000 | CE24: 10000 | CF24: 0 | CG24: 0 | CH24: 0 | CI24: 0 | CK24: Multi-split w/Heat Recovery | CN24: Split (3 Phase) | CP24: Open Loop
AW25: 23 | AX25: MD | BF25: 16 | BG25: Unitary AC (Air Cooled) | BH25: Split (3 Phase) | BI25: 3 | BJ25: 65000 | BK25: 135000 | BL25: 11 | BM25: 10000 | BN25: 14.6 | BO25: 0 | BP25: 0 | BQ25: 0 | BR25: 0 | BS25: 0 | BT25: 0 | BU25: 0 | BV25: 0 | BW25: 0 | BX25: 11 | BY25: 0 | BZ25: 16.1 | CA25: 0 | CB25: 0 | CC25: 150 | CD25: 11 | CE25: 0 | CF25: 17.8 | CG25: 0 | CH25: 0 | CI25: 300
D26: =$BR$5 -> IECC 2018, Tables C403.2.3(1) & C403.2.3(2) | E26: =IF(SUM($P$17:$P$23)=0,0,SUM($S$17:$S$23)) ->  | F26: =IF(SUM($P$17:$P$23)=0,0,SUM($T$17:$T$23)) ->  | G26: =IF(SUM($P$17:$P$23)=0,0,SUM($U$17:$U$23)) ->  | I26: =IF(SUM($P$17:$P$23)=0,0,SUM($Q$17:$Q$23)) ->  | K26: =IF(SUM(P17:P23)=0,0,$M$26/12) ->  | M26: =IF(SUM(P17:P23)=0,0,$E$26*$BC$9+$BD$9*SUMPRODUCT($T$17:$T$23,$AD$17:$AD$23)) ->  | O26: =IF(SUM(P17:P23)=0,0,$I$26/$G$26) ->  | Q26: =IF(SUM(P17:P23)=0,0,$G$26-$I$26) ->  | R26: =IF(SUM(P17:P23)=0,0,$G$26/$M$26) ->  | T26: =IF(SUM(P17:P23)=0,0,$Q$26/$M$26) ->  | AW26: 24 | AX26: ME | BA26: 16 | BB26: UT 23 | BC26: 0.07789 | BD26: 10.563 | BF26: 17 | BG26: Unitary AC (Air Cooled) | BH26: Split (3 Phase) Package (3 Phase) | BI26: 3 | BJ26: 135000 | BK26: 240000 | BL26: 10.8 | BM26: 10000 | BN26: 14 | BO26: 0 | BP26: 0 | BQ26: 0 | BR26: 0 | BS26: 0 | BT26: 0 | BU26: 0 | BV26: =IF($BL$4=0,0,OFFSET(BV26,$BL$5*$BL$4,0)) -> 0 | BW26: 0 | BX26: 10.8 | BY26: 0 | BZ26: 15.4 | CA26: 0 | CB26: 0 | CC26: 125 | CD26: 10.8 | CE26: 0 | CF26: 16.8 | CG26: 0 | CH26: 0 | CI26: 205
AW27: 25 | AX27: MI | BA27: 17 | BB27: UT 10 | BC27: 0.06819 | BD27: 9.261 | BF27: 18 | BG27: =IF($BL$4=0,0,OFFSET(BG27,$BL$5*$BL$4,0)) -> Unitary AC (Air Cooled) | BH27: Split (3 Phase) Package (3 Phase) | BI27: 3 | BJ27: 240000 | BK27: 760000 | BL27: 9.8 | BM27: 10000 | BN27: 13 | BO27: 0 | BP27: 0 | BQ27: 0 | BR27: 0 | BS27: 0 | BT27: 0 | BU27: 0 | BV27: 0 | BW27: 0 | BX27: 9.8 | BY27: 0 | BZ27: 14.3 | CA27: 0 | CB27: 0 | CC27: 95 | CD27: 9.8 | CE27: 0 | CF27: 15.6 | CG27: 0 | CH27: 0 | CI27: 185
AW28: 26 | AX28: MN | BA28: 18 | BB28: UT 9 | BC28: 0.06896 | BD28: 21.475 | BF28: 19 | BG28: Unitary AC (Air Cooled) | BH28: Split (3 Phase) Package (3 Phase) | BI28: 3 | BJ28: 760000 | BK28: 10000000 | BL28: 9.5 | BM28: 10000 | BN28: 11 | BO28: 0 | BP28: 0 | BQ28: 0 | BR28: 0 | BS28: 0 | BT28: 0 | BU28: 0 | BV28: 0 | BW28: 0 | BX28: 9.5 | BY28: 0 | BZ28: 13.6 | CA28: 0 | CB28: 0 | CC28: 160 | CD28: 9.5 | CE28: 0 | CF28: 14.9 | CG28: 0 | CH28: 0 | CI28: 0
D29: User Input Cells | AW29: 27 | AX29: MO | BA29: 19 | BB29: UT 9A | BC29: 0.07074 | BF29: 20 | BG29: Ground-Source Heat Pump | BH29: 0 | BI29: 0 | BJ29: 0 | BK29: 10000000 | BL29: 14.1 | BM29: 0 | BN29: 16.215 | BO29: 3.2 | BP29: 3.2 | BQ29: 0 | BR29: 0 | BS29: 0 | BT29: 0 | BU29: 0 | BV29: 0 | BW29: 0 | BX29: 17.1 | BY29: 0 | BZ29: 0 | CA29: 3.6 | CB29: 3.6 | CC29: 150 | CD29: 0 | CE29: 0 | CF29: 0 | CG29: 0 | CH29: 0 | CI29: 0
AW30: 28 | AX30: MS | BA30: 20 | BB30: UT 8 | BC30: 0.07386 | BD30: 24.743 | BF30: 21 | BG30: Groundwater Source Heat Pump | BH30: 0 | BI30: 0 | BJ30: 0 | BK30: 10000000 | BL30: 18 | BM30: 0 | BN30: 20.7 | BO30: 3.7 | BP30: 3.7 | BQ30: 0 | BR30: 0 | BS30: 0 | BT30: 0 | BU30: 0 | BV30: 0 | BW30: 0 | BX30: 21.1 | BY30: 0 | BZ30: 0 | CA30: 4.1 | CB30: 4.1 | CC30: 150 | CD30: 0 | CE30: 0 | CF30: 0 | CG30: 0 | CH30: 0 | CI30: 0
X31: =OFFSET($BO$9,$Y19,IF($N19=$BK$4,1,0)) ->  | AW31: 29 | AX31: MT | BA31: 21 | BB31: UT 6 | BC31: 0.04802 | BD31: 16.388 | BF31: 22 | BG31: Unitary AC (Water Cooled) | BH31: Split (1 Phase) | BI31: 1 | BJ31: 0 | BK31: 65000 | BL31: 12.1 | BM31: 0 | BN31: 12.3 | BO31: 0 | BP31: 0 | BQ31: 0 | BR31: 0 | BS31: 0 | BT31: 0 | BU31: 0 | BV31: 0 | BW31: 0 | BX31: 14 | BY31: 0 | BZ31: 0 | CA31: 0 | CB31: 0 | CC31: 100 | CD31: 0 | CE31: 0 | CF31: 0 | CG31: 0 | CH31: 0 | CI31: 0
AW32: 30 | AX32: NC | BF32: 23 | BG32: Unitary AC (Water Cooled) | BH32: Package (1 Phase) | BI32: 1 | BJ32: 0 | BK32: 65000 | BL32: 12.1 | BM32: 0 | BN32: 12.3 | BO32: 0 | BP32: 0 | BQ32: 0 | BR32: 0 | BS32: 0 | BT32: 0 | BU32: 0 | BV32: 0 | BW32: 0 | BX32: 14 | BY32: 0 | BZ32: 0 | CA32: 0 | CB32: 0 | CC32: 100 | CD32: 0 | CE32: 0 | CF32: 0 | CG32: 0 | CH32: 0 | CI32: 0
AW33: 31 | AX33: ND | BF33: 24 | BG33: Unitary AC (Water Cooled) | BH33: Split (3 Phase) | BI33: 3 | BJ33: 0 | BK33: 65000 | BL33: 12.1 | BM33: 0 | BN33: 12.3 | BO33: 0 | BP33: 0 | BQ33: 0 | BR33: 0 | BS33: 0 | BT33: 0 | BU33: 0 | BV33: 0 | BW33: 0 | BX33: 14 | BY33: 0 | BZ33: 0 | CA33: 0 | CB33: 0 | CC33: 100 | CD33: 0 | CE33: 0 | CF33: 0 | CG33: 0 | CH33: 0 | CI33: 0
AW34: 32 | AX34: NE | BF34: 25 | BG34: Unitary AC (Water Cooled) | BH34: Package (3 Phase) | BI34: 3 | BJ34: 0 | BK34: 65000 | BL34: 12.1 | BM34: 0 | BN34: 12.3 | BO34: 0 | BP34: 0 | BQ34: 0 | BR34: 0 | BS34: 0 | BT34: 0 | BU34: 0 | BV34: 0 | BW34: 0 | BX34: 14 | BY34: 0 | BZ34: 0 | CA34: 0 | CB34: 0 | CC34: 100 | CD34: =IF($BL$4=0,0,OFFSET(CD34,$BL$5*$BL$4,0)) -> 0 | CE34: 0 | CF34: 0 | CG34: 0 | CH34: 0 | CI34: 0
AW35: 33 | AX35: NH | BB35: ID 35 | BC35: 0.07862 | BD35: 20.459 | BF35: 26 | BG35: Unitary AC (Water Cooled) | BH35: Split (3 Phase) Package (3 Phase) | BI35: 3 | BJ35: 65000 | BK35: 135000 | BL35: 11.9 | BM35: 10000 | BN35: 13.7 | BO35: 0 | BP35: 0 | BQ35: 0 | BR35: 0 | BS35: 0 | BT35: 0 | BU35: 0 | BV35: 0 | BW35: 0 | BX35: 11.9 | BY35: 0 | BZ35: 15.1 | CA35: 0 | CB35: 0 | CC35: 100 | CD35: 0 | CE35: 0 | CF35: 0 | CG35: 0 | CH35: 0 | CI35: 0
AW36: 34 | AX36: NJ | BB36: ID 23 | BC36: 0.11264 | BD36: 0 | BF36: 27 | BG36: Unitary AC (Water Cooled) | BH36: Split (3 Phase) Package (3 Phase) | BI36: 3 | BJ36: 135000 | BK36: 240000 | BL36: 12.3 | BM36: 10000 | BN36: 13.7 | BO36: 0 | BP36: 0 | BQ36: 0 | BR36: 0 | BS36: 0 | BT36: 0 | BU36: 0 | BV36: 0 | BW36: 0 | BX36: 12.3 | BY36: 0 | BZ36: 14.6 | CA36: 0 | CB36: 0 | CC36: 100 | CD36: 0 | CE36: 0 | CF36: 0 | CG36: 0 | CH36: 0 | CI36: 0
AW37: 35 | AX37: NM | BB37: ID 10 | BC37: 0.07343 | BD37: 7.226 | BF37: 28 | BG37: Unitary AC (Water Cooled) | BH37: Split (3 Phase) Package (3 Phase) | BI37: 3 | BJ37: 240000 | BK37: 760000 | BL37: 12.2 | BM37: 10000 | BN37: 13.4 | BO37: 0 | BP37: 0 | BQ37: 0 | BR37: 0 | BS37: 0 | BT37: 0 | BU37: 0 | BV37: 0 | BW37: 0 | BX37: 12.3 | BY37: 0 | BZ37: 14.6 | CA37: 0 | CB37: 0 | CC37: 100 | CD37: 0 | CE37: 0 | CF37: 0 | CG37: 0 | CH37: 0 | CI37: 0
AW38: 36 | AX38: NV | BB38: ID 9 | BC38: 0.07259 | BD38: 11.7 | BF38: 29 | BG38: Unitary AC (Water Cooled) | BH38: Split (3 Phase) Package (3 Phase) | BI38: 3 | BJ38: 760000 | BK38: 10000000 | BL38: 12 | BM38: 10000 | BN38: 13.3 | BO38: 0 | BP38: 0 | BQ38: 0 | BR38: 0 | BS38: 0 | BT38: 0 | BU38: 0 | BV38: 0 | BW38: 0 | BX38: 12.3 | BY38: 0 | BZ38: 14.6 | CA38: 0 | CB38: 0 | CC38: 100 | CD38: 0 | CE38: 0 | CF38: 0 | CG38: 0 | CH38: 0 | CI38: 0
AW39: 37 | AX39: NY | BB39: ID 6 | BC39: 0.06414 | BD39: 15.585 | BF39: 30 | BG39: Unitary AC (Evaporatively Cooled) | BH39: Split (1 Phase) | BI39: 1 | BJ39: 0 | BK39: 65000 | BL39: 12.1 | BM39: 0 | BN39: 12.3 | BO39: 0 | BP39: 0 | BQ39: 0 | BR39: 0 | BS39: 0 | BT39: 0 | BU39: 0 | BV39: 0 | BW39: 0 | BX39: 14 | BY39: 0 | BZ39: 0 | CA39: 0 | CB39: 0 | CC39: 100 | CD39: 0 | CE39: 0 | CF39: 0 | CG39: 0 | CH39: 0 | CI39: 0
AW40: 38 | AX40: OH | BA40: =IF(LEFT(BB40,2)=$H$9,AW32,"") ->  | BB40: ID 6A | BC40: 0.06415 | BD40: 15.585 | BF40: 31 | BG40: Unitary AC (Evaporatively Cooled) | BH40: Package (1 Phase) | BI40: 1 | BJ40: 0 | BK40: 65000 | BL40: 12.1 | BM40: 0 | BN40: 12.3 | BO40: 0 | BP40: 0 | BQ40: 0 | BR40: 0 | BS40: 0 | BT40: 0 | BU40: 0 | BV40: 0 | BW40: 0 | BX40: 14 | BY40: 0 | BZ40: 0 | CA40: 0 | CB40: 0 | CC40: 100 | CD40: 0 | CE40: 0 | CF40: 0 | CG40: 0 | CH40: 0 | CI40: 0
AW41: 39 | AX41: OK | BA41: =IF(LEFT(BB41,2)=$H$9,AW33,"") ->  | BF41: 32 | BG41: Unitary AC (Evaporatively Cooled) | BH41: Split (3 Phase) | BI41: 3 | BJ41: 0 | BK41: 65000 | BL41: 12.1 | BM41: 0 | BN41: 12.3 | BO41: 0 | BP41: 0 | BQ41: 0 | BR41: 0 | BS41: 0 | BT41: 0 | BU41: 0 | BV41: 0 | BW41: 0 | BX41: 14 | BY41: 0 | BZ41: 0 | CA41: 0 | CB41: 0 | CC41: 100 | CD41: 0 | CE41: 0 | CF41: 0 | CG41: 0 | CH41: 0 | CI41: 0
AW42: 40 | AX42: OR | BA42: =IF(LEFT(BB42,2)=$H$9,AW34,"") ->  | BF42: 33 | BG42: Unitary AC (Evaporatively Cooled) | BH42: Package (3 Phase) | BI42: 3 | BJ42: 0 | BK42: 65000 | BL42: 12.1 | BM42: 0 | BN42: 12.3 | BO42: 0 | BP42: 0 | BQ42: 0 | BR42: 0 | BS42: 0 | BT42: 0 | BU42: 0 | BV42: 0 | BW42: 0 | BX42: 14 | BY42: 0 | BZ42: 0 | CA42: 0 | CB42: 0 | CC42: 100 | CD42: 0 | CE42: 0 | CF42: 0 | CG42: 0 | CH42: 0 | CI42: 0
AW43: 41 | AX43: PA | BF43: 34 | BG43: Unitary AC (Evaporatively Cooled) | BH43: Split (3 Phase) Package (3 Phase) | BI43: 3 | BJ43: 65000 | BK43: 135000 | BL43: 11.9 | BM43: 10000 | BN43: 12.1 | BO43: 0 | BP43: 0 | BQ43: 0 | BR43: 0 | BS43: 0 | BT43: 0 | BU43: 0 | BV43: 0 | BW43: 0 | BX43: 11.9 | BY43: 0 | BZ43: 15.1 | CA43: 0 | CB43: 0 | CC43: 100 | CD43: 0 | CE43: 0 | CF43: 0 | CG43: 0 | CH43: 0 | CI43: 0
AW44: 42 | AX44: RI | AZ44: =IF(ISERROR(MID(VLOOKUP(LARGE($BA$11:$BA$67,AW28),$BA$11:$BB$68,2,),4,5)),"",MID(VLOOKUP(LARGE($BA$11:$BA$67,AW28),$BA$11:$BB$68,2,),4,5)) ->  | BA44: =IF(LEFT(BB36,2)=$H$9,AW28,"") ->  | BF44: 35 | BG44: Unitary AC (Evaporatively Cooled) | BH44: Split (3 Phase) Package (3 Phase) | BI44: 3 | BJ44: 135000 | BK44: 240000 | BL44: 11.8 | BM44: 10000 | BN44: 12 | BO44: 0 | BP44: 0 | BQ44: 0 | BR44: 0 | BS44: 0 | BT44: 0 | BU44: 0 | BV44: 0 | BW44: 0 | BX44: 11.8 | BY44: 0 | BZ44: 14.1 | CA44: 0 | CB44: 0 | CC44: 100 | CD44: 0 | CE44: 0 | CF44: 0 | CG44: 0 | CH44: 0 | CI44: 0
AW45: 43 | AX45: SC | BF45: 36 | BG45: Unitary AC (Evaporatively Cooled) | BH45: Split (3 Phase) Package (3 Phase) | BI45: 3 | BJ45: 240000 | BK45: 760000 | BL45: 11.7 | BM45: 10000 | BN45: 11.9 | BO45: 0 | BP45: 0 | BQ45: 0 | BR45: 0 | BS45: 0 | BT45: 0 | BU45: 0 | BV45: 0 | BW45: 0 | BX45: 11.8 | BY45: 0 | BZ45: 14.1 | CA45: 0 | CB45: 0 | CC45: 100 | CD45: 0 | CE45: 0 | CF45: 0 | CG45: 0 | CH45: 0 | CI45: 0
AW46: 44 | AX46: SD | BF46: 37 | BG46: Unitary AC (Evaporatively Cooled) | BH46: Split (3 Phase) Package (3 Phase) | BI46: 3 | BJ46: 760000 | BK46: 10000000 | BL46: 11.5 | BM46: 10000 | BN46: 11.7 | BO46: 0 | BP46: 0 | BQ46: 0 | BR46: 0 | BS46: 0 | BT46: 0 | BU46: 0 | BV46: 0 | BW46: 0 | BX46: 11.8 | BY46: 0 | BZ46: 14.1 | CA46: 0 | CB46: 0 | CC46: 100 | CD46: 0 | CE46: 0 | CF46: 0 | CG46: 0 | CH46: 0 | CI46: 0
AW47: 45 | AX47: TN | BF47: 38 | BG47: VRF HP (Air Cooled) | BH47: Multi-split System | BI47: =IF($BL$4=0,0,OFFSET(BI47,$BL$5*$BL$4,0)) -> 0 | BJ47: 0 | BK47: 65000 | BL47: 11 | BM47: 13 | BN47: 0 | BO47: 8.2 | BP47: 7.7 | BQ47: 0 | BR47: 0 | BS47: 0 | BT47: 0 | BU47: 0 | BV47: 0 | BW47: 0 | BX47: 0 | BY47: =IF($BL$4=0,0,OFFSET(BY47,$BL$5*$BL$4,0)) -> 0 | BZ47: 0 | CA47: 0 | CB47: 0 | CC47: 0 | CD47: 1 | CE47: 15.2 | CF47: 0 | CG47: 8.7 | CH47: 8.7 | CI47: 535
AW48: 46 | AX48: TX | BA48: =IF(LEFT(BB40,2)=$H$9,AW32,"") ->  | BF48: 39 | BG48: VRF HP (Air Cooled) | BH48: Multi-split w/Heat Recovery | BI48: 0 | BJ48: 0 | BK48: 65000 | BL48: 11 | BM48: 13 | BN48: 0 | BO48: 8.2 | BP48: 7.7 | BQ48: 0 | BR48: 0 | BS48: 0 | BT48: 0 | BU48: 0 | BV48: 0 | BW48: 0 | BX48: 0 | BY48: 0 | BZ48: 0 | CA48: 0 | CB48: 0 | CC48: 0 | CD48: 1 | CE48: 15.2 | CF48: 0 | CG48: 8.7 | CH48: 8.7 | CI48: 535
AW49: 47 | AX49: VA | BA49: =IF(LEFT(BB41,2)=$H$9,AW33,"") ->  | BF49: 40 | BG49: VRF HP (Air Cooled) | BH49: Multi-split System | BI49: 0 | BJ49: 65000 | BK49: 135000 | BL49: 11 | BM49: 10000 | BN49: 12.9 | BO49: 3.4 | BP49: 2.25 | BQ49: 0 | BR49: 0 | BS49: 0 | BT49: 0 | BU49: 0 | BV49: 0 | BW49: 0 | BX49: 0 | BY49: 0 | BZ49: 0 | CA49: 0 | CB49: 0 | CC49: 0 | CD49: 10.8 | CE49: 0 | CF49: 17 | CG49: 3.5 | CH49: 2.3 | CI49: 535
AW50: 48 | AX50: VT | BA50: =IF(LEFT(BB42,2)=$H$9,AW34,"") ->  | BF50: 41 | BG50: VRF HP (Air Cooled) | BH50: Multi-split w/Heat Recovery | BI50: 0 | BJ50: 65000 | BK50: 135000 | BL50: 10.8 | BM50: 10000 | BN50: 12.7 | BO50: 3.4 | BP50: 2.25 | BQ50: 0 | BR50: 0 | BS50: 0 | BT50: 0 | BU50: 0 | BV50: 0 | BW50: 0 | BX50: 0 | BY50: 0 | BZ50: 0 | CA50: 0 | CB50: 0 | CC50: 0 | CD50: 10.8 | CE50: 0 | CF50: 17 | CG50: 3.5 | CH50: 2.3 | CI50: 775
AW51: 49 | AX51: WI | BA51: =IF(LEFT(BB51,2)=$H$9,AW35,"") ->  | BF51: 42 | BG51: VRF HP (Air Cooled) | BH51: Multi-split System | BI51: 0 | BJ51: 135000 | BK51: 240000 | BL51: 10.6 | BM51: 10000 | BN51: 12.3 | BO51: 3.3 | BP51: 2.05 | BQ51: 0 | BR51: 0 | BS51: 0 | BT51: 0 | BU51: 0 | BV51: 0 | BW51: 0 | BX51: 0 | BY51: 0 | BZ51: 0 | CA51: 0 | CB51: 0 | CC51: 0 | CD51: 10.4 | CE51: 0 | CF51: 16.4 | CG51: 3.4 | CH51: 2.1 | CI51: 560
AW52: 50 | AX52: WV | BA52: =IF(LEFT(BB52,2)=$H$9,AW36,"") ->  | BF52: 43 | BG52: VRF HP (Air Cooled) | BH52: Multi-split w/Heat Recovery | BI52: 0 | BJ52: 135000 | BK52: 240000 | BL52: 10.4 | BM52: 10000 | BN52: 12.1 | BO52: 3.3 | BP52: 2.05 | BQ52: 0 | BR52: 0 | BS52: 0 | BT52: 0 | BU52: 0 | BV52: 0 | BW52: 0 | BX52: 0 | BY52: 0 | BZ52: 0 | CA52: 0 | CB52: 0 | CC52: 0 | CD52: 10.4 | CE52: 0 | CF52: 16.4 | CG52: 3.4 | CH52: 2.1 | CI52: 735
BA53: =IF(LEFT(BB53,2)=$H$9,AW37,"") ->  | BF53: 44 | BG53: VRF HP (Air Cooled) | BH53: Multi-split System | BI53: 0 | BJ53: 240000 | BK53: 10000000 | BL53: 9.5 | BM53: 10000 | BN53: 11 | BO53: 3.2 | BP53: 2.05 | BQ53: 0 | BR53: 0 | BS53: 0 | BT53: 0 | BU53: 0 | BV53: 0 | BW53: 0 | BX53: 0 | BY53: 0 | BZ53: 0 | CA53: 0 | CB53: 0 | CC53: 0 | CD53: 9.3 | CE53: 0 | CF53: 15.3 | CG53: 3.3 | CH53: 2.1 | CI53: 525
BA54: =IF(LEFT(BB54,2)=$H$9,AW38,"") ->  | BF54: 45 | BG54: VRF HP (Air Cooled) | BH54: Multi-split w/Heat Recovery | BI54: 0 | BJ54: 240000 | BK54: 10000000 | BL54: 9.3 | BM54: 10000 | BN54: 10.8 | BO54: 3.2 | BP54: 2.05 | BQ54: 0 | BR54: 0 | BS54: 0 | BT54: 0 | BU54: 0 | BV54: 0 | BW54: 0 | BX54: 0 | BY54: 0 | BZ54: 0 | CA54: 0 | CB54: 0 | CC54: 0 | CD54: 9.3 | CE54: 0 | CF54: 15.3 | CG54: 3.3 | CH54: 2.1 | CI54: 800
BF55: 46 | BG55: VRF HP (Water Source) | BH55: Multi-split System | BI55: 0 | BJ55: 0 | BK55: 760000 | BL55: 12 | BM55: 0 | BN55: 13.8 | BO55: 4.3 | BP55: 4.2 | BQ55: 0 | BR55: 0 | BS55: 0 | BT55: 0 | BU55: 0 | BV55: 0 | BW55: 0 | BX55: 0 | BY55: 0 | BZ55: 0 | CA55: 0 | CB55: 0 | CC55: 0 | CD55: 14 | CE55: 0 | CF55: 0 | CG55: 4.6 | CH55: 4.6 | CI55: 535
BF56: 47 | BG56: VRF HP (Water Source) | BH56: Multi-split w/Heat Recovery | BI56: 0 | BJ56: 0 | BK56: 760000 | BL56: 11.8 | BM56: 0 | BN56: 13.57 | BO56: 4.3 | BP56: 4.2 | BQ56: 0 | BR56: 0 | BS56: 0 | BT56: 0 | BU56: 0 | BV56: 0 | BW56: 0 | BX56: 0 | BY56: 0 | BZ56: 0 | CA56: 0 | CB56: 0 | CC56: 0 | CD56: 13.8 | CE56: 0 | CF56: 0 | CG56: 4.6 | CH56: 4.6 | CI56: 775
BF57: 48 | BG57: 0 | BH57: 0 | BI57: 0 | BJ57: 0 | BK57: 0 | BL57: 0 | BM57: 0 | BN57: 0 | BO57: 0 | BP57: 0 | BQ57: 0 | BR57: 0 | BS57: 0 | BT57: 0 | BU57: 0 | BV57: 0 | BW57: 0 | BX57: 0 | BY57: 0 | BZ57: 0 | CA57: 0 | CB57: 0 | CC57: 0 | CD57: 0 | CE57: 0 | CF57: 0 | CG57: 0 | CH57: 0 | CI57: 0
BF58: 49 | BG58: 0 | BH58: 0 | BI58: 0 | BJ58: 0 | BK58: 0 | BL58: 0 | BM58: 0 | BN58: 0 | BO58: 0 | BP58: 0 | BQ58: 0 | BR58: 0 | BS58: 0 | BT58: 0 | BU58: 0 | BV58: 0 | BW58: 0 | BX58: 0 | BY58: 0 | BZ58: 0 | CA58: 0 | CB58: 0 | CC58: 0 | CD58: 0 | CE58: 0 | CF58: 0 | CG58: 0 | CH58: 0 | CI58: 0
BF59: 50 | BG59: 0 | BH59: 0 | BI59: 0 | BJ59: 0 | BK59: 0 | BL59: 0 | BM59: 0 | BN59: 0 | BO59: 0 | BP59: 0 | BQ59: 0 | BR59: 0 | BS59: 0 | BT59: 0 | BU59: 0 | BV59: 0 | BW59: 0 | BX59: 0 | BY59: 0 | BZ59: 0 | CA59: 0 | CB59: 0 | CC59: 0 | CD59: 0 | CE59: 0 | CF59: 0 | CG59: 0 | CH59: 0 | CI59: 0
BF60: 51 | BG60: 0 | BH60: 0 | BI60: 0 | BJ60: 0 | BK60: 0 | BL60: 0 | BM60: 0 | BN60: 0 | BO60: 0 | BP60: 0 | BQ60: 0 | BR60: 0 | BS60: 0 | BT60: 0 | BU60: 0 | BV60: 0 | BW60: 0 | BX60: 0 | BY60: 0 | BZ60: 0 | CA60: 0 | CB60: 0 | CC60: 0 | CD60: 0 | CE60: 0 | CF60: 0 | CG60: 0 | CH60: 0 | CI60: 0
BF61: 52 | BG61: 0 | BH61: 0 | BI61: 0 | BJ61: 0 | BK61: 0 | BL61: 0 | BM61: 0 | BN61: 0 | BO61: 0 | BP61: 0 | BQ61: 0 | BR61: 0 | BS61: 0 | BT61: 0 | BU61: 0 | BV61: 0 | BW61: 0 | BX61: 0 | BY61: 0 | BZ61: 0 | CA61: 0 | CB61: 0 | CC61: 0 | CD61: 0 | CE61: 0 | CF61: 0 | CG61: 0 | CH61: 0 | CI61: 0
AZ62: =IF(ISERROR(MID(VLOOKUP(LARGE($BA$11:$BA$67,AW39),$BA$11:$BB$68,2,),4,5)),"",MID(VLOOKUP(LARGE($BA$11:$BA$67,AW39),$BA$11:$BB$68,2,),4,5)) ->  | BA62: =IF(LEFT(BB62,2)=$H$9,AW39,"") ->  | BF62: 53 | BG62: 0 | BH62: 0 | BI62: 0 | BJ62: 0 | BK62: 0 | BL62: 0 | BM62: 0 | BN62: 0 | BO62: 0 | BP62: 0 | BQ62: 0 | BR62: 0 | BS62: 0 | BT62: 0 | BU62: 0 | BV62: 0 | BW62: 0 | BX62: 0 | BY62: 0 | BZ62: 0 | CA62: 0 | CB62: 0 | CC62: 0 | CD62: 0 | CE62: 0 | CF62: 0 | CG62: 0 | CH62: 0 | CI62: 0
BF63: 54 | BG63: 0 | BH63: 0 | BI63: 0 | BJ63: =IF($BL$4=0,0,OFFSET(BJ63,$BL$5*$BL$4,0)) -> 0 | BK63: 0 | BL63: 0 | BM63: 0 | BN63: 0 | BO63: 0 | BP63: 0 | BQ63: 0 | BR63: 0 | BS63: 0 | BT63: 0 | BU63: 0 | BV63: 0 | BW63: 0 | BX63: 0 | BY63: 0 | BZ63: 0 | CA63: 0 | CB63: 0 | CC63: 0 | CD63: 0 | CE63: 0 | CF63: 0 | CG63: 0 | CH63: 0 | CI63: 0
BF64: ↓ ADD OR CHANGE EFFICIENCY REQUIRMENTS BELOW↓
BL65: UT | BR65: Code | BS65: EFLCH | BT65: EFLHH | BU65: NTG | BV65: CF | BW65: Cooling Months | BX65: Defined in Fed Code | BY65: Estimation | BZ65: Defined in State Code | CB65: PTAC Calcs from Deemed Savings | CD65: Cost | CE65: kW/Unit | CF65: Gross kWh/yr | CG65: $/ton
BR66: IECC 2018, Tables C403.2.3(1) & C403.2.3(2) | BS66: =INDEX(Segment_EFLH,MATCH(BusinessType,HVAC!BusinessType_List,0),MATCH(BL65& " "&BS65,Lookups!$S$12:$Y$12,0)) ->  | BT66: =INDEX(Segment_EFLH,MATCH(BusinessType,HVAC!BusinessType_List,0),MATCH(BL65& " "&BT65,Lookups!$S$12:$Y$12,0)) ->  | BU66: 1 | BV66: 1 | BW66: 5 | BY66: Not Used | BZ66: Existing in Program | CD66: 200 | CE66: 0.098 | CF66: 400 | CG66: 50
BL67: Baseline | BR67: Tier | BS67: 1 | BU67: 25 | BV67: per ton | BX67: Tier | BY67: 2 | CA67: 50 | CB67: =BV67 -> per ton | CD67: Tier | CE67: 3 | CG67: 75 | CH67: =CB67 -> per ton
BL68: Cooling | BO68: Heating | BR68: Cooling | BU68: Heating | BW68: Gross Incremental Cost/Ton | BX68: Cooling | CA68: Heating | CC68: Gross Incremental Cost/Ton | CD68: Cooling | CG68: Heating | CI68: Gross Incremental Cost/Ton
BL69: EER | BM69: SEER IPLV | BN69: IEER | BO69: HSPF COP @ DB/WB | BR69: EER | BS69: SEER IPLV | BT69: IEER | BU69: HSPF COP @ DB/WB | BX69: EER | BY69: SEER IPLV | BZ69: IEER | CA69: HSPF COP @ DB/WB | CD69: EER | CE69: SEER IPLV | CF69: IEER | CG69: HSPF COP @ DB/WB
BG70: Equip Type | BH70: Category | BI70: Phase | BJ70: Min (>=) | BK70: Max (<) | BO70: 47/43 | BP70: 17/15 | BU70: 47/43 | BV70: 17/15 | CA70: 47/43 | CB70: 17/15 | CG70: 47/43 | CH70: 17/15
BF71: 1 | BG71: Heat Pump (Air Cooled) | BH71: Split (1 Phase) | BI71: 1 | BJ71: 0 | BK71: 65000 | BM71: 14 | BO71: 8.2 | BP71: 8.2 | BY71: 16 | CA71: 9.2 | CB71: 9.2 | CC71: 150
BF72: 2 | BG72: Heat Pump (Air Cooled) | BH72: Package (1 Phase) | BI72: 1 | BJ72: 0 | BK72: 65000 | BM72: 14 | BO72: 8 | BP72: 8 | BY72: 16 | CA72: 8.5 | CB72: 8.5 | CC72: 150
BF73: 3 | BG73: Heat Pump (Air Cooled) | BH73: Split (3 Phase) | BI73: 3 | BJ73: 0 | BK73: 65000 | BM73: 14 | BO73: 8.2 | BP73: 8.2 | BS73: 16 | BU73: 8.5 | BV73: 8.5 | BW73: 105 | BY73: 16 | CA73: 9.2 | CB73: 9.2 | CC73: 150
BF74: 4 | BG74: Heat Pump (Air Cooled) | BH74: Package (3 Phase) | BI74: 3 | BJ74: 0 | BK74: 65000 | BM74: 14 | BO74: 8 | BP74: 8 | BS74: 16 | BU74: 8.2 | BV74: 8.2 | BW74: 105 | BY74: 16 | CA74: 8.5 | CB74: 8.5 | CC74: 150
BF75: 5 | BG75: Heat Pump (Air Cooled) | BH75: Split (3 Phase) Package (3 Phase) | BI75: 3 | BJ75: 65000 | BK75: 135000 | BL75: 10.8 | BN75: 13.9 | BO75: 3.4 | BP75: 2.25 | BR75: 10.8 | BT75: 14.6 | BU75: 3.4 | BV75: 2.4 | BW75: 105 | CC75: 150
BF76: 6 | BG76: Heat Pump (Air Cooled) | BH76: Split (3 Phase) Package (3 Phase) | BI76: 3 | BJ76: 135000 | BK76: 240000 | BL76: 10.4 | BN76: 13.3 | BO76: 3.3 | BP76: 2.05 | BR76: 10.4 | BT76: 13.8 | BU76: 3.3 | BV76: 2.1 | BW76: 105 | CC76: 150
BF77: 7 | BG77: Heat Pump (Air Cooled) | BH77: Split (3 Phase) Package (3 Phase) | BI77: 3 | BJ77: 240000 | BK77: 10000000 | BL77: 9.3 | BN77: 12.3 | BO77: 3.2 | BP77: 2.05 | BR77: 9.3 | BT77: 12.8 | BU77: 3.3 | BV77: 2.1 | BW77: 105 | CC77: 150
BF78: 8 | BG78: Heat Pump (Water Cooled) | BJ78: 0 | BK78: 17000 | BL78: 12.2 | BN78: =BL78*1.15 -> 14.03 | BO78: 4.3 | BP78: 4.3 | BX78: 14 | CA78: 4.6 | CB78: 4.6 | CC78: 100
BF79: 9 | BG79: Heat Pump (Water Cooled) | BJ79: 17000 | BK79: 65000 | BL79: 13 | BN79: =BL79*1.15 -> 14.95 | BO79: 4.3 | BP79: 4.3 | BX79: 14 | CA79: 4.6 | CB79: 4.6 | CC79: 100
BF80: 10 | BG80: Heat Pump (Water Cooled) | BJ80: 65000 | BK80: 135000 | BL80: 13 | BN80: =BL80*1.15 -> 14.95 | BO80: 4.3 | BP80: 4.3 | BX80: 14 | CA80: 4.6 | CB80: 4.6 | CC80: 100
BF81: 11 | BG81: Unitary AC (Air Cooled) | BH81: Split (1 Phase) | BI81: 1 | BJ81: 0 | BK81: 45000 | BL81: 11 | BM81: 13 | BX81: 11 | BY81: 16 | CC81: 235 | CD81: 11 | CE81: 18 | CI81: 375
BF82: 12 | BG82: Unitary AC (Air Cooled) | BH82: Split (1 Phase) | BI82: 1 | BJ82: 45000 | BK82: 65000 | BL82: 11 | BM82: 13 | BX82: 11 | BY82: 16 | CC82: 235 | CD82: 11 | CE82: 18 | CI82: 375
BF83: 13 | BG83: Unitary AC (Air Cooled) | BH83: Package (1 Phase) | BI83: 1 | BJ83: 0 | BK83: 65000 | BL83: 11 | BM83: 14 | BX83: 10000 | BY83: 10000 | CC83: 235 | CD83: 10000 | CE83: 10000
BF84: 14 | BG84: Unitary AC (Air Cooled) | BH84: Split (3 Phase) | BI84: 3 | BJ84: 0 | BK84: 65000 | BL84: 11 | BM84: 13 | BX84: 11 | BY84: 16 | CC84: 175 | CD84: 11 | CE84: 18 | CI84: 375
BF85: 15 | BG85: Unitary AC (Air Cooled) | BH85: Package (3 Phase) | BI85: 3 | BJ85: 0 | BK85: 65000 | BL85: 11 | BM85: 14 | BX85: 10000 | BY85: 10000 | CC85: 175 | CD85: 10000 | CE85: 10000
BF86: 16 | BG86: Unitary AC (Air Cooled) | BH86: Split (3 Phase) | BI86: 3 | BJ86: 65000 | BK86: 135000 | BL86: 11 | BM86: 10000 | BN86: 14.6 | BX86: 11 | BZ86: 16.1 | CC86: 150 | CD86: 11 | CF86: 17.8 | CI86: 300
BF87: 17 | BG87: Unitary AC (Air Cooled) | BH87: Split (3 Phase) Package (3 Phase) | BI87: 3 | BJ87: 135000 | BK87: 240000 | BL87: 10.8 | BM87: 10000 | BN87: 14 | BX87: 10.8 | BZ87: 15.4 | CC87: 125 | CD87: 10.8 | CF87: 16.8 | CI87: 205
BF88: 18 | BG88: Unitary AC (Air Cooled) | BH88: Split (3 Phase) Package (3 Phase) | BI88: 3 | BJ88: 240000 | BK88: 760000 | BL88: 9.8 | BM88: 10000 | BN88: 13 | BX88: 9.8 | BZ88: 14.3 | CC88: 95 | CD88: 9.8 | CF88: 15.6 | CI88: 185
BF89: 19 | BG89: Unitary AC (Air Cooled) | BH89: Split (3 Phase) Package (3 Phase) | BI89: 3 | BJ89: 760000 | BK89: 10000000 | BL89: 9.5 | BM89: 10000 | BN89: 11 | BX89: 9.5 | BZ89: 13.6 | CC89: 160 | CD89: 9.5 | CF89: 14.9
BF90: 20 | BG90: Ground-Source Heat Pump | BJ90: 0 | BK90: 10000000 | BL90: 14.1 | BN90: =BL90*1.15 -> 16.215 | BO90: 3.2 | BP90: 3.2 | BX90: 17.1 | CA90: 3.6 | CB90: 3.6 | CC90: 150
BF91: 21 | BG91: Groundwater Source Heat Pump | BJ91: 0 | BK91: 10000000 | BL91: 18 | BN91: =BL91*1.15 -> 20.7 | BO91: 3.7 | BP91: 3.7 | BX91: 21.1 | CA91: 4.1 | CB91: 4.1 | CC91: 150
BF92: 22 | BG92: Unitary AC (Water Cooled) | BH92: Split (1 Phase) | BI92: 1 | BJ92: 0 | BK92: 65000 | BL92: 12.1 | BN92: 12.3 | BX92: 14 | CC92: 100
BF93: 23 | BG93: Unitary AC (Water Cooled) | BH93: Package (1 Phase) | BI93: 1 | BJ93: 0 | BK93: 65000 | BL93: 12.1 | BN93: 12.3 | BX93: 14 | CC93: 100
BF94: 24 | BG94: Unitary AC (Water Cooled) | BH94: Split (3 Phase) | BI94: 3 | BJ94: 0 | BK94: 65000 | BL94: 12.1 | BN94: 12.3 | BX94: 14 | CC94: 100
BF95: 25 | BG95: Unitary AC (Water Cooled) | BH95: Package (3 Phase) | BI95: 3 | BJ95: 0 | BK95: 65000 | BL95: 12.1 | BN95: 12.3 | BX95: 14 | CC95: 100
BF96: 26 | BG96: Unitary AC (Water Cooled) | BH96: Split (3 Phase) Package (3 Phase) | BI96: 3 | BJ96: 65000 | BK96: 135000 | BL96: 11.9 | BM96: 10000 | BN96: 13.7 | BX96: 11.9 | BZ96: 15.1 | CC96: 100
BF97: 27 | BG97: Unitary AC (Water Cooled) | BH97: Split (3 Phase) Package (3 Phase) | BI97: 3 | BJ97: 135000 | BK97: 240000 | BL97: 12.3 | BM97: 10000 | BN97: 13.7 | BX97: 12.3 | BZ97: 14.6 | CC97: 100
BF98: 28 | BG98: Unitary AC (Water Cooled) | BH98: Split (3 Phase) Package (3 Phase) | BI98: 3 | BJ98: 240000 | BK98: 760000 | BL98: 12.2 | BM98: 10000 | BN98: 13.4 | BX98: 12.3 | BZ98: 14.6 | CC98: 100
BF99: 29 | BG99: Unitary AC (Water Cooled) | BH99: Split (3 Phase) Package (3 Phase) | BI99: 3 | BJ99: 760000 | BK99: 10000000 | BL99: 12 | BM99: 10000 | BN99: 13.3 | BX99: 12.3 | BZ99: 14.6 | CC99: 100
BF100: 30 | BG100: Unitary AC (Evaporatively Cooled) | BH100: Split (1 Phase) | BI100: 1 | BJ100: 0 | BK100: 65000 | BL100: 12.1 | BN100: 12.3 | BX100: 14 | CC100: 100
BF101: 31 | BG101: Unitary AC (Evaporatively Cooled) | BH101: Package (1 Phase) | BI101: 1 | BJ101: 0 | BK101: 65000 | BL101: 12.1 | BN101: 12.3 | BX101: 14 | CC101: 100
BF102: 32 | BG102: Unitary AC (Evaporatively Cooled) | BH102: Split (3 Phase) | BI102: 3 | BJ102: 0 | BK102: 65000 | BL102: 12.1 | BN102: 12.3 | BX102: 14 | CC102: 100
BF103: 33 | BG103: Unitary AC (Evaporatively Cooled) | BH103: Package (3 Phase) | BI103: 3 | BJ103: 0 | BK103: 65000 | BL103: 12.1 | BN103: 12.3 | BX103: 14 | CC103: 100
BF104: 34 | BG104: Unitary AC (Evaporatively Cooled) | BH104: Split (3 Phase) Package (3 Phase) | BI104: 3 | BJ104: 65000 | BK104: 135000 | BL104: 11.9 | BM104: 10000 | BN104: 12.1 | BX104: 11.9 | BZ104: 15.1 | CC104: 100
BF105: 35 | BG105: Unitary AC (Evaporatively Cooled) | BH105: Split (3 Phase) Package (3 Phase) | BI105: 3 | BJ105: 135000 | BK105: 240000 | BL105: 11.8 | BM105: 10000 | BN105: 12 | BX105: 11.8 | BZ105: 14.1 | CC105: 100
BF106: 36 | BG106: Unitary AC (Evaporatively Cooled) | BH106: Split (3 Phase) Package (3 Phase) | BI106: 3 | BJ106: 240000 | BK106: 760000 | BL106: 11.7 | BM106: 10000 | BN106: 11.9 | BX106: 11.8 | BZ106: 14.1 | CC106: 100
BF107: 37 | BG107: Unitary AC (Evaporatively Cooled) | BH107: Split (3 Phase) Package (3 Phase) | BI107: 3 | BJ107: 760000 | BK107: 10000000 | BL107: 11.5 | BM107: 10000 | BN107: 11.7 | BX107: 11.8 | BZ107: 14.1 | CC107: 100
BF108: 38 | BG108: VRF HP (Air Cooled) | BH108: Multi-split System | BJ108: 0 | BK108: 65000 | BL108: 11 | BM108: 13 | BO108: 8.2 | BP108: 7.7 | CD108: 1 | CE108: 15.2 | CG108: 8.7 | CH108: 8.7 | CI108: 535
BF109: 39 | BG109: VRF HP (Air Cooled) | BH109: Multi-split w/Heat Recovery | BJ109: 0 | BK109: 65000 | BL109: 11 | BM109: 13 | BO109: 8.2 | BP109: 7.7 | CD109: 1 | CE109: 15.2 | CG109: 8.7 | CH109: 8.7 | CI109: 535
BF110: 40 | BG110: VRF HP (Air Cooled) | BH110: Multi-split System | BJ110: 65000 | BK110: 135000 | BL110: 11 | BM110: 10000 | BN110: 12.9 | BO110: 3.4 | BP110: 2.25 | CD110: 10.8 | CF110: 17 | CG110: 3.5 | CH110: 2.3 | CI110: 535
BF111: 41 | BG111: VRF HP (Air Cooled) | BH111: Multi-split w/Heat Recovery | BJ111: 65000 | BK111: 135000 | BL111: 10.8 | BM111: 10000 | BN111: 12.7 | BO111: 3.4 | BP111: 2.25 | CD111: 10.8 | CF111: 17 | CG111: 3.5 | CH111: 2.3 | CI111: 775
BF112: 42 | BG112: VRF HP (Air Cooled) | BH112: Multi-split System | BJ112: 135000 | BK112: 240000 | BL112: 10.6 | BM112: 10000 | BN112: 12.3 | BO112: 3.3 | BP112: 2.05 | CD112: 10.4 | CF112: 16.4 | CG112: 3.4 | CH112: 2.1 | CI112: 560
BF113: 43 | BG113: VRF HP (Air Cooled) | BH113: Multi-split w/Heat Recovery | BJ113: 135000 | BK113: 240000 | BL113: 10.4 | BM113: 10000 | BN113: 12.1 | BO113: 3.3 | BP113: 2.05 | CD113: 10.4 | CF113: 16.4 | CG113: 3.4 | CH113: 2.1 | CI113: 735
BF114: 44 | BG114: VRF HP (Air Cooled) | BH114: Multi-split System | BJ114: 240000 | BK114: 10000000 | BL114: 9.5 | BM114: 10000 | BN114: 11 | BO114: 3.2 | BP114: 2.05 | CD114: 9.3 | CF114: 15.3 | CG114: 3.3 | CH114: 2.1 | CI114: 525
BF115: 45 | BG115: VRF HP (Air Cooled) | BH115: Multi-split w/Heat Recovery | BJ115: 240000 | BK115: 10000000 | BL115: 9.3 | BM115: 10000 | BN115: 10.8 | BO115: 3.2 | BP115: 2.05 | CD115: 9.3 | CF115: 15.3 | CG115: 3.3 | CH115: 2.1 | CI115: 800
BF116: 46 | BG116: VRF HP (Water Source) | BH116: Multi-split System | BJ116: 0 | BK116: 760000 | BL116: 12 | BN116: =BL116*1.15 -> 13.8 | BO116: 4.3 | BP116: 4.2 | CD116: 14 | CG116: 4.6 | CH116: 4.6 | CI116: 535
BF117: 47 | BG117: VRF HP (Water Source) | BH117: Multi-split w/Heat Recovery | BJ117: 0 | BK117: 760000 | BL117: 11.8 | BN117: =BL117*1.15 -> 13.57 | BO117: 4.3 | BP117: 4.2 | CD117: 13.8 | CG117: 4.6 | CH117: 4.6 | CI117: 775
BF118: 48
BF119: 49
BF120: 50
BF121: 51
BF122: 52
BF123: 53
BF124: 54
BL126: WA | BR126: Code | BS126: EFLCH | BT126: EFLHH | BU126: NTG | BV126: CF | BW126: Cooling Months | BX126: Defined in Fed Code | BY126: Estimation | BZ126: Defined in Code | CB126: PTAC Calcs from Deemed Savings | CD126: Cost | CE126: kW/Unit | CF126: Gross kWh/yr | CG126: $/ton
BR127: WSEC 2018, Tables C403.2.3(1)A, C403.2.3(1)D, C403.2.3(2) | BS127: 710.21 | BT127: 2201 | BU127: 1 | BV127: 1 | BW127: 5 | BY127: Not Used | BZ127: Existing in Program | CD127: 200 | CE127: 0.098 | CF127: 377 | CG127: 50
BL128: Baseline | BR128: Tier | BS128: 1 | BU128: 31 | BV128: per ton | BX128: Tier | BY128: 2 | CA128: 62 | CB128: =BV128 -> per ton | CD128: Tier | CE128: 3 | CG128: 93 | CH128: =CB128 -> per ton
BL129: Cooling | BO129: Heating | BR129: Cooling | BU129: Heating | BW129: Gross Incremental Cost/Ton | BX129: Cooling | CA129: Heating | CC129: Gross Incremental Cost/Ton | CD129: Cooling | CG129: Heating | CI129: Gross Incremental Cost/Ton
BL130: EER | BM130: SEER IPLV | BN130: IEER | BO130: HSPF COP @ DB/WB | BR130: EER | BS130: SEER IPLV | BT130: IEER | BU130: HSPF COP @ DB/WB | BX130: EER | BY130: SEER IPLV | BZ130: IEER | CA130: HSPF COP @ DB/WB | CD130: EER | CE130: SEER IPLV | CF130: IEER | CG130: HSPF COP @ DB/WB
BG131: Equip Type | BH131: Category | BI131: Phase | BJ131: Min (>=) | BK131: Max (<) | BO131: 47/43 | BP131: 17/15 | BU131: 47/43 | BV131: 17/15 | CA131: 47/43 | CB131: 17/15 | CG131: 47/43 | CH131: 17/15
BF132: 1 | BG132: Heat Pump (Air Cooled) | BH132: Split (1 Phase) | BI132: 1 | BJ132: 0 | BK132: 65000 | BM132: 14 | BO132: 8.2 | BP132: 8.2 | BS132: 15 | BU132: 8.5 | BV132: 8.5 | BW132: 105 | BX132: 12.1 | BY132: 16 | CA132: 9.2 | CB132: 9.2 | CC132: 450
BF133: 2 | BG133: Heat Pump (Air Cooled) | BH133: Package (1 Phase) | BI133: 1 | BJ133: 0 | BK133: 65000 | BM133: 14 | BO133: 8 | BP133: 8 | BS133: 15 | BU133: 8.2 | BV133: 8.2 | BW133: 105 | BX133: 11 | BY133: 16 | CA133: 8.5 | CB133: 8.5 | CC133: 450
BF134: 3 | BG134: Heat Pump (Air Cooled) | BH134: Split (3 Phase) | BI134: 3 | BJ134: 0 | BK134: 65000 | BM134: 14 | BO134: 8.2 | BP134: 8.2 | BS134: 15 | BU134: 8.5 | BV134: 8.5 | BW134: 105 | BX134: 12.1 | BY134: 16 | CA134: 9.2 | CB134: 9.2 | CC134: 150
BF135: 4 | BG135: Heat Pump (Air Cooled) | BH135: Package (3 Phase) | BI135: 3 | BJ135: 0 | BK135: 65000 | BM135: 14 | BO135: 8 | BP135: 8 | BS135: 15 | BU135: 8.2 | BV135: 8.2 | BW135: 105 | BX135: 11 | BY135: 16 | CA135: 8.5 | CB135: 8.5 | CC135: 150
BF136: 5 | BG136: Heat Pump (Air Cooled) | BH136: Split (1 Phase) Package (1 Phase) Split (3 Phase) Package (3 Phase) | BI136: 3 | BJ136: 65000 | BK136: 135000 | BL136: 10.8 | BN136: 13.9 | BO136: 3.4 | BP136: 2.25 | BW136: 105 | BX136: 11.6 | BZ136: 15.1 | CA136: 3.5 | CB136: 2.4 | CC136: 150
BF137: 6 | BG137: Heat Pump (Air Cooled) | BH137: Split (1 Phase) Package (1 Phase) Split (3 Phase) Package (3 Phase) | BI137: 3 | BJ137: 135000 | BK137: 240000 | BL137: 10.4 | BN137: 13.3 | BO137: 3.3 | BP137: 2.05 | BW137: 105 | BX137: 10.9 | BZ137: 14.3 | CA137: 3.4 | CB137: 2.1 | CC137: 150
BF138: 7 | BG138: Heat Pump (Air Cooled) | BH138: Split (1 Phase) Package (1 Phase) Split (3 Phase) Package (3 Phase) | BI138: 3 | BJ138: 240000 | BK138: 760000 | BL138: 9.3 | BN138: 12.3 | BO138: 3.2 | BP138: 2.05 | BW138: 105 | CC138: 150
BF139: 8 | BG139: Heat Pump (Air Cooled, Replacing Electric Resistance) | BH139: Split (1 Phase) | BI139: 1 | BJ139: 0 | BK139: 65000 | BM139: 14 | BO139: 8.2 | BP139: 8.2 | BS139: 15 | BU139: 8.5 | BV139: 8.5 | BW139: 105 | BY139: 16 | CA139: 9 | CB139: 9 | CC139: 450
BF140: 9 | BG140: Heat Pump (Air Cooled, Replacing Electric Resistance) | BH140: Package (1 Phase) | BI140: 1 | BJ140: 0 | BK140: 65000 | BM140: 14 | BO140: 8 | BP140: 8 | BS140: 15 | BU140: 8.2 | BV140: 8.2 | BW140: 105 | BY140: 16 | CA140: 8.2 | CB140: 8.2 | CC140: 450
BF141: 10 | BG141: Heat Pump (Air Cooled, Replacing Electric Resistance) | BH141: Split (3 Phase) | BI141: 3 | BJ141: 0 | BK141: 65000 | BM141: 14 | BO141: 8.2 | BP141: 8.2 | BS141: 15 | BU141: 8.5 | BV141: 8.5 | BW141: 105 | BY141: 16 | CA141: 9 | CB141: 9 | CC141: 150
BF142: 11 | BG142: Heat Pump (Air Cooled, Replacing Electric Resistance) | BH142: Package (3 Phase) | BI142: 3 | BJ142: 0 | BK142: 65000 | BM142: 14 | BO142: 8 | BP142: 8 | BS142: 15 | BU142: 8.2 | BV142: 8.2 | BW142: 105 | BY142: 16 | CA142: 8.2 | CB142: 8.2 | CC142: 150
BF143: 12 | BG143: Heat Pump (Air Cooled, Replacing Electric Resistance) | BH143: Split (1 Phase) Package (1 Phase) Split (3 Phase) Package (3 Phase) | BI143: 3 | BJ143: 65000 | BK143: 135000 | BN143: 13.9 | BO143: 3.4 | BP143: 2.25 | BW143: 105 | BX143: 11.8 | BZ143: 15.3 | CA143: 3.5 | CB143: 2.4 | CC143: 150
BF144: 13 | BG144: Heat Pump (Air Cooled, Replacing Electric Resistance) | BH144: Split (1 Phase) Package (1 Phase) Split (3 Phase) Package (3 Phase) | BI144: 3 | BJ144: 135000 | BK144: 240000 | BN144: 13.3 | BO144: 3.3 | BP144: 2.05 | BW144: 105 | BX144: 11.1 | BZ144: 14.5 | CA144: 3.4 | CB144: 2.1 | CC144: 150
BF145: 14 | BG145: Heat Pump (Air Cooled, Replacing Electric Resistance) | BH145: Split (1 Phase) Package (1 Phase) Split (3 Phase) Package (3 Phase) | BI145: 3 | BJ145: 240000 | BK145: 760000 | BN145: 12.3 | BO145: 3.2 | BP145: 2.05 | BW145: 105 | CC145: 150
BF146: 15 | BG146: Heat Pump (Water Cooled) | BJ146: 0 | BK146: 17000 | BL146: 12.2 | BN146: =BL146*1.15 -> 14.03 | BO146: 4.3 | BP146: 4.3 | BX146: 14 | CA146: 4.6 | CB146: 4.6 | CC146: 100
BF147: 16 | BG147: Heat Pump (Water Cooled) | BJ147: 17000 | BK147: 65000 | BL147: 13 | BN147: =BL147*1.15 -> 14.95 | BO147: 4.3 | BP147: 4.3 | BX147: 14 | CA147: 4.6 | CB147: 4.6 | CC147: 100
BF148: 17 | BG148: Heat Pump (Water Cooled) | BJ148: 65000 | BK148: 135000 | BL148: 13 | BN148: =BL148*1.15 -> 14.95 | BO148: 4.3 | BP148: 4.3 | BX148: 14 | CA148: 4.6 | CB148: 4.6 | CC148: 100
BF149: 18 | BG149: Unitary AC (Air Cooled) | BH149: Split (1 Phase) | BI149: 1 | BJ149: 0 | BK149: 45000 | BM149: 13 | BY149: 16 | CC149: 375 | CE149: 18 | CI149: 400
BF150: 19 | BG150: Unitary AC (Air Cooled) | BH150: Split (1 Phase) | BI150: 1 | BJ150: 45000 | BK150: 65000 | BM150: 13 | BY150: 16 | CC150: 375 | CE150: 18 | CI150: 400
BF151: 20 | BG151: Unitary AC (Air Cooled) | BH151: Package (1 Phase) | BI151: 1 | BJ151: 0 | BK151: 65000 | BM151: 14 | BY151: 16 | CC151: 375 | CE151: 17 | CI151: 400
BF152: 21 | BG152: Unitary AC (Air Cooled) | BH152: Split (3 Phase) | BI152: 3 | BJ152: 0 | BK152: 65000 | BM152: 13 | BY152: 16 | CC152: 175 | CE152: 18 | CI152: 375
BF153: 22 | BG153: Unitary AC (Air Cooled) | BH153: Package (3 Phase) | BI153: 3 | BJ153: 0 | BK153: 65000 | BM153: 14 | BY153: 16 | CC153: 175 | CE153: 17 | CI153: 375
BF154: 23 | BG154: Unitary AC (Air Cooled) | BH154: Split (3 Phase) Package (3 Phase) | BI154: 3 | BJ154: 65000 | BK154: 135000 | BL154: 11.2 | BN154: 14.6 | CC154: 150 | CD154: 11 | CF154: 17.8 | CI154: 300
BF155: 24 | BG155: Unitary AC (Air Cooled) | BH155: Split (3 Phase) Package (3 Phase) | BI155: 3 | BJ155: 135000 | BK155: 240000 | BL155: 11 | BN155: 14 | CC155: 125 | CD155: 10.8 | CF155: 16.8 | CI155: 205
BF156: 25 | BG156: Unitary AC (Air Cooled) | BH156: Split (3 Phase) Package (3 Phase) | BI156: 3 | BJ156: 240000 | BK156: 760000 | BL156: 10 | BN156: 13 | CC156: 150 | CD156: 9.8 | CF156: 14.3 | CI156: 185
BF157: 26 | BG157: Unitary AC (Air Cooled) | BH157: Split (3 Phase) Package (3 Phase) | BI157: 3 | BJ157: 760000 | BK157: 10000000 | BL157: 9.7 | BN157: 11 | CC157: 75
BF158: 27 | BG158: Ground-Source Heat Pump | BJ158: 0 | BK158: 10000000 | BL158: 14.1 | BN158: =BL158*1.15 -> 16.215 | BO158: 3.2 | BP158: 3.2 | BX158: 17.1 | CA158: 3.6 | CB158: 3.6 | CC158: 100
BF159: 28 | BG159: Groundwater Source Heat Pump | BJ159: 0 | BK159: 10000000 | BL159: 18 | BN159: =BL159*1.15 -> 20.7 | BO159: 3.7 | BP159: 3.7 | BX159: 21.1 | CA159: 4.1 | CB159: 4.1 | CC159: 100
BF160: 29 | BG160: Unitary AC (Water Cooled) | BH160: Split (1 Phase) | BI160: 1 | BJ160: 0 | BK160: 65000 | BL160: 12.1 | BN160: 12.3 | BR160: 14 | BT160: 12.3 | BW160: 100
BF161: 30 | BG161: Unitary AC (Water Cooled) | BH161: Package (1 Phase) | BI161: 1 | BJ161: 0 | BK161: 65000 | BL161: 12.1 | BN161: 12.3 | BR161: 14 | BT161: 12.3 | BW161: 100
BF162: 31 | BG162: Unitary AC (Water Cooled) | BH162: Split (3 Phase) | BI162: 3 | BJ162: 0 | BK162: 65000 | BL162: 12.1 | BN162: 12.3 | BR162: 14 | BT162: 12.3 | BW162: 100
BF163: 32 | BG163: Unitary AC (Water Cooled) | BH163: Package (3 Phase) | BI163: 3 | BJ163: 0 | BK163: 65000 | BL163: 12.1 | BN163: 12.3 | BR163: 14 | BT163: 12.3 | BW163: 100
BF164: 33 | BG164: Unitary AC (Water Cooled) | BH164: Split (3 Phase) Package (3 Phase) | BI164: 3 | BJ164: 65000 | BK164: 135000 | BL164: 12.1 | BN164: 13.9 | BR164: 11.9 | BT164: 15.1 | BW164: 100
BF165: 34 | BG165: Unitary AC (Water Cooled) | BH165: Split (3 Phase) Package (3 Phase) | BI165: 3 | BJ165: 135000 | BK165: 240000 | BL165: 12.5 | BN165: 13.9 | BR165: 12.3 | BT165: 14.6 | BW165: 100
BF166: 35 | BG166: Unitary AC (Water Cooled) | BH166: Split (3 Phase) Package (3 Phase) | BI166: 3 | BJ166: 240000 | BK166: 760000 | BL166: 12.4 | BN166: 13.6 | BR166: 12.3 | BT166: 14.6 | BW166: 100
BF167: 36 | BG167: Unitary AC (Water Cooled) | BH167: Split (3 Phase) Package (3 Phase) | BI167: 3 | BJ167: 760000 | BK167: 10000000 | BL167: 12.2 | BN167: 13.5 | BR167: 12.3 | BT167: 14.6 | BW167: 100
BF168: 37 | BG168: Unitary AC (Evaporatively Cooled) | BH168: Split (1 Phase) | BI168: 1 | BJ168: 0 | BK168: 65000 | BL168: 12.1 | BN168: 12.3 | BX168: 14 | BZ168: 12.3 | CC168: 100
BF169: 38 | BG169: Unitary AC (Evaporatively Cooled) | BH169: Package (1 Phase) | BI169: 1 | BJ169: 0 | BK169: 65000 | BL169: 12.1 | BN169: 12.3 | BX169: 14 | BZ169: 12.3 | CC169: 100
BF170: 39 | BG170: Unitary AC (Evaporatively Cooled) | BH170: Split (3 Phase) | BI170: 3 | BJ170: 0 | BK170: 65000 | BL170: 12.1 | BN170: 12.3 | BX170: 14 | BZ170: 12.3 | CC170: 100
BF171: 40 | BG171: Unitary AC (Evaporatively Cooled) | BH171: Package (3 Phase) | BI171: 3 | BJ171: 0 | BK171: 65000 | BL171: 12.1 | BN171: 12.3 | BX171: 14 | BZ171: 12.3 | CC171: 100
BF172: 41 | BG172: Unitary AC (Evaporatively Cooled) | BH172: Split (1 Phase) Package (1 Phase) Split (3 Phase) Package (3 Phase) | BI172: 3 | BJ172: 65000 | BK172: 135000 | BL172: 12.1 | BN172: 12.3 | BX172: 11.9 | BZ172: 15.1 | CC172: 100
BF173: 42 | BG173: Unitary AC (Evaporatively Cooled) | BH173: Split (1 Phase) Package (1 Phase) Split (3 Phase) Package (3 Phase) | BI173: 3 | BJ173: 135000 | BK173: 240000 | BL173: 12 | BN173: 12.2 | BX173: 11.8 | BZ173: 14.1 | CC173: 100
BF174: 43 | BG174: Unitary AC (Evaporatively Cooled) | BH174: Split (1 Phase) Package (1 Phase) Split (3 Phase) Package (3 Phase) | BI174: 3 | BJ174: 240000 | BK174: 760000 | BL174: 11.9 | BN174: 12.1 | BX174: 11.8 | BZ174: 14.1 | CC174: 100
BF175: 44 | BG175: Unitary AC (Evaporatively Cooled) | BH175: Split (1 Phase) Package (1 Phase) Split (3 Phase) Package (3 Phase) | BI175: 3 | BJ175: 760000 | BK175: 10000000 | BL175: 11.7 | BN175: 11.9 | BX175: 11.8 | BZ175: 14.1 | CC175: 100
BF176: 45 | BG176: VRF HP (Air Cooled) | BH176: Multi-split System | BJ176: 0 | BK176: 65000 | BL176: 10.87 | BM176: 13 | BO176: 8.2 | BP176: 8.2 | CD176: 12.5 | CE176: 15 | CG176: 8.5 | CH176: 8.5 | CI176: 400
BF177: 46 | BG177: VRF HP (Air Cooled) | BH177: Multi-split w/Heat Recovery | BJ177: 0 | BK177: 65000 | BL177: 10.87 | BM177: 13 | BO177: 8.2 | BP177: 8.2 | CD177: 12.5 | CE177: 15 | CG177: 8.5 | CH177: 8.5 | CI177: 400
BF178: 47 | BG178: VRF HP (Air Cooled) | BH178: Multi-split System | BJ178: 65000 | BK178: 135000 | BL178: 11 | BN178: 14.6 | BO178: 3.4 | BP178: 2.25 | CD178: 11.5 | CF178: 16 | CG178: 3.4 | CH178: 2.4 | CI178: 400
BF179: 48 | BG179: VRF HP (Air Cooled) | BH179: Multi-split w/Heat Recovery | BJ179: 65000 | BK179: 135000 | BL179: 11 | BN179: 14.4 | BO179: 3.4 | BP179: 2.25 | CD179: 11.5 | CF179: 16 | CG179: 3.4 | CH179: 2.4 | CI179: 400
BF180: 49 | BG180: VRF HP (Air Cooled) | BH180: Multi-split System | BJ180: 135000 | BK180: 240000 | BL180: 10.8 | BN180: 13.9 | BO180: 3.3 | BP180: 2.05 | CD180: 10.9 | CF180: 15.4 | CG180: 3.2 | CH180: 2.05 | CI180: 400
BF181: 50 | BG181: VRF HP (Air Cooled) | BH181: Multi-split w/Heat Recovery | BJ181: 135000 | BK181: 240000 | BL181: 10.8 | BN181: 13.7 | BO181: 3.3 | BP181: 2.05 | CD181: 10.9 | CF181: 15.4 | CG181: 3.2 | CH181: 2.05 | CI181: 400
BF182: 51 | BG182: VRF HP (Air Cooled) | BH182: Multi-split System | BJ182: 240000 | BK182: 10000000 | BL182: 9.8 | BN182: 12.7 | BO182: 3.2 | BP182: 2.05 | CD182: 9.6 | CF182: 14.3 | CG182: 3.2 | CH182: 2.05 | CI182: 400
BF183: 52 | BG183: VRF HP (Air Cooled) | BH183: Multi-split w/Heat Recovery | BJ183: 240000 | BK183: 10000000 | BL183: 9.8 | BN183: 12.5 | BO183: 3.2 | BP183: 2.05 | CD183: 9.6 | CF183: 14.3 | CG183: 3.2 | CH183: 2.05 | CI183: 400
BF184: 53 | BG184: VRF HP (Water Source) | BH184: Multi-split System | BJ184: 0 | BK184: 135000 | BL184: 12 | BN184: 16 | BO184: 4.3 | BP184: 4.3 | CD184: 14 | CF184: 16 | CG184: 4.6 | CH184: 4.6 | CI184: 400
BF185: 54 | BG185: VRF HP (Water Source) | BH185: Multi-split w/Heat Recovery | BJ185: 0 | BK185: 135000 | BL185: 11.8 | BN185: 15.8 | BO185: 4.3 | BP185: 4.3 | CD185: 13.8 | CF185: 15.8 | CG185: 4.6 | CH185: 4.6 | CI185: 400
BL187: CA | BR187: Code | BS187: EFLCH | BT187: EFLHH | BU187: NTG | BV187: CF | BW187: Cooling Months | BX187: Defined in Fed Code | BY187: Estimation | BZ187: Defined in Code | CB187: PTAC Calcs from Deemed Savings | CD187: Cost | CE187: kW/Unit | CF187: Gross kWh/yr | CG187: $/ton
BR188: Title 24 - 2013, Table 110.2-A, 110.2-B, 110.2-I | BS188: 837.93 | BT188: 2016 | BU188: 1 | BV188: 1 | BW188: 5 | BY188: Not Used | BZ188: Existing in Program | CD188: 200 | CE188: 0.098 | CF188: 313 | CG188: 50
BL189: Baseline | BR189: Tier | BS189: 1 | BV189: per ton | BX189: Tier | BY189: 2 | CA189: 50 | CB189: per ton | CD189: Tier | CE189: 3 | CG189: 50 | CH189: per ton
BL190: Cooling | BO190: Heating | BR190: Cooling | BU190: Heating | BW190: Gross Incremental Cost/Ton | BX190: Cooling | CA190: Heating | CC190: Gross Incremental Cost/Ton | CD190: Cooling | CG190: Heating | CI190: Gross Incremental Cost/Ton
BL191: EER | BM191: SEER IPLV | BN191: IEER | BO191: HSPF COP @ DB/WB | BR191: EER | BS191: SEER IPLV | BT191: IEER | BU191: HSPF COP @ DB/WB | BX191: EER | BY191: SEER IPLV | BZ191: IEER | CA191: HSPF COP @ DB/WB | CD191: EER | CE191: SEER IPLV | CF191: IEER | CG191: HSPF COP @ DB/WB
BG192: Equip Type | BH192: Category | BI192: Phase | BJ192: Min (>=) | BK192: Max (<) | BO192: 47/43 | BP192: 17/15 | BU192: 47/43 | BV192: 17/15 | CA192: 47/43 | CB192: 17/15 | CG192: 47/43 | CH192: 17/15
BF193: 1 | BG193: Heat Pump (Air Cooled) | BH193: Split (1 Phase) | BI193: 1 | BJ193: 0 | BK193: 65000 | BL193: 10.87 | BM193: 14 | BO193: 8.2 | BP193: 8.2 | BR193: 10000 | BS193: 10000 | BT193: 10000 | BU193: 10000 | BV193: 10000 | BX193: 10000 | BY193: 10000 | BZ193: 10000 | CA193: 10000 | CB193: 10000 | CC193: 450 | CD193: 10000 | CE193: 10000 | CF193: 10000 | CG193: 10000 | CH193: 10000
BF194: 2 | BG194: Heat Pump (Air Cooled) | BH194: Package (1 Phase) | BI194: 1 | BJ194: 0 | BK194: 65000 | BL194: 10.87 | BM194: 14 | BO194: 8 | BP194: 8 | BR194: 10000 | BS194: 10000 | BT194: 10000 | BU194: 10000 | BV194: 10000 | BX194: 10000 | BY194: 10000 | BZ194: 10000 | CA194: 10000 | CB194: 10000 | CC194: 450 | CD194: 10000 | CE194: 10000 | CF194: 10000 | CG194: 10000 | CH194: 10000
BF195: 3 | BG195: Heat Pump (Air Cooled) | BH195: Split (3 Phase) | BI195: 3 | BJ195: 0 | BK195: 65000 | BL195: 9.23 | BM195: 14 | BO195: 7.7 | BP195: 7.7 | BR195: 10000 | BS195: 10000 | BT195: 10000 | BU195: 10000 | BV195: 10000 | BX195: 10000 | BY195: 10000 | BZ195: 10000 | CA195: 10000 | CB195: 10000 | CC195: 150 | CD195: 10000 | CE195: 10000 | CF195: 10000 | CG195: 10000 | CH195: 10000 | CI195: 450
BF196: 4 | BG196: Heat Pump (Air Cooled) | BH196: Package (3 Phase) | BI196: 3 | BJ196: 0 | BK196: 65000 | BL196: 9.23 | BM196: 14 | BO196: 7.7 | BP196: 7.7 | BR196: 10000 | BS196: 10000 | BT196: 10000 | BU196: 10000 | BV196: 10000 | BX196: 10000 | BY196: 10000 | BZ196: 10000 | CA196: 10000 | CB196: 10000 | CC196: 150 | CD196: 10000 | CE196: 10000 | CF196: 10000 | CG196: 10000 | CH196: 10000 | CI196: 450
BF197: 5 | BG197: Heat Pump (Air Cooled) | BH197: Split (3 Phase) Package (3 Phase) | BI197: 3 | BJ197: 65000 | BK197: 135000 | BL197: 11 | BM197: 10.2 | BN197: 12.2 | BO197: 3.3 | BP197: 2.25 | BR197: 10000 | BS197: 10000 | BT197: 10000 | BU197: 10000 | BV197: 10000 | BX197: 10000 | BY197: 10000 | BZ197: 10000 | CA197: 10000 | CB197: 10000 | CC197: 150 | CD197: 10000 | CE197: 10000 | CF197: 10000 | CG197: 10000 | CH197: 10000
BF198: 6 | BG198: Heat Pump (Air Cooled) | BH198: Split (3 Phase) Package (3 Phase) | BI198: 3 | BJ198: 135000 | BK198: 240000 | BL198: 10.6 | BM198: 9.5 | BN198: 11.6 | BO198: 3.2 | BP198: 2.05 | BR198: 10000 | BS198: 10000 | BT198: 10000 | BU198: 10000 | BV198: 10000 | BX198: 10000 | BY198: 10000 | BZ198: 10000 | CA198: 10000 | CB198: 10000 | CC198: 150 | CD198: 10000 | CE198: 10000 | CF198: 10000 | CG198: 10000 | CH198: 10000
BF199: 7 | BG199: Heat Pump (Air Cooled) | BH199: Split (3 Phase) Package (3 Phase) | BI199: 3 | BJ199: 240000 | BK199: 10000000 | BL199: 9.5 | BM199: 9.2 | BN199: 10.6 | BO199: 3.2 | BP199: 2.05 | BR199: 10000 | BS199: 10000 | BT199: 10000 | BU199: 10000 | BV199: 10000 | BX199: 10000 | BY199: 10000 | BZ199: 10000 | CA199: 10000 | CB199: 10000 | CC199: 150 | CD199: 10000 | CE199: 10000 | CF199: 10000 | CG199: 10000 | CH199: 10000
BF200: 8 | BG200: Heat Pump (Air Cooled, Replacing Electric Resistance) | BH200: Split (1 Phase) | BI200: 1 | BJ200: 0 | BK200: 65000 | BL200: 10.87 | BM200: 14 | BO200: 8.2 | BP200: 8.2 | BR200: 10000 | BS200: 10000 | BT200: 10000 | BU200: 10000 | BV200: 10000 | BX200: 10.87 | BY200: 15 | CA200: 8.5 | CB200: 8.5 | CC200: 105 | CD200: 1 | CE200: 16 | CG200: 9 | CH200: 9 | CI200: 450
BF201: 9 | BG201: Heat Pump (Air Cooled, Replacing Electric Resistance) | BH201: Package (1 Phase) | BI201: 1 | BJ201: 0 | BK201: 65000 | BL201: 10.87 | BM201: 14 | BO201: 8 | BP201: 8 | BR201: 10000 | BS201: 10000 | BT201: 10000 | BU201: 10000 | BV201: 10000 | BX201: 10.87 | BY201: 15 | CA201: 8.2 | CB201: 8.2 | CC201: 105 | CD201: 1 | CE201: 16 | CG201: 8.2 | CH201: 8.2 | CI201: 450
BF202: 10 | BG202: Heat Pump (Air Cooled, Replacing Electric Resistance) | BH202: Split (3 Phase) | BI202: 3 | BJ202: 0 | BK202: 65000 | BL202: 9.23 | BM202: 14 | BO202: 7.7 | BP202: 7.7 | BR202: 10000 | BS202: 10000 | BT202: 10000 | BU202: 10000 | BV202: 10000 | BX202: 9.23 | BY202: 15 | CA202: 8.5 | CB202: 8.5 | CC202: 105 | CD202: 1 | CE202: 16 | CG202: 9 | CH202: 9 | CI202: 150
... 167 more rows

Sheet HELP
B2: HVAC Calculator Tool Help
D4: ="The HVAC Calculator Tool estimates savings attributed to the installation of unitary air-cooled air conditioners, air-source heat pumps and water-source heat pumps over an energy code baseline."&" The calculator will also provide incentive amounts available for equipment meeting "&IF(InstallState="","",INDEX(Program_name,MATCH(InstallState,StateAbrev_List,0)))&" program requirements." -> The HVAC Calculator Tool estimates savings attributed to the installation of unitary air-cooled air conditioners, air-source heat pumps and water-source heat pumps over an energy code baseline. The calculator will also provide incentive amounts available for equipment meeting wattsmart Business program requirements.
B5: Applicability
D7: ="The HVAC Calculator Tool may be used to determine savings/incentives in each State where the "&IF(InstallState="","",INDEX(Program_name,MATCH(InstallState,StateAbrev_List,0)))&" program is offered, which includes Northern " &"California, Central and Southeast Washington, Southeast Idaho, and large areas of Wyoming and Utah. " & "The tool computes savings by comparing the user-entered efficiency of the HVAC equipment to the minimum efficiency required by the respective state code. " &"Required efficiencies may include the Energy Efficiency Ratio (EER), Seasonal Energy Efficiency Ratio (SEER), Integrated Energy Effeciency Ratio (IEER), Integrated Part " &"Load Value (IPLV, Coefficient of Performance (COP), and Heating Seasonal Performance Factor (HSPF). " & " Efficiencies and cooling capacities must meet or exceed minimum program requirements and be reported in accordance with the applicable testing standard as listed in the table below. " & " For further details and requirements, please contact your project coordinator or visit wattsmart.com" -> The HVAC Calculator Tool may be used to determine savings/incentives in each State where the wattsmart Business program is offered, which includes Northern California, Central and Southeast Washington, Southeast Idaho, and large areas of Wyoming and Utah. The tool computes savings by comparing the user-entered efficiency of the HVAC equipment to the minimum efficiency required by the respective state code. Required efficiencies may include the Energy Efficiency Ratio (EER), Seasonal Energy Efficiency Ratio (SEER), Integrated Energy Effeciency Ratio (IEER), Integrated Part Load Value (IPLV, Coefficient of Performance (COP), and Heating Seasonal Performance Factor (HSPF). Efficiencies and cooling capacities must meet or exceed minimum program requirements and be reported in accordance with the applicable testing standard as listed in the table below. For further details and requirements, please contact your project coordinator or visit wattsmart.com
D19: Equipment Type | F19: Testing Standard | H19: Note: -Incentives are not available for installations of condensing units only. -Equipment with a system classification of "Split System" must be tested as a complete system including: the indoor (coil) unit and the outdoor (condensing) unit. -If an AHRI certificate does not exist for the installed equipment, please contact your EEA coordinator by calling 1-866-415-9800.
D20: Unitary AC (Air Cooled) | E20: <65,000 btu/h | F20: AHRI 210/240
D21: Unitary AC (Water Cooled) | E21: <65,000 btu/h
D22: Unitary AC (Evaporitvely Cooled) | E22: <65,000 btu/h
D23: Heat Pump (Air Cooled) | E23: <65,000 btu/h
D25: Unitary AC (Air Cooled) | E25: ≥65,000 btu/h | F25: AHRI 340/360
D26: Unitary AC (Water Cooled) | E26: ≥65,000 btu/h
D27: Unitary AC (Evaporitvely Cooled) | E27: ≥65,000 btu/h
D28: Heat Pump (Air Cooled) | E28: ≥65,000 btu/h
D30: Heat Pump (Water Cooled) | F30: ISO 13256-1
D31: Ground-Source Heat Pump
D32: Groundwater Source Heat Pump
D33: VRF Heat Pump (Air Cooled) | F33: AHRI 1230
D34: VRF Heat Pump (Water Cooled)
B36: Instructions
D37: ="The user should input data into the yellow fields in the Project/Customer Information sections, identifying the business name, address, state, and utility account and meter numbers, in addition to the rate schedule the project location is served by."& " Use the drop-down menus to select the equipment and system types in the blue fields identified in the Project Information and Energy/Cost Savings section. Enter the AHRI cooling capacity in Btu/hr."& " Each equipment type with a unique system type and size must be entered on a separate line."& " Once all required the data is entered, the HVAC Calculator will display the estimated savings and available incentive. Click the 'Create Application' button for a PDF copy of the application. "&" To submit follow the instructions as found in the application."&" If zeros are displayed, the equipment may not meet the minimum efficiency requirements to qualify for an incentive. Please contact your project coordinator or refer to the Program Requirements tab for more information." -> The user should input data into the yellow fields in the Project/Customer Information sections, identifying the business name, address, state, and utility account and meter numbers, in addition to the rate schedule the project location is served by. Use the drop-down menus to select the equipment and system types in the blue fields identified in the Project Information and Energy/Cost Savings section. Enter the AHRI cooling capacity in Btu/hr. Each equipment type with a unique system type and size must be entered on a separate line. Once all required the data is entered, the HVAC Calculator will display the estimated savings and available incentive. Click the 'Create Application' button for a PDF copy of the application. To submit follow the instructions as found in the application. If zeros are displayed, the equipment may not meet the minimum efficiency requirements to qualify for an incentive. Please contact your project coordinator or refer to the Program Requirements tab for more information.
B38: Applicable Energy Codes
D39: ="This calculator uses the energy codes listed below as the baseline for calculating energy savings. If a different energy code applies, please contact " & IF(InstallState="","Rocky Mountain Power/Pacific Power",INDEX(Lookups!$W$2:$W$6,MATCH(InstallState,Lookups!$V$2:$V$6,0))) & "." -> This calculator uses the energy codes listed below as the baseline for calculating energy savings. If a different energy code applies, please contact Rocky Mountain Power.
E41: ="Idaho: " -> Idaho: | F41: =INDEX(EnergyCodeBaseline_List,MATCH("ID",StateAbrev_List,0)) -> International Energy Conservation Code 2018
E42: ="Utah: " -> Utah: | F42: =INDEX(EnergyCodeBaseline_List,MATCH("UT",StateAbrev_List,0)) -> International Energy Conservation Code 2021
E43: ="Wyoming: " -> Wyoming: | F43: =INDEX(EnergyCodeBaseline_List,MATCH("WY",StateAbrev_List,0)) -> International Energy Conservation Code 2009
B46: Applicable Tariffs
D47: ="The incentives are calculated in accordance with the applicable state tariff, with the effective date for each as listed below. For equipment purchased prior to these dates, please contact " & IF(InstallState="","Rocky Mountain Power/Pacific Power",INDEX(Lookups!$W$2:$W$6,MATCH(InstallState,Lookups!$V$2:$V$6,0))) & "." -> The incentives are calculated in accordance with the applicable state tariff, with the effective date for each as listed below. For equipment purchased prior to these dates, please contact Rocky Mountain Power.
E49: Idaho 115: | F49: =VLOOKUP(LEFT(E49,2),TariffTable,2,FALSE) -> March 15, 2023
E50: Utah 140: | F50: =VLOOKUP(LEFT(E50,2),TariffTable,2,FALSE) -> November 15, 2024
E51: Wyoming 140: | F51: =VLOOKUP(LEFT(E51,2),TariffTable,2,FALSE) -> March 15, 2023
B54: Note

Sheet Application NEW (hidden)
F6: General Application
F10: PARTICIPANT INFORMATION
F11: (Check will be issued to the business name and address listed below unless the payment release section below has been filled out)
F12: Participant is (check all that apply) | S12: =IF(CheckBoxLink_AccountHolder=TRUE,"X","") ->  | T12: Customer | Z12: =IF(CheckBoxLink_FacilityOwner=TRUE,"X","") ->  | AA12: Facility Owner | AG12: =IF(CheckBoxLink_ElectricityUser=TRUE,"X","") ->  | AH12: Tenant/Electricity user
S13: FALSE | Z13: FALSE | AG13: FALSE
F14: Participant business name (As shown on income tax return):
F15: =CustomerBusinessName -> 0
F16: Mailing address: | AD16: City: | AN16: State: | AS16: Zip:
F17: =CustomerAddress -> 0 | AD17: =CustomerCity -> 0 | AN17: =CustomerState -> UT | AS17: =CustomerZip -> 0
F18: Contact name: | AD18: Contact title:
F19: =CustomerContactName -> 0 | AD19: =CustomerContactTitle -> 0
F20: Contact telephone number: | R20: Cell number: | AC20: FALSE | AD20: Contact email address:
F21: =IF(CheckboxLink_CellPhone=FALSE,CustomerContactPhone,0) -> 0 | R21: =IF(CheckboxLink_CellPhone=TRUE,CustomerContactPhone,0) -> 0 | AD21: =CustomerContactEmail -> 0
F23: TAXPAYER IDENTIFICATION (Must be complete in order to receive an incentive)
F24: Participant Federal taxpayer ID number (EIN) or SS#: | AF24: ____ ____ ____ ____ ____ ____ ____ ____ ____
F25: Please check the appropriate box:
H26: Individual or Sole Proprietor | R26: LLC, LLP, or Partnership | AA26: C Corporation | AG26: S Corporation | AM26: Trust/Estate | AS26: Exempt Payee
F29: PROJECT SITE INFORMATION
F30: Facility/Project name:
F31: =ProjectName -> 0
F32: Facility address: | AD32: City: | AN32: State: | AS32: Zip:
F33: =InstallAddress -> 0 | AD33: =InstallCity -> 0 | AN33: =InstallState -> UT | AS33: =InstallZip -> 0
F34: Commercial/Industrial electric account #: | Q34: =AccountNumber -> 0 | AN34: Rate Schedule: | AS34: =RateSchedule -> 0
F36: Electric meter number – seven or eight digits: (If multiple meters at site only enter one) | Q36: =MeterNumber -> 0 | AD36: Customer name: (As shown on bill)
AD37: =AccountName -> 0
F38: Please provide a description of your project so we may better help you:
H40: Lighting Retrofit | U40: Additional project information: (scope and schedule)
G42: X | H42: Listed Equipment Incentives
G44: =IF(OR(ProjectType="New Construction",ProjectType="Major Renovation"),"X","") ->  | H44: New Construction
H46: Custom or Energy Management Incentives
H48: Other:________________________________
F51: INCENTIVE ASSIGNMENT (Complete only if incentive is to be assigned to someone other than participant above)
F52: Check should be made out to:
F53: =IF(OR(IncentivePayeeSelector="Participant Business Address",IncentivePayeeSelector="Project Address"),"n/a",PayeeBusinessName) -> n/a
F54: Mailing address: | AD54: City: | AN54: State: | AS54: Zip:
F55: =IF(OR(IncentivePayeeSelector="Participant Business Address",IncentivePayeeSelector="Project Address"),"n/a",PayeeAddress) -> n/a | AD55: =IF(OR(IncentivePayeeSelector="Participant Business Address",IncentivePayeeSelector="Project Address"),"n/a",PayeeCity) -> n/a | AN55: =IF(OR(IncentivePayeeSelector="Participant Business Address",IncentivePayeeSelector="Project Address"),"n/a",PayeeState) -> n/a | AS55: =IF(OR(IncentivePayeeSelector="Participant Business Address",IncentivePayeeSelector="Project Address"),"n/a",PayeeZip) -> n/a
F56: Contact name: | AD56: Contact telephone:
F57: =IF(OR(IncentivePayeeSelector="Participant Business Address",IncentivePayeeSelector="Project Address"),"n/a",PayeeContactName) -> n/a | AD57: =IF(OR(IncentivePayeeSelector="Participant Business Address",IncentivePayeeSelector="Project Address"),"n/a",PayeeContactPhone) -> n/a
F59: APPLICATION ACKNOWLEDGEMENT
F60: ="By my signature below, I certify that all information provided for participation will be accurate including but not limited to supplemental material and claims of " & "participant and equipment information. I confirm I have read, understand and agree with the TERMS AND CONDITIONS and agree to be bound by them. I authorize " & INDEX(UtilityName_List,MATCH(InstallState,StateAbrev_List,0)) & " to provide my electric account information to consultants associated with the wattsmart Business program." -> By my signature below, I certify that all information provided for participation will be accurate including but not limited to supplemental material and claims of participant and equipment information. I confirm I have read, understand and agree with the TERMS AND CONDITIONS and agree to be bound by them. I authorize Rocky Mountain Power to provide my electric account information to consultants associated with the wattsmart Business program.
F61: Under penalties of perjury, I certify that: 1) The taxpayer identification number is correct, and 2) I am not subject to backup withholding due to failure to report interest and dividend income, and 3) I am a U.S. citizen, resident alien or other U.S. person. The Internal Revenue Service does not require your consent to any provision of this document other than the certifications required to avoid backup withholding.
G63: Signatory name & title (please print) | W63: Participant signature | AM63: Date
G64: ="Effective " & VLOOKUP(InstallState,HVAC!$AE$4:$AG$8,2,FALSE) & " v12/23/2013" -> Effective November 15, 2024 v12/23/2013 | AV64: wattsmart is registered in U.S. Patent and Trademark Office.
F66: TERMS & CONDITIONS
F68: How to participate: | AC68: =INDEX(UtilityName_List,MATCH(InstallState,StateAbrev_List,0)) & " does not warrant the performance of qualifying installed equipment/energy management measures and does not warrant that the qualifying installed equipment/energy management measures will deliver any specified amount of energy or cost savings. " & "Participant shall independently evaluate any advice or direction given by " & INDEX(UtilityName_List,MATCH(InstallState,StateAbrev_List,0)) & " or its consultants related to the estimates of electricity savings or the cost, selection or installation of qualifying equipment/energy management measures. " & "In no event will " & INDEX(UtilityName_List,MATCH(InstallState,StateAbrev_List,0)) & " or its consultants be liable for the failure of the participant to achieve its expected amount of energy savings, for any personal injury or harm to participant’s facilities of any kind, " & "or for any incidental or consequential damages of any kind including hazardous material identification in connection with installation or inspection of qualifying equipment and energy management measures. " & INDEX(UtilityName_List,MATCH(InstallState,StateAbrev_List,0)) & " is not responsible if a third party provides inaccurate information about the amount and/or conditions of the actual incentive and " & INDEX(UtilityName_List,MATCH(InstallState,StateAbrev_List,0)) & " will not pay incentives for equipment that is mislabeled or misrepresented by third parties regarding incentive qualifications." -> Rocky Mountain Power does not warrant the performance of qualifying installed equipment/energy management measures and does not warrant that the qualifying installed equipment/energy management measures will deliver any specified amount of energy or cost savings. Participant shall independently evaluate any advice or direction given by Rocky Mountain Power or its consultants related to the estimates of electricity savings or the cost, selection or installation of qualifying equipment/energy management measures. In no event will Rocky Mountain Power or its consultants be liable for the failure of the participant to achieve its expected amount of energy savings, for any personal injury or harm to participant’s facilities of any kind, or for any incidental or consequential damages of any kind including hazardous material identification in connection with installation or inspection of qualifying equipment and energy management measures. Rocky Mountain Power is not responsible if a third party provides inaccurate information about the amount and/or conditions of the actual incentive and Rocky Mountain Power will not pay incentives for equipment that is mislabeled or misrepresented by third parties regarding incentive qualifications.
F69: Typical incentives:
G70: 1. | H70: Pre-qualification is recommended but not required.
G71: 2. | H71: Purchase and install qualifying equipment.
G72: 3. | H72: Complete general application, technology-specific supplemental equipment form(s), and IRS Form W-9.
G73: 4. | H73: Submit application and all required supplemental forms as directed on supplemental form(s).
F75: Lighting retrofit incentives:
G76: 1. | H76: Pre-qualification is required prior to equipment purchase. Submit general application and IRS Form W-9 to your Project Manager or a wattsmart Business Vendor.
G77: 2. | H77: Participate in inspections prior to the installation or removal of any equipment.
G78: 3. | H78: Incentive offer will be provided to eligible participants. Return signed incentive offer. | AC78: =" " & " The incentive offer is an estimate. The final incentive will be based on actual electric savings and approved actual project costs incurred by the participant for implemented approved energy efficiency measures. " & "Participant agrees to provide any reasonable documentation to allow " & INDEX(UtilityName_List,MATCH(InstallState,StateAbrev_List,0)) & " to determine electric savings and actual costs incurred. To the extent that " & INDEX(UtilityName_List,MATCH(InstallState,StateAbrev_List,0)) & " determines (at its sole discretion) that any of the recommended measures have not been installed and commissioned in a satisfactory manner, " & "participant shall receive a reduced incentive, if any, based on the inspection and verification of installed and commissioned measures." -> The incentive offer is an estimate. The final incentive will be based on actual electric savings and approved actual project costs incurred by the participant for implemented approved energy efficiency measures. Participant agrees to provide any reasonable documentation to allow Rocky Mountain Power to determine electric savings and actual costs incurred. To the extent that Rocky Mountain Power determines (at its sole discretion) that any of the recommended measures have not been installed and commissioned in a satisfactory manner, participant shall receive a reduced incentive, if any, based on the inspection and verification of installed and commissioned measures.
G79: 4. | H79: Complete project and notify your assigned Project Manager or wattsmart Vendor.
G81: 5. | H81: Provide all required documentation and participate in any required inspections.
F82: Custom and energy management incentives:
G83: 1. | H83: Pre-qualification is required prior to equipment purchase/project implementation. Submit general application and IRS Form W-9.
G84: 2. | H84: Participate in project scoping meeting(s), inspections and engineering analysis(s) prior to installation or removal of equipment. Provide additional supplemental applications or information as needed. | AC84: =" "&"If Participant terminates a material portion of its electric service requirements from "&INDEX(UtilityName_List,MATCH(InstallState,StateAbrev_List,0))&"for Participant's Facility within up to 120 months of the date of final incentive payment, Participant is obligated to repay the final incentive to "&INDEX(UtilityName_List,MATCH(InstallState,StateAbrev_List,0))&"within 30 days of written request. The repayment (""Repayment"""&") will be determined as follows:"&CONCATENATE(" Repayment = final incentive x (120-Savings Delivery Term)/120, where Savings Delivery Term = number of months between the month the Final Incentive payment was made and the month the Facility terminated a material portion of its electric service.")&CONCATENATE("For determining the repayment, the dates will be the first day of the month in which they occur.") -> If Participant terminates a material portion of its electric service requirements from Rocky Mountain Powerfor Participant's Facility within up to 120 months of the date of final incentive payment, Participant is obligated to repay the final incentive to Rocky Mountain Powerwithin 30 days of written request. The repayment ("Repayment") will be determined as follows: Repayment = final incentive x (120-Savings Delivery Term)/120, where Savings Delivery Term = number of months between the month the Final Incentive payment was made and the month the Facility terminated a material portion of its electric service.For determining the repayment, the dates will be the first day of the month in which they occur.
G86: 3. | H86: Incentive offer(s) will be provided to eligible participants. Return signed incentive offer within the required time.
G87: 4. | H87: Complete project and provide completion notification to your assigned Project Manager.
G88: 5. | H88: Provide all required documentation and participate in any required inspections.
F89: =" " & "In the event that " & INDEX(UtilityName_List,MATCH(InstallState,StateAbrev_List,0)) & " does not pay the incentive as a result of the participant’s failure to comply with the terms and conditions, the assignee’s sole recourse shall be against participant." -> In the event that Rocky Mountain Power does not pay the incentive as a result of the participant’s failure to comply with the terms and conditions, the assignee’s sole recourse shall be against participant. | AC89: =" " & " Participant hereby transfers to " & INDEX(UtilityName_List,MATCH(InstallState,StateAbrev_List,0)) & " all ""Environmental Attributes"" attributable to the installation of the qualifying equipment or its operation. " & "Environmental Attributes include any and all credits, benefits, emissions reductions, offsets and allowances, howsoever entitled, resulting from the avoidance of the emission of any substance to the air, " & "soil or water at or by the company’s generating facilities, through reduced generation of energy or other savings or offsets on account of the qualifying equipment. " & "Participant will not claim ownership of any Environmental Attributes. " & "As long as participant at the same time states the installation of the qualifying equipment was made possible with funding from " & INDEX(UtilityName_List,MATCH(InstallState,StateAbrev_List,0)) & ", participant may claim that it is facilitating the production of the Environmental Attributes attributable to the qualifying equipment." -> Participant hereby transfers to Rocky Mountain Power all "Environmental Attributes" attributable to the installation of the qualifying equipment or its operation. Environmental Attributes include any and all credits, benefits, emissions reductions, offsets and allowances, howsoever entitled, resulting from the avoidance of the emission of any substance to the air, soil or water at or by the company’s generating facilities, through reduced generation of energy or other savings or offsets on account of the qualifying equipment. Participant will not claim ownership of any Environmental Attributes. As long as participant at the same time states the installation of the qualifying equipment was made possible with funding from Rocky Mountain Power, participant may claim that it is facilitating the production of the Environmental Attributes attributable to the qualifying equipment.
F90: =" " & " Participant agrees to cooperate with " & INDEX(UtilityName_List,MATCH(InstallState,StateAbrev_List,0)) & " and its consultants to conduct energy analysis and inspections at the participant's site. " & INDEX(UtilityName_List,MATCH(InstallState,StateAbrev_List,0)) & " reserves the right to inspect qualifying equipment/energy management measures, which may include a telephone survey, site visit, " & "and/or the installation of temporary monitoring equipment at any time up to 36 months after installation for quality control or program performance evaluations." -> Participant agrees to cooperate with Rocky Mountain Power and its consultants to conduct energy analysis and inspections at the participant's site. Rocky Mountain Power reserves the right to inspect qualifying equipment/energy management measures, which may include a telephone survey, site visit, and/or the installation of temporary monitoring equipment at any time up to 36 months after installation for quality control or program performance evaluations.
F93: =" " & "Neither " & INDEX(UtilityName_List,MATCH(InstallState,StateAbrev_List,0)) & " nor its Program Administrator is providing tax advice or responsible for any tax liability which may be imposed on the participant as a result of any incentive payment. " & "Participant may be responsible for the tax reporting to the IRS of any incentive payments directed to third parties. " -> Neither Rocky Mountain Power nor its Program Administrator is providing tax advice or responsible for any tax liability which may be imposed on the participant as a result of any incentive payment. Participant may be responsible for the tax reporting to the IRS of any incentive payments directed to third parties. | AC93: =" " & " Incentive qualifications and amounts are subject to change and termination at any time. " & "Visit the program’s website or contact a wattsmart Business vendor or " & INDEX(UtilityName_List,MATCH(InstallState,StateAbrev_List,0)) & " for current program information." -> Incentive qualifications and amounts are subject to change and termination at any time. Visit the program’s website or contact a wattsmart Business vendor or Rocky Mountain Power for current program information.
F94: =" " & "Participants may not receive custom incentives in lieu of typical (listed) incentives. " & "Participants are responsible for ensuring that equipment installed for this program meets all applicable codes, standards, environmental regulations and regulatory requirements." -> Participants may not receive custom incentives in lieu of typical (listed) incentives. Participants are responsible for ensuring that equipment installed for this program meets all applicable codes, standards, environmental regulations and regulatory requirements. | AC94: =" " & "Confidential information provided to " & INDEX(UtilityName_List,MATCH(InstallState,StateAbrev_List,0)) & " or consultants shall not be disclosed to any third party. Confidential information shall mean data disclosed during the course of the energy analysis, " & "and identified by the participant in writing as confidential. The obligation to protect confidential information will remain in force for two (2) years from the date the energy analysis is performed." -> Confidential information provided to Rocky Mountain Power or consultants shall not be disclosed to any third party. Confidential information shall mean data disclosed during the course of the energy analysis, and identified by the participant in writing as confidential. The obligation to protect confidential information will remain in force for two (2) years from the date the energy analysis is performed.
F96: Application Supplemental
F97: HVAC - Air-conditioners & Heat Pumps
F99: To apply for wattsmart Business incentives, complete this application supplement and send it with the general incentive application to the address to the right. Please review and confirm each of the qualifying criteria below, as applicable. | AH99: Send completed application by email, mail, or fax to:
AH100: =INDEX(HVACEmail_List,MATCH(InstallState,StateAbrev_List,0)) -> ut.hvacr@rockymountainpower.net
AH101: ="wattsmart Business " & INDEX(MailAddress1_List,MATCH(InstallState,StateAbrev_List,0)) & " " & INDEX(MailCity_List,MATCH(InstallState,StateAbrev_List,0)) & ", " & INDEX(MailState,MATCH(InstallState,StateAbrev_List,0)) & " " & INDEX(MailZip_List,MATCH(InstallState,StateAbrev_List,0)) -> wattsmart Business 2223 S Highland Drive #E6-333 Salt Lake City, UT 84106
H103: Equipment is installed and operating at the site listed on the general application.
H105: The dated sales receipt or invoice is included with labor and material costs itemized.
AH106: =INDEX(ApplyToFaxNL_List,MATCH(InstallState,StateAbrev_List,0)) & " - fax" -> 1-801-266-4786 - fax
H107: Manufacturer’s specification sheet for each installed equipment model is included.
H109: Completed application is submitted within six months of project completion. | AH109: For additional information or assistance, please call 1-855-805-7231

Sheet Program Requirements (hidden)
B1: =IF(InstallState<>"",IF(InstallState="UT","Utah",IF(InstallState="WA","Washington",IF(InstallState="CA","California",IF(InstallState="WY","Wyoming",IF(InstallState="ID","Idaho",""))))) & " Program Incentive Offerings and Efficiency Requirements for HVAC Equipment","You Must Select an Install State before viewing this page.") -> Utah Program Incentive Offerings and Efficiency Requirements for HVAC Equipment | L1: =IF(AND('HVAC-Tool'!#REF!="",'HVAC-Tool'!#REF!=""),"You can see requirements specific to your equipment by selecting the HVAC Type and entering the cooling capacity under the Equipment Information section in the HVAC Tool for at least one equipment line.","") -> 
C2: ="Project-Specific HVAC Incentive Tiers and Minimum Efficiency Requirements" -> Project-Specific HVAC Incentive Tiers and Minimum Efficiency Requirements
P4: =IF(State="WY","$100/Ton Incentive Tier","$75/Ton Incentive Tier") -> $75/Ton Incentive Tier
C5: HVAC Type (selected) | G5: System Type (selected) | H5: Cooling Capacity (BTU/Hr) (selected) | I5: Cooling Capacity (Tons) | J5: Minimum EER | K5: Minimum SEER / IEER | M5: Minimum (HSPF / COP) | O5: Wet/Dry Bulb Temperature (F°)
C8: 1 | D8: =IF('HVAC-Tool'!#REF!="","",'HVAC-Tool'!#REF!) ->  | G8: =IF('HVAC-Tool'!#REF!="",IF(OR('HVAC-Tool'!#REF!="Heat Pump (Water Cooled)",'HVAC-Tool'!#REF!="Ground-Source Heat Pump",'HVAC-Tool'!#REF!="Groundwater Source Heat Pump"),"","selection needed"),'HVAC-Tool'!#REF!) ->  | H8: =IF('HVAC-Tool'!#REF!="","",'HVAC-Tool'!#REF!) ->  | I8: =IF(H8="","",H8/12000) ->  | J8: =IF(I8="","",IF(VLOOKUP(HVAC!$Y17,HVAC!$BF$10:$CI$63,25)=0," - ",VLOOKUP(HVAC!$Y$17,HVAC!$BF$10:$CI$63,25))) ->  | K8: =IF(I8="","",IF(VLOOKUP(HVAC!$Y17,HVAC!$BF$10:$CI$63,IF(H20<65000,26,27))=0," - ",VLOOKUP(HVAC!$Y17,HVAC!$BF$10:$CI$63,IF(H20<65000,26,27)))) ->  | L8: =IF(K8="","",IF(K8=" - "," - ",IF(H8<65000,"SEER","IEER"))) ->  | M8: =IF(D8="","",IF(OR(D8="Unitary AC (Air Cooled)",D8="Unitary AC (Water Cooled)",D8="Unitary AC (Evaporatively Cooled)"),"n/a",IF(VLOOKUP(HVAC!$Y17,HVAC!$BF$10:$CI$63,28)=0," - ",VLOOKUP(HVAC!$Y17,HVAC!$BF$10:$CI$63,28)))) ->  | N8: =IF(M8="","",IF(M8="n/a","n/a",IF(M8=" - "," - ",IF(H8<65000,"HSPF","COP")))) ->  | O8: =IF(M8="","",IF(M8="n/a","n/a",IF(M8=" - "," - ","47/43"))) -> 
C9: 2 | D9: =IF('HVAC-Tool'!#REF!="","",'HVAC-Tool'!#REF!) ->  | G9: =IF('HVAC-Tool'!#REF!="",IF(OR('HVAC-Tool'!#REF!="Heat Pump (Water Cooled)",'HVAC-Tool'!#REF!="Ground-Source Heat Pump",'HVAC-Tool'!#REF!="Groundwater Source Heat Pump"),"","selection needed"),'HVAC-Tool'!#REF!) ->  | H9: =IF('HVAC-Tool'!#REF!="","",'HVAC-Tool'!#REF!) ->  | J9: =IF(I9="","",IF(VLOOKUP(HVAC!$Y18,HVAC!$BF$10:$CI$63,25)=0," - ",VLOOKUP(HVAC!$Y$17,HVAC!$BF$10:$CI$63,25))) ->  | K9: =IF(I9="","",IF(VLOOKUP(HVAC!$Y18,HVAC!$BF$10:$CI$63,IF(H21<65000,26,27))=0," - ",VLOOKUP(HVAC!$Y18,HVAC!$BF$10:$CI$63,IF(H21<65000,26,27)))) ->  | L9: =IF(K9="","",IF(K9=" - "," - ",IF(H9<65000,"SEER","IEER"))) ->  | M9: =IF(D9="","",IF(OR(D9="Unitary AC (Air Cooled)",D9="Unitary AC (Water Cooled)",D9="Unitary AC (Evaporatively Cooled)"),"n/a",IF(VLOOKUP(HVAC!$Y18,HVAC!$BF$10:$CI$63,28)=0," - ",VLOOKUP(HVAC!$Y18,HVAC!$BF$10:$CI$63,28)))) ->  | N9: =IF(M9="","",IF(M9="n/a","n/a",IF(M9=" - "," - ",IF(H9<65000,"HSPF","COP")))) ->  | O9: =IF(M9="","",IF(M9="n/a","n/a",IF(M9=" - "," - ","47/43"))) -> 
C10: 3 | D10: =IF('HVAC-Tool'!#REF!="","",'HVAC-Tool'!#REF!) ->  | G10: =IF('HVAC-Tool'!#REF!="",IF(OR('HVAC-Tool'!#REF!="Heat Pump (Water Cooled)",'HVAC-Tool'!#REF!="Ground-Source Heat Pump",'HVAC-Tool'!#REF!="Groundwater Source Heat Pump"),"","selection needed"),'HVAC-Tool'!#REF!) ->  | H10: =IF('HVAC-Tool'!#REF!="","",'HVAC-Tool'!#REF!) ->  | J10: =IF(I10="","",IF(VLOOKUP(HVAC!$Y19,HVAC!$BF$10:$CI$63,25)=0," - ",VLOOKUP(HVAC!$Y$17,HVAC!$BF$10:$CI$63,25))) ->  | K10: =IF(I10="","",IF(VLOOKUP(HVAC!$Y19,HVAC!$BF$10:$CI$63,IF(H22<65000,26,27))=0," - ",VLOOKUP(HVAC!$Y19,HVAC!$BF$10:$CI$63,IF(H22<65000,26,27)))) ->  | L10: =IF(K10="","",IF(K10=" - "," - ",IF(H10<65000,"SEER","IEER"))) ->  | M10: =IF(D10="","",IF(OR(D10="Unitary AC (Air Cooled)",D10="Unitary AC (Water Cooled)",D10="Unitary AC (Evaporatively Cooled)"),"n/a",IF(VLOOKUP(HVAC!$Y19,HVAC!$BF$10:$CI$63,28)=0," - ",VLOOKUP(HVAC!$Y19,HVAC!$BF$10:$CI$63,28)))) ->  | N10: =IF(M10="","",IF(M10="n/a","n/a",IF(M10=" - "," - ",IF(H10<65000,"HSPF","COP")))) -> 
C11: 4 | D11: =IF('HVAC-Tool'!#REF!="","",'HVAC-Tool'!#REF!) ->  | G11: =IF('HVAC-Tool'!#REF!="",IF(OR('HVAC-Tool'!#REF!="Heat Pump (Water Cooled)",'HVAC-Tool'!#REF!="Ground-Source Heat Pump",'HVAC-Tool'!#REF!="Groundwater Source Heat Pump"),"","selection needed"),'HVAC-Tool'!#REF!) ->  | H11: =IF('HVAC-Tool'!#REF!="","",'HVAC-Tool'!#REF!) ->  | K11: =IF(I11="","",IF(VLOOKUP(HVAC!$Y20,HVAC!$BF$10:$CI$63,25)=0," - ",VLOOKUP(HVAC!$Y$17,HVAC!$BF$10:$CI$63,25))) ->  | L11: =IF(I11="","",IF(VLOOKUP(HVAC!$Y20,HVAC!$BF$10:$CI$63,IF(H23<65000,26,27))=0," - ",VLOOKUP(HVAC!$Y20,HVAC!$BF$10:$CI$63,IF(H23<65000,26,27)))) ->  | M11: =IF(L11="","",IF(L11=" - "," - ",IF(H11<65000,"SEER","IEER"))) ->  | N11: =IF(D11="","",IF(OR(D11="Unitary AC (Air Cooled)",D11="Unitary AC (Water Cooled)",D11="Unitary AC (Evaporatively Cooled)"),"n/a",IF(VLOOKUP(HVAC!$Y20,HVAC!$BF$10:$CI$63,28)=0," - ",VLOOKUP(HVAC!$Y20,HVAC!$BF$10:$CI$63,28)))) ->  | O11: =IF(N11="","",IF(N11="n/a","n/a",IF(N11=" - "," - ",IF(H11<65000,"HSPF","COP")))) -> 
C12: 5 | D12: =IF('HVAC-Tool'!#REF!="","",'HVAC-Tool'!#REF!) ->  | G12: =IF('HVAC-Tool'!#REF!="",IF(OR('HVAC-Tool'!#REF!="Heat Pump (Water Cooled)",'HVAC-Tool'!#REF!="Ground-Source Heat Pump",'HVAC-Tool'!#REF!="Groundwater Source Heat Pump"),"","selection needed"),'HVAC-Tool'!#REF!) ->  | H12: =IF('HVAC-Tool'!#REF!="","",'HVAC-Tool'!#REF!) ->  | K12: =IF(I12="","",IF(VLOOKUP(HVAC!$Y21,HVAC!$BF$10:$CI$63,25)=0," - ",VLOOKUP(HVAC!$Y$17,HVAC!$BF$10:$CI$63,25))) ->  | L12: =IF(I12="","",IF(VLOOKUP(HVAC!$Y21,HVAC!$BF$10:$CI$63,IF(H24<65000,26,27))=0," - ",VLOOKUP(HVAC!$Y21,HVAC!$BF$10:$CI$63,IF(H24<65000,26,27)))) ->  | M12: =IF(L12="","",IF(L12=" - "," - ",IF(H12<65000,"SEER","IEER"))) ->  | N12: =IF(D12="","",IF(OR(D12="Unitary AC (Air Cooled)",D12="Unitary AC (Water Cooled)",D12="Unitary AC (Evaporatively Cooled)"),"n/a",IF(VLOOKUP(HVAC!$Y21,HVAC!$BF$10:$CI$63,28)=0," - ",VLOOKUP(HVAC!$Y21,HVAC!$BF$10:$CI$63,28)))) ->  | O12: =IF(N12="","",IF(N12="n/a","n/a",IF(N12=" - "," - ",IF(H12<65000,"HSPF","COP")))) -> 
C13: 6 | D13: =IF('HVAC-Tool'!#REF!="","",'HVAC-Tool'!#REF!) ->  | G13: =IF('HVAC-Tool'!#REF!="",IF(OR('HVAC-Tool'!#REF!="Heat Pump (Water Cooled)",'HVAC-Tool'!#REF!="Ground-Source Heat Pump",'HVAC-Tool'!#REF!="Groundwater Source Heat Pump"),"","selection needed"),'HVAC-Tool'!#REF!) ->  | H13: =IF('HVAC-Tool'!#REF!="","",'HVAC-Tool'!#REF!) ->  | K13: =IF(I13="","",IF(VLOOKUP(HVAC!$Y22,HVAC!$BF$10:$CI$63,25)=0," - ",VLOOKUP(HVAC!$Y$17,HVAC!$BF$10:$CI$63,25))) ->  | L13: =IF(I13="","",IF(VLOOKUP(HVAC!$Y22,HVAC!$BF$10:$CI$63,IF(H25<65000,26,27))=0," - ",VLOOKUP(HVAC!$Y22,HVAC!$BF$10:$CI$63,IF(H25<65000,26,27)))) ->  | M13: =IF(L13="","",IF(L13=" - "," - ",IF(H13<65000,"SEER","IEER"))) ->  | N13: =IF(D13="","",IF(OR(D13="Unitary AC (Air Cooled)",D13="Unitary AC (Water Cooled)",D13="Unitary AC (Evaporatively Cooled)"),"n/a",IF(VLOOKUP(HVAC!$Y22,HVAC!$BF$10:$CI$63,28)=0," - ",VLOOKUP(HVAC!$Y22,HVAC!$BF$10:$CI$63,28)))) ->  | O13: =IF(N13="","",IF(N13="n/a","n/a",IF(N13=" - "," - ",IF(H13<65000,"HSPF","COP")))) -> 
C14: 7 | D14: =IF('HVAC-Tool'!#REF!="","",'HVAC-Tool'!#REF!) ->  | G14: =IF('HVAC-Tool'!#REF!="",IF(OR('HVAC-Tool'!#REF!="Heat Pump (Water Cooled)",'HVAC-Tool'!#REF!="Ground-Source Heat Pump",'HVAC-Tool'!#REF!="Groundwater Source Heat Pump"),"","selection needed"),'HVAC-Tool'!#REF!) ->  | H14: =IF('HVAC-Tool'!#REF!="","",'HVAC-Tool'!#REF!) ->  | K14: =IF(I14="","",IF(VLOOKUP(HVAC!$Y23,HVAC!$BF$10:$CI$63,25)=0," - ",VLOOKUP(HVAC!$Y$17,HVAC!$BF$10:$CI$63,25))) ->  | L14: =IF(I14="","",IF(VLOOKUP(HVAC!$Y23,HVAC!$BF$10:$CI$63,IF(H26<65000,26,27))=0," - ",VLOOKUP(HVAC!$Y23,HVAC!$BF$10:$CI$63,IF(H26<65000,26,27)))) ->  | M14: =IF(L14="","",IF(L14=" - "," - ",IF(H14<65000,"SEER","IEER"))) ->  | N14: =IF(D14="","",IF(OR(D14="Unitary AC (Air Cooled)",D14="Unitary AC (Water Cooled)",D14="Unitary AC (Evaporatively Cooled)"),"n/a",IF(VLOOKUP(HVAC!$Y23,HVAC!$BF$10:$CI$63,28)=0," - ",VLOOKUP(HVAC!$Y23,HVAC!$BF$10:$CI$63,28)))) ->  | O14: =IF(N14="","",IF(N14="n/a","n/a",IF(N14=" - "," - ",IF(H14<65000,"HSPF","COP")))) -> 
Q16: =IF(State="WY","$75/Ton Incentive Tier","$50/Ton Incentive Tier") -> $50/Ton Incentive Tier
C17: HVAC Type (selected) | G17: System Type (selected) | H17: Cooling Capacity (BTU/Hr) (selected) | I17: Cooling Capacity (Tons) | J17: Minimum EER | K17: Minimum SEER / IEER | M17: Minimum (HSPF / COP) | O17: Wet/Dry Bulb Temperature (F°)
C20: 1 | D20: =IF('HVAC-Tool'!#REF!="","",'HVAC-Tool'!#REF!) ->  | G20: =IF('HVAC-Tool'!#REF!="",IF(OR('HVAC-Tool'!#REF!="Heat Pump (Water Cooled)",'HVAC-Tool'!#REF!="Ground-Source Heat Pump",'HVAC-Tool'!#REF!="Groundwater Source Heat Pump"),"","selection needed"),'HVAC-Tool'!#REF!) ->  | H20: =IF('HVAC-Tool'!#REF!="","",'HVAC-Tool'!#REF!) ->  | I20: =IF(H20="","",H20/12000) ->  | J20: =IF(I20="","",IF(VLOOKUP(HVAC!$Y17,HVAC!$BF$10:$CI$63,19)=0," - ",VLOOKUP(HVAC!$Y17,HVAC!$BF$10:$CI$63,19))) ->  | K20: =IF(I20="","",IF(VLOOKUP(HVAC!$Y17,HVAC!$BF$10:$CI$63,IF(H20<65000,20,21))=0," - ",VLOOKUP(HVAC!$Y17,HVAC!$BF$10:$CI$63,IF(H20<65000,20,21)))) ->  | L20: =IF(K20="","",IF(K20=" - "," - ",IF(H20<65000,"SEER","IEER"))) ->  | M20: =IF(D20="","",IF(OR(D20="Unitary AC (Air Cooled)",D20="Unitary AC (Water Cooled)",D20="Unitary AC (Evaporatively Cooled)"),"n/a",IF(VLOOKUP(HVAC!$Y17,HVAC!$BF$10:$CI$63,22)=0," - ",VLOOKUP(HVAC!$Y17,HVAC!$BF$10:$CI$63,22)))) ->  | N20: =IF(M20="","",IF(M20="n/a","n/a",IF(M20=" - "," - ",IF(H20<65000,"HSPF","COP")))) ->  | O20: =IF(M20="","",IF(M20="n/a","n/a",IF(M20=" - "," - ","47/43"))) -> 
C21: 2 | D21: =IF('HVAC-Tool'!#REF!="","",'HVAC-Tool'!#REF!) ->  | G21: =IF('HVAC-Tool'!#REF!="",IF(OR('HVAC-Tool'!#REF!="Heat Pump (Water Cooled)",'HVAC-Tool'!#REF!="Ground-Source Heat Pump",'HVAC-Tool'!#REF!="Groundwater Source Heat Pump"),"","selection needed"),'HVAC-Tool'!#REF!) ->  | H21: =IF('HVAC-Tool'!#REF!="","",'HVAC-Tool'!#REF!) ->  | J21: =IF(I21="","",IF(VLOOKUP(HVAC!$Y18,HVAC!$BF$10:$CI$63,19)=0," - ",VLOOKUP(HVAC!$Y18,HVAC!$BF$10:$CI$63,19))) ->  | K21: =IF(I21="","",IF(VLOOKUP(HVAC!$Y18,HVAC!$BF$10:$CI$63,IF(H21<65000,20,21))=0," - ",VLOOKUP(HVAC!$Y18,HVAC!$BF$10:$CI$63,IF(H21<65000,20,21)))) ->  | L21: =IF(K21="","",IF(K21=" - "," - ",IF(H21<65000,"SEER","IEER"))) ->  | M21: =IF(D21="","",IF(OR(D21="Unitary AC (Air Cooled)",D21="Unitary AC (Water Cooled)",D21="Unitary AC (Evaporatively Cooled)"),"n/a",IF(VLOOKUP(HVAC!$Y18,HVAC!$BF$10:$CI$63,22)=0," - ",VLOOKUP(HVAC!$Y18,HVAC!$BF$10:$CI$63,22)))) ->  | N21: =IF(M21="","",IF(M21="n/a","n/a",IF(M21=" - "," - ",IF(H21<65000,"HSPF","COP")))) ->  | O21: =IF(M21="","",IF(M21="n/a","n/a",IF(M21=" - "," - ","47/43"))) -> 
C22: 3 | D22: =IF('HVAC-Tool'!#REF!="","",'HVAC-Tool'!#REF!) ->  | G22: =IF('HVAC-Tool'!#REF!="",IF(OR('HVAC-Tool'!#REF!="Heat Pump (Water Cooled)",'HVAC-Tool'!#REF!="Ground-Source Heat Pump",'HVAC-Tool'!#REF!="Groundwater Source Heat Pump"),"","selection needed"),'HVAC-Tool'!#REF!) ->  | H22: =IF('HVAC-Tool'!#REF!="","",'HVAC-Tool'!#REF!) ->  | J22: =IF(I22="","",IF(VLOOKUP(HVAC!$Y19,HVAC!$BF$10:$CI$63,19)=0," - ",VLOOKUP(HVAC!$Y19,HVAC!$BF$10:$CI$63,19))) ->  | K22: =IF(I22="","",IF(VLOOKUP(HVAC!$Y19,HVAC!$BF$10:$CI$63,IF(H22<65000,20,21))=0," - ",VLOOKUP(HVAC!$Y19,HVAC!$BF$10:$CI$63,IF(H22<65000,20,21)))) ->  | L22: =IF(K22="","",IF(K22=" - "," - ",IF(H22<65000,"SEER","IEER"))) ->  | M22: =IF(D22="","",IF(OR(D22="Unitary AC (Air Cooled)",D22="Unitary AC (Water Cooled)",D22="Unitary AC (Evaporatively Cooled)"),"n/a",IF(VLOOKUP(HVAC!$Y19,HVAC!$BF$10:$CI$63,22)=0," - ",VLOOKUP(HVAC!$Y19,HVAC!$BF$10:$CI$63,22)))) ->  | N22: =IF(M22="","",IF(M22="n/a","n/a",IF(M22=" - "," - ",IF(H22<65000,"HSPF","COP")))) -> 
C23: 4 | D23: =IF('HVAC-Tool'!#REF!="","",'HVAC-Tool'!#REF!) ->  | G23: =IF('HVAC-Tool'!#REF!="",IF(OR('HVAC-Tool'!#REF!="Heat Pump (Water Cooled)",'HVAC-Tool'!#REF!="Ground-Source Heat Pump",'HVAC-Tool'!#REF!="Groundwater Source Heat Pump"),"","selection needed"),'HVAC-Tool'!#REF!) ->  | H23: =IF('HVAC-Tool'!#REF!="","",'HVAC-Tool'!#REF!) ->  | K23: =IF(I23="","",IF(VLOOKUP(HVAC!$Y20,HVAC!$BF$10:$CI$63,19)=0," - ",VLOOKUP(HVAC!$Y20,HVAC!$BF$10:$CI$63,19))) ->  | L23: =IF(I23="","",IF(VLOOKUP(HVAC!$Y20,HVAC!$BF$10:$CI$63,IF(H23<65000,20,21))=0," - ",VLOOKUP(HVAC!$Y20,HVAC!$BF$10:$CI$63,IF(H23<65000,20,21)))) ->  | M23: =IF(L23="","",IF(L23=" - "," - ",IF(H23<65000,"SEER","IEER"))) ->  | N23: =IF(D23="","",IF(OR(D23="Unitary AC (Air Cooled)",D23="Unitary AC (Water Cooled)",D23="Unitary AC (Evaporatively Cooled)"),"n/a",IF(VLOOKUP(HVAC!$Y20,HVAC!$BF$10:$CI$63,22)=0," - ",VLOOKUP(HVAC!$Y20,HVAC!$BF$10:$CI$63,22)))) ->  | O23: =IF(N23="","",IF(N23="n/a","n/a",IF(N23=" - "," - ",IF(H23<65000,"HSPF","COP")))) -> 
C24: 5 | D24: =IF('HVAC-Tool'!#REF!="","",'HVAC-Tool'!#REF!) ->  | G24: =IF('HVAC-Tool'!#REF!="",IF(OR('HVAC-Tool'!#REF!="Heat Pump (Water Cooled)",'HVAC-Tool'!#REF!="Ground-Source Heat Pump",'HVAC-Tool'!#REF!="Groundwater Source Heat Pump"),"","selection needed"),'HVAC-Tool'!#REF!) ->  | H24: =IF('HVAC-Tool'!#REF!="","",'HVAC-Tool'!#REF!) ->  | K24: =IF(I24="","",IF(VLOOKUP(HVAC!$Y21,HVAC!$BF$10:$CI$63,19)=0," - ",VLOOKUP(HVAC!$Y21,HVAC!$BF$10:$CI$63,19))) ->  | L24: =IF(I24="","",IF(VLOOKUP(HVAC!$Y21,HVAC!$BF$10:$CI$63,IF(H24<65000,20,21))=0," - ",VLOOKUP(HVAC!$Y21,HVAC!$BF$10:$CI$63,IF(H24<65000,20,21)))) ->  | M24: =IF(L24="","",IF(L24=" - "," - ",IF(H24<65000,"SEER","IEER"))) ->  | N24: =IF(D24="","",IF(OR(D24="Unitary AC (Air Cooled)",D24="Unitary AC (Water Cooled)",D24="Unitary AC (Evaporatively Cooled)"),"n/a",IF(VLOOKUP(HVAC!$Y21,HVAC!$BF$10:$CI$63,22)=0," - ",VLOOKUP(HVAC!$Y21,HVAC!$BF$10:$CI$63,22)))) ->  | O24: =IF(N24="","",IF(N24="n/a","n/a",IF(N24=" - "," - ",IF(H24<65000,"HSPF","COP")))) -> 
C25: 6 | D25: =IF('HVAC-Tool'!#REF!="","",'HVAC-Tool'!#REF!) ->  | G25: =IF('HVAC-Tool'!#REF!="",IF(OR('HVAC-Tool'!#REF!="Heat Pump (Water Cooled)",'HVAC-Tool'!#REF!="Ground-Source Heat Pump",'HVAC-Tool'!#REF!="Groundwater Source Heat Pump"),"","selection needed"),'HVAC-Tool'!#REF!) ->  | H25: =IF('HVAC-Tool'!#REF!="","",'HVAC-Tool'!#REF!) ->  | K25: =IF(I25="","",IF(VLOOKUP(HVAC!$Y22,HVAC!$BF$10:$CI$63,19)=0," - ",VLOOKUP(HVAC!$Y22,HVAC!$BF$10:$CI$63,19))) ->  | L25: =IF(I25="","",IF(VLOOKUP(HVAC!$Y22,HVAC!$BF$10:$CI$63,IF(H25<65000,20,21))=0," - ",VLOOKUP(HVAC!$Y22,HVAC!$BF$10:$CI$63,IF(H25<65000,20,21)))) ->  | M25: =IF(L25="","",IF(L25=" - "," - ",IF(H25<65000,"SEER","IEER"))) ->  | N25: =IF(D25="","",IF(OR(D25="Unitary AC (Air Cooled)",D25="Unitary AC (Water Cooled)",D25="Unitary AC (Evaporatively Cooled)"),"n/a",IF(VLOOKUP(HVAC!$Y22,HVAC!$BF$10:$CI$63,22)=0," - ",VLOOKUP(HVAC!$Y22,HVAC!$BF$10:$CI$63,22)))) ->  | O25: =IF(N25="","",IF(N25="n/a","n/a",IF(N25=" - "," - ",IF(H25<65000,"HSPF","COP")))) -> 
C26: 7 | D26: =IF('HVAC-Tool'!#REF!="","",'HVAC-Tool'!#REF!) ->  | G26: =IF('HVAC-Tool'!#REF!="",IF(OR('HVAC-Tool'!#REF!="Heat Pump (Water Cooled)",'HVAC-Tool'!#REF!="Ground-Source Heat Pump",'HVAC-Tool'!#REF!="Groundwater Source Heat Pump"),"","selection needed"),'HVAC-Tool'!#REF!) ->  | H26: =IF('HVAC-Tool'!#REF!="","",'HVAC-Tool'!#REF!) ->  | K26: =IF(I26="","",IF(VLOOKUP(HVAC!$Y23,HVAC!$BF$10:$CI$63,19)=0," - ",VLOOKUP(HVAC!$Y23,HVAC!$BF$10:$CI$63,19))) ->  | L26: =IF(I26="","",IF(VLOOKUP(HVAC!$Y23,HVAC!$BF$10:$CI$63,IF(H26<65000,20,21))=0," - ",VLOOKUP(HVAC!$Y23,HVAC!$BF$10:$CI$63,IF(H26<65000,20,21)))) ->  | M26: =IF(L26="","",IF(L26=" - "," - ",IF(H26<65000,"SEER","IEER"))) ->  | N26: =IF(D26="","",IF(OR(D26="Unitary AC (Air Cooled)",D26="Unitary AC (Water Cooled)",D26="Unitary AC (Evaporatively Cooled)"),"n/a",IF(VLOOKUP(HVAC!$Y23,HVAC!$BF$10:$CI$63,22)=0," - ",VLOOKUP(HVAC!$Y23,HVAC!$BF$10:$CI$63,22)))) ->  | O26: =IF(N26="","",IF(N26="n/a","n/a",IF(N26=" - "," - ",IF(H26<65000,"HSPF","COP")))) -> 
Q28: =IF(State="WY","$50/Ton Incentive Tier","$25/Ton Incentive Tier") -> $25/Ton Incentive Tier
C29: HVAC Type | G29: System Type | H29: Cooling Capacity (BTU/Hr) | I29: Cooling Capacity (Tons) | K29: Minimum EER | L29: Minimum SEER / IEER | N29: Minimum (HSPF / COP) | P29: Wet/Dry Bulb Temperature (F°)
C32: 1 | D32: =IF('HVAC-Tool'!#REF!="","",'HVAC-Tool'!#REF!) ->  | G32: =IF('HVAC-Tool'!#REF!="",IF(OR('HVAC-Tool'!#REF!="Heat Pump (Water Cooled)",'HVAC-Tool'!#REF!="Ground-Source Heat Pump",'HVAC-Tool'!#REF!="Groundwater Source Heat Pump"),"","selection needed"),'HVAC-Tool'!#REF!) ->  | H32: =IF('HVAC-Tool'!#REF!="","",'HVAC-Tool'!#REF!) ->  | I32: =IF(H32="","",H32/12000) ->  | K32: =IF(I32="","",IF(VLOOKUP(HVAC!$Y17,HVAC!$BF$10:$CI$63,13)=0," - ",VLOOKUP(HVAC!$Y17,HVAC!$BF$10:$CI$63,13))) ->  | L32: =IF(I32="","",IF(VLOOKUP(HVAC!$Y17,HVAC!$BF$10:$CI$63,IF(H32<65000,14,15))=0," - ",VLOOKUP(HVAC!$Y17,HVAC!$BF$10:$CI$63,IF(H32<65000,14,15)))) ->  | M32: =IF(L32="","",IF(L32=" - "," - ",IF(H32<65000,"SEER","IEER"))) ->  | N32: =IF(D32="","",IF(OR(D32="Unitary AC (Air Cooled)",D32="Unitary AC (Water Cooled)",D32="Unitary AC (Evaporatively Cooled)"),"n/a",IF(VLOOKUP(HVAC!$Y17,HVAC!$BF$10:$CI$63,16)=0," - ",VLOOKUP(HVAC!$Y17,HVAC!$BF$10:$CI$63,16)))) ->  | O32: =IF(N32="","",IF(N32="n/a","n/a",IF(N32=" - "," - ",IF(H32<65000,"HSPF","COP")))) ->  | P32: =IF(N32="","",IF(N32="n/a","n/a",IF(N32=" - "," - ","47/43"))) -> 
C33: 2 | D33: =IF('HVAC-Tool'!#REF!="","",'HVAC-Tool'!#REF!) ->  | G33: =IF('HVAC-Tool'!#REF!="",IF(OR('HVAC-Tool'!#REF!="Heat Pump (Water Cooled)",'HVAC-Tool'!#REF!="Ground-Source Heat Pump",'HVAC-Tool'!#REF!="Groundwater Source Heat Pump"),"","selection needed"),'HVAC-Tool'!#REF!) ->  | H33: =IF('HVAC-Tool'!#REF!="","",'HVAC-Tool'!#REF!) ->  | K33: =IF(I33="","",IF(VLOOKUP(HVAC!$Y18,HVAC!$BF$10:$CI$63,13)=0," - ",VLOOKUP(HVAC!$Y18,HVAC!$BF$10:$CI$63,13))) ->  | L33: =IF(I33="","",IF(VLOOKUP(HVAC!$Y18,HVAC!$BF$10:$CI$63,IF(H33<65000,14,15))=0," - ",VLOOKUP(HVAC!$Y18,HVAC!$BF$10:$CI$63,IF(H33<65000,14,15)))) ->  | N33: =IF(D33="","",IF(OR(D33="Unitary AC (Air Cooled)",D33="Unitary AC (Water Cooled)",D33="Unitary AC (Evaporatively Cooled)"),"n/a",IF(VLOOKUP(HVAC!$Y18,HVAC!$BF$10:$CI$63,16)=0," - ",VLOOKUP(HVAC!$Y18,HVAC!$BF$10:$CI$63,16)))) ->  | P33: =IF(N33="","",IF(N33="n/a","n/a",IF(N33=" - "," - ","47/43"))) -> 
C34: 3 | D34: =IF('HVAC-Tool'!#REF!="","",'HVAC-Tool'!#REF!) ->  | G34: =IF('HVAC-Tool'!#REF!="",IF(OR('HVAC-Tool'!#REF!="Heat Pump (Water Cooled)",'HVAC-Tool'!#REF!="Ground-Source Heat Pump",'HVAC-Tool'!#REF!="Groundwater Source Heat Pump"),"","selection needed"),'HVAC-Tool'!#REF!) ->  | H34: =IF('HVAC-Tool'!#REF!="","",'HVAC-Tool'!#REF!) ->  | K34: =IF(I34="","",IF(VLOOKUP(HVAC!$Y19,HVAC!$BF$10:$CI$63,13)=0," - ",VLOOKUP(HVAC!$Y19,HVAC!$BF$10:$CI$63,13))) ->  | L34: =IF(I34="","",IF(VLOOKUP(HVAC!$Y19,HVAC!$BF$10:$CI$63,IF(H34<65000,14,15))=0," - ",VLOOKUP(HVAC!$Y19,HVAC!$BF$10:$CI$63,IF(H34<65000,14,15)))) ->  | N34: =IF(D34="","",IF(OR(D34="Unitary AC (Air Cooled)",D34="Unitary AC (Water Cooled)",D34="Unitary AC (Evaporatively Cooled)"),"n/a",IF(VLOOKUP(HVAC!$Y19,HVAC!$BF$10:$CI$63,16)=0," - ",VLOOKUP(HVAC!$Y19,HVAC!$BF$10:$CI$63,16)))) -> 
C35: 4 | D35: =IF('HVAC-Tool'!#REF!="","",'HVAC-Tool'!#REF!) ->  | G35: =IF('HVAC-Tool'!#REF!="",IF(OR('HVAC-Tool'!#REF!="Heat Pump (Water Cooled)",'HVAC-Tool'!#REF!="Ground-Source Heat Pump",'HVAC-Tool'!#REF!="Groundwater Source Heat Pump"),"","selection needed"),'HVAC-Tool'!#REF!) ->  | H35: =IF('HVAC-Tool'!#REF!="","",'HVAC-Tool'!#REF!) ->  | K35: =IF(I35="","",IF(VLOOKUP(HVAC!$Y20,HVAC!$BF$10:$CI$63,13)=0," - ",VLOOKUP(HVAC!$Y20,HVAC!$BF$10:$CI$63,13))) ->  | L35: =IF(I35="","",IF(VLOOKUP(HVAC!$Y20,HVAC!$BF$10:$CI$63,IF(H35<65000,14,15))=0," - ",VLOOKUP(HVAC!$Y20,HVAC!$BF$10:$CI$63,IF(H35<65000,14,15)))) ->  | N35: =IF(D35="","",IF(OR(D35="Unitary AC (Air Cooled)",D35="Unitary AC (Water Cooled)",D35="Unitary AC (Evaporatively Cooled)"),"n/a",IF(VLOOKUP(HVAC!$Y20,HVAC!$BF$10:$CI$63,16)=0," - ",VLOOKUP(HVAC!$Y20,HVAC!$BF$10:$CI$63,16)))) -> 
C36: 5 | D36: =IF('HVAC-Tool'!#REF!="","",'HVAC-Tool'!#REF!) ->  | G36: =IF('HVAC-Tool'!#REF!="",IF(OR('HVAC-Tool'!#REF!="Heat Pump (Water Cooled)",'HVAC-Tool'!#REF!="Ground-Source Heat Pump",'HVAC-Tool'!#REF!="Groundwater Source Heat Pump"),"","selection needed"),'HVAC-Tool'!#REF!) ->  | H36: =IF('HVAC-Tool'!#REF!="","",'HVAC-Tool'!#REF!) ->  | K36: =IF(I36="","",IF(VLOOKUP(HVAC!$Y21,HVAC!$BF$10:$CI$63,13)=0," - ",VLOOKUP(HVAC!$Y21,HVAC!$BF$10:$CI$63,13))) ->  | L36: =IF(I36="","",IF(VLOOKUP(HVAC!$Y21,HVAC!$BF$10:$CI$63,IF(H36<65000,14,15))=0," - ",VLOOKUP(HVAC!$Y21,HVAC!$BF$10:$CI$63,IF(H36<65000,14,15)))) ->  | N36: =IF(D36="","",IF(OR(D36="Unitary AC (Air Cooled)",D36="Unitary AC (Water Cooled)",D36="Unitary AC (Evaporatively Cooled)"),"n/a",IF(VLOOKUP(HVAC!$Y21,HVAC!$BF$10:$CI$63,16)=0," - ",VLOOKUP(HVAC!$Y21,HVAC!$BF$10:$CI$63,16)))) -> 
C37: 6 | D37: =IF('HVAC-Tool'!#REF!="","",'HVAC-Tool'!#REF!) ->  | G37: =IF('HVAC-Tool'!#REF!="",IF(OR('HVAC-Tool'!#REF!="Heat Pump (Water Cooled)",'HVAC-Tool'!#REF!="Ground-Source Heat Pump",'HVAC-Tool'!#REF!="Groundwater Source Heat Pump"),"","selection needed"),'HVAC-Tool'!#REF!) ->  | H37: =IF('HVAC-Tool'!#REF!="","",'HVAC-Tool'!#REF!) ->  | K37: =IF(I37="","",IF(VLOOKUP(HVAC!$Y22,HVAC!$BF$10:$CI$63,13)=0," - ",VLOOKUP(HVAC!$Y22,HVAC!$BF$10:$CI$63,13))) ->  | L37: =IF(I37="","",IF(VLOOKUP(HVAC!$Y22,HVAC!$BF$10:$CI$63,IF(H37<65000,14,15))=0," - ",VLOOKUP(HVAC!$Y22,HVAC!$BF$10:$CI$63,IF(H37<65000,14,15)))) ->  | N37: =IF(D37="","",IF(OR(D37="Unitary AC (Air Cooled)",D37="Unitary AC (Water Cooled)",D37="Unitary AC (Evaporatively Cooled)"),"n/a",IF(VLOOKUP(HVAC!$Y22,HVAC!$BF$10:$CI$63,16)=0," - ",VLOOKUP(HVAC!$Y22,HVAC!$BF$10:$CI$63,16)))) -> 
C38: 7 | D38: =IF('HVAC-Tool'!#REF!="","",'HVAC-Tool'!#REF!) ->  | G38: =IF('HVAC-Tool'!#REF!="",IF(OR('HVAC-Tool'!#REF!="Heat Pump (Water Cooled)",'HVAC-Tool'!#REF!="Ground-Source Heat Pump",'HVAC-Tool'!#REF!="Groundwater Source Heat Pump"),"","selection needed"),'HVAC-Tool'!#REF!) ->  | H38: =IF('HVAC-Tool'!#REF!="","",'HVAC-Tool'!#REF!) ->  | K38: =IF(I38="","",IF(VLOOKUP(HVAC!$Y23,HVAC!$BF$10:$CI$63,13)=0," - ",VLOOKUP(HVAC!$Y23,HVAC!$BF$10:$CI$63,13))) ->  | L38: =IF(I38="","",IF(VLOOKUP(HVAC!$Y23,HVAC!$BF$10:$CI$63,IF(H38<65000,14,15))=0," - ",VLOOKUP(HVAC!$Y23,HVAC!$BF$10:$CI$63,IF(H38<65000,14,15)))) ->  | N38: =IF(D38="","",IF(OR(D38="Unitary AC (Air Cooled)",D38="Unitary AC (Water Cooled)",D38="Unitary AC (Evaporatively Cooled)"),"n/a",IF(VLOOKUP(HVAC!$Y23,HVAC!$BF$10:$CI$63,16)=0," - ",VLOOKUP(HVAC!$Y23,HVAC!$BF$10:$CI$63,16)))) -> 
D41: ="A/C Efficiency Requirements & Incentive Levels" -> A/C Efficiency Requirements & Incentive Levels | I41: Minimum Efficiency Requirement(s) & Customer Incentive
D42: Equipment Type | G42: Size Category | H42: Sub-Category | I42: =IF(InstallState="WY","Tier 1 $50/ton*",IF(InstallState="CA", "Tier 1 $25/ton*","")) ->  | J42: =IF(InstallState="WY","Tier 2 $75/ton*","CEE Tier 1 $50/ton*") -> CEE Tier 1 $50/ton* | K42: =IF(InstallState="WY","Tier 3 $100/ton*","CEE Tier 2 $75/ton*") -> CEE Tier 2 $75/ton*
I43: Tier 0 | J43: Tier 1 | K43: Tier 2
D44: Unitary Commercial Air Conditioners, Air-Cooled | G44: < 65, 000 Btu/hr (single phase) | H44: Split System | I44: =IF(INDIRECT("HVAC!"&INDEX(INDIRECT($T44),MATCH(I$43,Tiers,0))&$S44)=0," -- ",INDIRECT("HVAC!"&INDEX(INDIRECT($T44),MATCH(I$43,Tiers,0))&$S44)&" "&$T44) -> -- | J44: =IF(INDIRECT("HVAC!"&INDEX(INDIRECT($T44),MATCH(J$43,Tiers,0))&$S44)=0," -- ",INDIRECT("HVAC!"&INDEX(INDIRECT($T44),MATCH(J$43,Tiers,0))&$S44)&" "&$T44) -> 16 SEER | K44: 18 SEER | S44: 20 | T44: SEER
I45: -- | J45: 11 EER | K45: 11 EER | S45: 20 | T45: EER
H46: Single Package | I46: -- | J46: 10000 SEER | K46: 10000 SEER | S46: 22 | T46: SEER
I47: -- | J47: 10000 EER | K47: 10000 EER | S47: 22 | T47: EER
G48: < 65, 000 Btu/hr (three phase) | H48: Split System | I48: -- | J48: 16 SEER | K48: 18 SEER | S48: 23 | T48: SEER
I49: -- | J49: 11 EER | K49: 11 EER | S49: 23 | T49: EER
H50: Single Package | I50: -- | J50: 10000 SEER | K50: 10000 SEER | S50: 24 | T50: SEER
I51: -- | J51: 10000 EER | K51: 10000 EER | S51: 24 | T51: EER
G52: ≥ 65,000 Btu/hr and < 135,000 Btu/hr | H52: Split System and Single Package | I52: -- | J52: 11 EER | K52: 11 EER | S52: 25 | T52: EER
I53: -- | J53: 16.1 IEER | K53: 17.8 IEER | S53: 25 | T53: IEER
G54: ≥ 135,000 Btu/hr and < 240,000 Btu/hr | H54: Split System and Single Package | I54: -- | J54: 10.8 EER | K54: 10.8 EER | S54: 26 | T54: EER
I55: -- | J55: 15.4 IEER | K55: 16.8 IEER | S55: 26 | T55: IEER
G56: ≥ 240,000 Btu/hr and < 760,000 Btu/hr | H56: Split System and Single Package | I56: -- | J56: 9.8 EER | K56: 9.8 EER | S56: 27 | T56: EER
I57: -- | J57: 14.3 IEER | K57: 15.6 IEER | S57: 27 | T57: IEER
G58: ≥ 760,000 Btu/hr | H58: Split System and Single Package | I58: -- | J58: 9.5 EER | K58: 9.5 EER | S58: 28 | T58: EER
I59: -- | J59: 13.6 IEER | K59: 14.9 IEER | S59: 28 | T59: IEER | Z59: COP 47 | AA59: COP 17
D60: Unitary Commercial Air Conditioners, Water Cooled | G60: < 65,000 Btu/hr | H60: Split system and Single Package | I60: -- | J60: 14 EER | K60: -- | S60: 34 | T60: EER | W60: EER | X60: SEER | Y60: IEER | Z60: COP | AA60: COP. | AB60: HSPF
I61: -- | J61: -- | K61: -- | S61: 34 | T61: IEER | V61: Tier 0 | W61: BR | X61: BS | Y61: BT | Z61: BU | AA61: BV | AB61: BU
G62: ≥ 65,000 Btu/hr and < 135,000 Btu/hr | I62: -- | J62: 11.9 EER | K62: -- | S62: 35 | T62: EER | V62: Tier 1 | W62: BX | X62: BY | Y62: BZ | Z62: CA | AA62: CB | AB62: CA
I63: -- | J63: 15.1 IEER | K63: -- | S63: 35 | T63: IEER | V63: Tier 2 | W63: CD | X63: CE | Y63: CF | Z63: CG | AA63: CH | AB63: CG
G64: ≥ 135,000 Btu/hr | I64: -- | J64: 12.3 EER | K64: -- | S64: 36 | T64: EER
I65: -- | J65: 14.6 IEER | K65: -- | S65: 36 | T65: IEER
D66: Unitary Commercial Air Conditioners, Evaporatively Cooled | G66: < 65,000 Btu/hr | H66: Split System and Single Package | I66: -- | J66: 14 EER | K66: -- | S66: 42 | T66: EER
I67: -- | J67: -- | K67: -- | S67: 42 | T67: IEER
G68: ≥ 65,000 Btu/hr and < 135,000 Btu/hr | I68: -- | J68: 11.9 EER | K68: -- | S68: 43 | T68: EER
I69: -- | J69: 15.1 IEER | K69: -- | S69: 43 | T69: IEER
G70: ≥ 135,000 Btu/hr | I70: -- | J70: 11.8 EER | K70: -- | S70: 44 | T70: EER
I71: -- | J71: 14.1 IEER | K71: -- | S71: 44 | T71: IEER
D72: 1. Equipment that meets or exceeds the efficiency requirements listed for the equipment category in the above table may qualify for the listed incentive. Equipment must meet both listed efficiency requirements to qualify for the listed incentives.
D73: 2. Equipment size categories and capacities are specified in terms of net cooling capacity at AHRI standard conditions as determined by AHRI Standard 210/240 for units < 65,000 Btu/hr, AHRI Standard 340/360 for units ≥ 65,000 Btu/hr, and AHRI Standard 310/380 for PTAC and PTHP units.
D74: 3. Units rated only with an IPLV may qualify for the listed incentives if the value meets or exceeds the minimum IPLV established as part of the Consortium for Energy Efficiency Commercial Unitary Air Conditioning and Heat Pump Specification effective January 16, 2009.
D77: EER = Energy Efficiency Ratio
D78: SEER = Seasonal Energy Efficiency Ratio
D79: IEER = Integrated Energy Efficiency Ratio
D80: IPLV = Integrated Part Load Value
D81: CEE = Consortium for Energy Efficiency
D82: AHRI = Air Conditioning, Heating, and Refrigeration Institute
D85: ="Heat Pump Efficiency Requirements & Incentive Levels" -> Heat Pump Efficiency Requirements & Incentive Levels | I85: Minimum Efficiency Requirement(s) & Customer Incentive
D86: Equipment Type | G86: Size Category | H86: Sub-Category | I86: Tier 1 $25/ton* | J86: =IF(InstallState="WY","Tier 2 $75/ton*","CEE Tier 1 $50/ton*") -> CEE Tier 1 $50/ton* | K86: =IF(InstallState="WY","Tier 2 $75/ton*","CEE Tier 2 $75/ton*") -> CEE Tier 2 $75/ton*
D88: Heat Pumps, Air-Cooled (Cooling Mode) | G88: < 65, 000 Btu/hr (single phase) | H88: Split System | I88: =IF(INDIRECT("HVAC!"&INDEX(INDIRECT($T88),MATCH(I$43,Tiers,0))&$S88)=0," -- ",INDIRECT("HVAC!"&INDEX(INDIRECT($T88),MATCH(I$43,Tiers,0))&$S88)&" "&$T88) -> -- | J88: 16 SEER | K88: -- | S88: 10 | T88: SEER
I89: -- | J89: -- | K89: -- | S89: 10 | T89: EER
H90: Single Package | I90: -- | J90: 16 SEER | K90: -- | S90: 11 | T90: SEER
I91: -- | J91: -- | K91: -- | S91: 11 | T91: EER
G92: < 65, 000 Btu/hr (three phase) | H92: Split System | I92: 16 SEER | J92: 16 SEER | K92: -- | S92: 12 | T92: SEER
I93: -- | J93: -- | K93: -- | S93: 12 | T93: EER
H94: Single Package | I94: 16 SEER | J94: 16 SEER | K94: -- | S94: 13 | T94: SEER
I95: -- | J95: -- | K95: -- | S95: 13 | T95: EER
G96: ≥ 65,000 Btu/hr and < 135,000 Btu/hr | H96: Split system and single package | I96: 10.8 EER | J96: -- | K96: -- | S96: 14 | T96: EER
I97: 14.6 IEER | J97: -- | K97: -- | S97: 14 | T97: IEER
G98: ≥ 135,000 Btu/hr and < 240,000 Btu/hr | H98: Split system and single package | I98: 10.4 EER | J98: -- | K98: -- | S98: 15 | T98: EER
I99: 13.8 IEER | J99: -- | K99: -- | S99: 15 | T99: IEER
G100: ≥ 240,000 Btu/hr | H100: Split system and single package | I100: 9.3 EER | J100: -- | K100: -- | S100: 16 | T100: EER
I101: 12.8 IEER | J101: -- | K101: -- | S101: 16 | T101: IEER
D102: Heat Pumps, Air-Cooled (Heating Mode) (See Note 2) | G102: < 65, 000 Btu/hr (single phase) | H102: Split system | I102: -- | J102: 9.2 HSPF | K102: -- | S102: 10 | T102: HSPF
H103: Single package | I103: -- | J103: 8.5 HSPF | K103: -- | S103: 11 | T103: HSPF
G104: < 65, 000 Btu/hr (three phase) | H104: Split system | I104: 8.5 HSPF | J104: 9.2 HSPF | K104: -- | S104: 12 | T104: HSPF
H105: Single package | I105: 8.2 HSPF | J105: 8.5 HSPF | K105: -- | S105: 13 | T105: HSPF
G106: ≥ 65,000 Btu/hr and < 135,000 Btu/hr | H106: 47°F db/43°F wb outdoor air | I106: 3.4 COP | J106: -- | K106: -- | S106: 14 | T106: COP
H107: 17°F db/15°F wb outdoor air | I107: 2.4 COP. | J107: -- | K107: -- | S107: 14 | T107: COP.
G108: ≥ 135,000 Btu/hr | H108: 47°F db/43°F wb outdoor air | I108: 3.3 COP | J108: -- | K108: -- | S108: 15 | T108: COP
H109: 17°F db/15°F wb outdoor air | I109: 2.1 COP. | J109: -- | K109: -- | S109: 15 | T109: COP.
D110: Heat Pumps, Water-Source (See note 2) | G110: < 135,000 Btu/hr | H110: 86°F Entering Water (Cooling Mode) | I110: -- | J110: 14 EER | K110: -- | S110: 17 | T110: EER
H111: 68°F Entering Water (Heating Mode) | I111: -- | J111: 4.6 COP | K111: -- | S111: 17 | T111: COP
D112: Variable Refrigerant Flow Heat Pumps, Air-Cooled (Cooling Mode) | G112: < 65, 000 Btu/hr | H112: Multi-split System | I112: =IF(INDIRECT("HVAC!"&INDEX(INDIRECT($T112),MATCH(I$43,Tiers,0))&$S112)=0," -- ",INDIRECT("HVAC!"&INDEX(INDIRECT($T112),MATCH(I$43,Tiers,0))&$S112)&" "&$T112) -> -- | J112: -- | K112: 15.2 SEER | S112: 47 | T112: SEER
I113: -- | J113: -- | K113: 1 EER | S113: 47 | T113: EER
G114: ≥ 65,000 Btu/hr and < 135,000 Btu/hr | H114: Multi-split System | I114: -- | J114: -- | K114: 10.8 EER | S114: 49 | T114: EER
I115: -- | J115: -- | K115: 17 IEER | S115: 49 | T115: IEER
H116: Multi-split System with Heat Recovery | I116: -- | J116: -- | K116: 10.8 EER | S116: 50 | T116: EER
I117: -- | J117: -- | K117: 17 IEER | S117: 50 | T117: IEER
G118: ≥ 135,000 Btu/hr and < 240,000 Btu/hr | H118: Multi-split System | I118: -- | J118: -- | K118: 10.4 EER | S118: 51 | T118: EER
I119: -- | J119: -- | K119: 16.4 IEER | S119: 51 | T119: IEER
H120: Multi-split System with Heat Recovery | I120: -- | J120: -- | K120: 10.4 EER | S120: 52 | T120: EER
I121: -- | J121: -- | K121: 16.4 IEER | S121: 52 | T121: IEER
G122: ≥ 240,000 Btu/hr | H122: Multi-split System | I122: -- | J122: -- | K122: 9.3 EER | S122: 53 | T122: EER
I123: -- | J123: -- | K123: 15.3 IEER | S123: 53 | T123: IEER
H124: Multi-split System with Heat Recovery | I124: -- | J124: -- | K124: 9.3 EER | S124: 54 | T124: EER
I125: -- | J125: -- | K125: 15.3 IEER | S125: 54 | T125: IEER
D126: Variable Refrigerant Flow Heat Pumps, Air-Cooled (Heating Mode) (See Note 2) | G126: < 65, 000 Btu/hr (single phase) | H126: Multi-split system | I126: -- | J126: -- | K126: 8.7 HSPF | S126: 47 | T126: HSPF
G127: ≥ 65,000 Btu/hr and < 135,000 Btu/hr | H127: 47°F db/43°F wb outdoor air | I127: -- | J127: -- | K127: 3.5 COP | S127: 49 | T127: COP
H128: 17°F db/15°F wb outdoor air | I128: -- | J128: -- | K128: 2.3 COP. | S128: 49 | T128: COP.
G129: ≥ 135,000 Btu/hr | H129: 47°F db/43°F wb outdoor air | I129: -- | J129: -- | K129: 3.4 COP | S129: 51 | T129: COP
H130: 17°F db/15°F wb outdoor air | I130: -- | J130: -- | K130: 2.1 COP. | S130: 51 | T130: COP.
D131: Variable Refrigerant Flow Heat Pumps, Water-Source (See note 2) | G131: < 135,000 Btu/hr | H131: Multi-split System, 86°F Entering Water (Cooling Mode) | I131: -- | J131: -- | K131: 14 EER | S131: 55 | T131: EER
H132: Multi-split System, 68°F Entering Water (Heating Mode) | I132: -- | J132: -- | K132: 4.6 COP | S132: 55 | T132: COP
D133: Variable Refrigerant Flow Heat Pumps, Water-Source (See note 2) | G133: < 135,000 Btu/hr | H133: Multi-split System with Heat Recovery, 86°F Entering Water (Cooling Mode) | I133: -- | J133: -- | K133: 13.8 EER | S133: 56 | T133: EER
H134: Multi-split System with Heat Recovery, 68°F Entering Water (Heating Mode) | I134: -- | J134: -- | K134: 4.6 COP | S134: 55 | T134: COP
D135: Equipment Type | G135: Size Category | H135: Sub-Category | I135: Energy Star Qualified $50/ton
D137: Heat Pumps, Ground-source (Heating & Cooling Mode) – See note 2 | G137: All sizes | H137: 77° Entering Water | I137: =IF(INDIRECT("HVAC!"&INDEX(INDIRECT($T137),MATCH(J$43,Tiers,0))&$S137)=0," -- ",INDIRECT("HVAC!"&INDEX(INDIRECT($T137),MATCH(J$43,Tiers,0))&$S137)&" "&$T137) -> 17.1 EER | S137: 29 | T137: EER
H138: 32° Entering Water | I138: =IF(INDIRECT("HVAC!"&INDEX(INDIRECT($T138),MATCH(J$43,Tiers,0))&$S138)=0," -- ",INDIRECT("HVAC!"&INDEX(INDIRECT($T138),MATCH(J$43,Tiers,0))&$S138)&" "&$T138) -> 3.6 COP | S138: 29 | T138: COP
D139: Heat Pumps, Groundwater-source (Heating & Cooling Mode) – See note 2 | G139: All sizes | H139: 59° Entering Water | I139: =IF(INDIRECT("HVAC!"&INDEX(INDIRECT($T139),MATCH(J$43,Tiers,0))&$S139)=0," -- ",INDIRECT("HVAC!"&INDEX(INDIRECT($T139),MATCH(J$43,Tiers,0))&$S139)&" "&$T139) -> 21.1 EER | S139: 30 | T139: EER
H140: 50° Entering Water | I140: =IF(INDIRECT("HVAC!"&INDEX(INDIRECT($T140),MATCH(J$43,Tiers,0))&$S140)=0," -- ",INDIRECT("HVAC!"&INDEX(INDIRECT($T140),MATCH(J$43,Tiers,0))&$S140)&" "&$T140) -> 4.1 COP | S140: 30 | T140: COP
D141: 1. Equipment that meets or exceeds the efficiency requirements listed for the size category in the above table may qualify for the listed incentive. Equipment must meet both listed efficiency requirements to qualify for the listed incentives.
D142: 2. Incentives for heat pumps are available per ton of cooling capacity ONLY. No incentives are paid per ton of heating capacity. Heat pumps must meet both the cooling mode and heating mode efficiency requirements to qualify for per ton cooling efficiency incentives.
D143: 3. Equipment size categories and capacities are specified in terms of net cooling capacity at AHRI standard conditions as determined by AHRI Standard 210/240 for units < 65,000 btu/hr, AHRI Standard 340/360 for units ≥ 65,000 btu/hr, and AHRI Standard 310/380 for PTAC/PTHP units.
D144: 4. Ground and Water Source Heat Pumps must meet or exceed listed efficiency requirements when rated in accordance with ISO-13256-1 to qualify for an incentive.
D145: 5. Units rated only with an IPLV may qualify for the listed incentives if the value meets or exceeds the minimum IPLV established as part of the Consortium for Energy Efficiency Commercial Unitary Air Conditioning and Heat Pump Specification effective January 16, 2009.
D148: EER = Energy Efficiency Ratio | H148: IPLV = Integrated Part Load Value
D149: SEER = Seasonal Energy Efficiency Ratio | H149: HSPF = Heating Seasonal Performance Factor
D150: IEER = Integrated Energy Efficiency Ratio | H150: COP = Coefficient of Performance
D151: CEE = Consortium for Energy Efficiency | H151: AHRI = Air Conditioning, Heating, and Refrigeration Institute

Sheet Measures (hidden)
A1: Measure Version ID | B1: Measure Reference # | C1: Measure Name | D1: Version Number | E1: Effective Start Date | F1: Effective End Date | G1: Customer Incentive ($/unit) | H1: Unit | I1: Capacity Low (kBTU/hr) | J1: Capacity High (kBTU/hr) | K1: Upgrade Type
A2: =_xlfn.CONCAT(Measures[[#This Row],[Measure Reference '#]],"-",Measures[[#This Row],[Version Number]]) -> TBD-UT-NewHP-1-1 | B2: TBD-UT-NewHP-1 | C2: Heat Pump Upgrade - Air Source - ENERGY STAR - < 65 kBtu/h - UT | D2: 1 | E2: 2023-11-15 | G2: 120 | H2: Ton | J2: 65 | K2: Upgrade
A3: =_xlfn.CONCAT(Measures[[#This Row],[Measure Reference '#]],"-",Measures[[#This Row],[Version Number]]) -> TBD-UT-NewHP-2-1 | B3: TBD-UT-NewHP-2 | C3: Heat Pump Upgrade - Air Source - ENERGY STAR - 135 to 239 kBtu/h - UT | D3: 1 | E3: 2023-11-15 | G3: 120 | H3: Ton | I3: 135 | J3: 240 | K3: Upgrade
A4: =_xlfn.CONCAT(Measures[[#This Row],[Measure Reference '#]],"-",Measures[[#This Row],[Version Number]]) -> TBD-UT-NewHP-3-1 | B4: TBD-UT-NewHP-3 | C4: Heat Pump Upgrade - Air Source - ENERGY STAR - 65 to 134 kBtu/h - UT | D4: 1 | E4: 2023-11-15 | G4: 120 | H4: Ton | I4: 65 | J4: 135 | K4: Upgrade
A5: =_xlfn.CONCAT(Measures[[#This Row],[Measure Reference '#]],"-",Measures[[#This Row],[Version Number]]) -> TBD-UT-NewHP-4-1 | B5: TBD-UT-NewHP-4 | C5: Heat Pump Conversion - Air Source - ENERGY STAR - < 65 kBtu/h - UT | D5: 1 | E5: 2023-11-15 | G5: 300 | H5: Ton | J5: 65 | K5: Conversion
A6: =_xlfn.CONCAT(Measures[[#This Row],[Measure Reference '#]],"-",Measures[[#This Row],[Version Number]]) -> TBD-UT-NewHP-5-1 | B6: TBD-UT-NewHP-5 | C6: Heat Pump Conversion - Air Source - ENERGY STAR - 135 to 239 kBtu/h - UT | D6: 1 | E6: 2023-11-15 | G6: 300 | H6: Ton | I6: 135 | J6: 240 | K6: Conversion
A7: =_xlfn.CONCAT(Measures[[#This Row],[Measure Reference '#]],"-",Measures[[#This Row],[Version Number]]) -> TBD-UT-NewHP-6-1 | B7: TBD-UT-NewHP-6 | C7: Heat Pump Conversion - Air Source - ENERGY STAR - 65 to 134 kBtu/h - UT | D7: 1 | E7: 2023-11-15 | G7: 300 | H7: Ton | I7: 65 | J7: 135 | K7: Conversion

Sheet Equipment (hidden)
A1: ID | B1: Facility Type | C1: Size Low | D1: Size High | E1: Baseline Equipment | F1: Proposed Equipment | G1: kWh Savings Per Unit | H1: kW Savings Per Unit
A2: 1 | B2: Assembly | D2: 65 | E2: Electric Heat Pump | F2: Electric Heat Pump | G2: 609.8484098 | H2: 0.1412994462
A3: 2 | B3: Education - Primary School | D3: 65 | E3: Electric Heat Pump | F3: Electric Heat Pump | G3: 301.1212319 | H3: 0.09651321536
A4: 3 | B4: Education - Secondary School | D4: 65 | E4: Electric Heat Pump | F4: Electric Heat Pump | G4: 301.1212319 | H4: 0.09651321536
A5: 4 | B5: Education - Community College | D5: 65 | E5: Electric Heat Pump | F5: Electric Heat Pump | G5: 301.1212319 | H5: 0.09651321536
A6: 5 | B6: Education - University | D6: 65 | E6: Electric Heat Pump | F6: Electric Heat Pump | G6: 301.1212319 | H6: 0.09651321536
A7: 6 | B7: Grocery | D7: 65 | E7: Electric Heat Pump | F7: Electric Heat Pump | G7: 731.1807347 | H7: 0.1255461426
A8: 7 | B8: Health/Medical - Hospital | D8: 65 | E8: Electric Heat Pump | F8: Electric Heat Pump | G8: 472.5272018 | H8: 0.08113447833
A9: 8 | B9: Health/Medical - Nursing Home | D9: 65 | E9: Electric Heat Pump | F9: Electric Heat Pump | G9: 472.5272018 | H9: 0.08113447833
A10: 9 | B10: Lodging - Hotel | D10: 65 | E10: Electric Heat Pump | F10: Electric Heat Pump | G10: 689.0169475 | H10: 0.07865490268
A11: 10 | B11: Lodging - Motel | D11: 65 | E11: Electric Heat Pump | F11: Electric Heat Pump | G11: 689.0169475 | H11: 0.07865490268
A12: 11 | B12: Manufacturing - Light Industrial | D12: 65 | E12: Electric Heat Pump | F12: Electric Heat Pump
A13: 12 | B13: Office - Large | D13: 65 | E13: Electric Heat Pump | F13: Electric Heat Pump | G13: 274.1650365 | H13: 0.105448091
A14: 13 | B14: Office - Small | D14: 65 | E14: Electric Heat Pump | F14: Electric Heat Pump | G14: 274.1650365 | H14: 0.105448091
A15: 14 | B15: Restaurant - Sit-Down | D15: 65 | E15: Electric Heat Pump | F15: Electric Heat Pump | G15: 506.3904214 | H15: 0.115931873
A16: 15 | B16: Restaurant - Fast-Food | D16: 65 | E16: Electric Heat Pump | F16: Electric Heat Pump | G16: 506.3904214 | H16: 0.115931873
A17: 16 | B17: Retail - 3-Story Large | D17: 65 | E17: Electric Heat Pump | F17: Electric Heat Pump | G17: 365.1458897 | H17: 0.09002610693
A18: 17 | B18: Retail - Single-Story Large | D18: 65 | E18: Electric Heat Pump | F18: Electric Heat Pump | G18: 365.1458897 | H18: 0.09002610693
A19: 18 | B19: Retail - Small | D19: 65 | E19: Electric Heat Pump | F19: Electric Heat Pump | G19: 365.1458897 | H19: 0.09002610693
A20: 19 | B20: Storage - Conditioned | D20: 65 | E20: Electric Heat Pump | F20: Electric Heat Pump
A21: 20 | B21: Assembly | C21: 65 | D21: 135 | E21: Electric Heat Pump | F21: Electric Heat Pump | G21: 247.6100291 | H21: 0.05737025698
A22: 21 | B22: Education - Primary School | C22: 65 | D22: 135 | E22: Electric Heat Pump | F22: Electric Heat Pump | G22: 99.64656014 | H22: 0.03193800005
A23: 22 | B23: Education - Secondary School | C23: 65 | D23: 135 | E23: Electric Heat Pump | F23: Electric Heat Pump | G23: 99.64656014 | H23: 0.03193800005
A24: 23 | B24: Education - Community College | C24: 65 | D24: 135 | E24: Electric Heat Pump | F24: Electric Heat Pump | G24: 99.64656014 | H24: 0.03193800005
A25: 24 | B25: Education - University | C25: 65 | D25: 135 | E25: Electric Heat Pump | F25: Electric Heat Pump | G25: 99.64656014 | H25: 0.03193800005
A26: 25 | B26: Grocery | C26: 65 | D26: 135 | E26: Electric Heat Pump | F26: Electric Heat Pump | G26: 349.433685 | H26: 0.0599989157
A27: 26 | B27: Health/Medical - Hospital | C27: 65 | D27: 135 | E27: Electric Heat Pump | F27: Electric Heat Pump | G27: 303.9961136 | H27: 0.05219713489
A28: 27 | B28: Health/Medical - Nursing Home | C28: 65 | D28: 135 | E28: Electric Heat Pump | F28: Electric Heat Pump | G28: 303.9961136 | H28: 0.05219713489
A29: 28 | B29: Lodging - Hotel | C29: 65 | D29: 135 | E29: Electric Heat Pump | F29: Electric Heat Pump | G29: 197.168544 | H29: 0.02250782466
A30: 29 | B30: Lodging - Motel | C30: 65 | D30: 135 | E30: Electric Heat Pump | F30: Electric Heat Pump | G30: 197.168544 | H30: 0.02250782466
A31: 30 | B31: Manufacturing - Light Industrial | C31: 65 | D31: 135 | E31: Electric Heat Pump | F31: Electric Heat Pump
A32: 31 | B32: Office - Large | C32: 65 | D32: 135 | E32: Electric Heat Pump | F32: Electric Heat Pump | G32: 141.5207608 | H32: 0.05443106184
A33: 32 | B33: Office - Small | C33: 65 | D33: 135 | E33: Electric Heat Pump | F33: Electric Heat Pump | G33: 141.5207608 | H33: 0.05443106184
A34: 33 | B34: Restaurant - Sit-Down | C34: 65 | D34: 135 | E34: Electric Heat Pump | F34: Electric Heat Pump | G34: 234.0998897 | H34: 0.05359429708
A35: 34 | B35: Restaurant - Fast-Food | C35: 65 | D35: 135 | E35: Electric Heat Pump | F35: Electric Heat Pump | G35: 234.0998897 | H35: 0.05359429708
A36: 35 | B36: Retail - 3-Story Large | C36: 65 | D36: 135 | E36: Electric Heat Pump | F36: Electric Heat Pump | G36: 163.089103 | H36: 0.04020934491
A37: 36 | B37: Retail - Single-Story Large | C37: 65 | D37: 135 | E37: Electric Heat Pump | F37: Electric Heat Pump | G37: 163.089103 | H37: 0.04020934491
A38: 37 | B38: Retail - Small | C38: 65 | D38: 135 | E38: Electric Heat Pump | F38: Electric Heat Pump | G38: 163.089103 | H38: 0.04020934491
A39: 38 | B39: Storage - Conditioned | C39: 65 | D39: 135 | E39: Electric Heat Pump | F39: Electric Heat Pump
A40: 39 | B40: Assembly | C40: 135 | D40: 240 | E40: Electric Heat Pump | F40: Electric Heat Pump | G40: 240.3198578 | H40: 0.05568115334
A41: 40 | B41: Education - Primary School | C41: 135 | D41: 240 | E41: Electric Heat Pump | F41: Electric Heat Pump | G41: 101.0897404 | H41: 0.03240055781
A42: 41 | B42: Education - Secondary School | C42: 135 | D42: 240 | E42: Electric Heat Pump | F42: Electric Heat Pump | G42: 101.0897404 | H42: 0.03240055781
A43: 42 | B43: Education - Community College | C43: 135 | D43: 240 | E43: Electric Heat Pump | F43: Electric Heat Pump | G43: 101.0897404 | H43: 0.03240055781
A44: 43 | B44: Education - University | C44: 135 | D44: 240 | E44: Electric Heat Pump | F44: Electric Heat Pump | G44: 101.0897404 | H44: 0.03240055781
A45: 44 | B45: Grocery | C45: 135 | D45: 240 | E45: Electric Heat Pump | F45: Electric Heat Pump | G45: 331.459789 | H45: 0.05691273849
A46: 45 | B46: Health/Medical - Hospital | C46: 135 | D46: 240 | E46: Electric Heat Pump | F46: Electric Heat Pump | G46: 282.6102955 | H46: 0.04852511941
A47: 46 | B47: Health/Medical - Nursing Home | C47: 135 | D47: 240 | E47: Electric Heat Pump | F47: Electric Heat Pump | G47: 282.6102955 | H47: 0.04852511941
A48: 47 | B48: Lodging - Hotel | C48: 135 | D48: 240 | E48: Electric Heat Pump | F48: Electric Heat Pump | G48: 198.6246994 | H48: 0.02267405244
A49: 48 | B49: Lodging - Motel | C49: 135 | D49: 240 | E49: Electric Heat Pump | F49: Electric Heat Pump | G49: 198.6246994 | H49: 0.02267405244
A50: 49 | B50: Manufacturing - Light Industrial | C50: 135 | D50: 240 | E50: Electric Heat Pump | F50: Electric Heat Pump
A51: 50 | B51: Office - Large | C51: 135 | D51: 240 | E51: Electric Heat Pump | F51: Electric Heat Pump | G51: 133.7686305 | H51: 0.05144947326
A52: 51 | B52: Office - Small | C52: 135 | D52: 240 | E52: Electric Heat Pump | F52: Electric Heat Pump | G52: 133.7686305 | H52: 0.05144947326
A53: 52 | B53: Restaurant - Sit-Down | C53: 135 | D53: 240 | E53: Electric Heat Pump | F53: Electric Heat Pump | G53: 223.0216882 | H53: 0.05105807879
A54: 53 | B54: Restaurant - Fast-Food | C54: 135 | D54: 240 | E54: Electric Heat Pump | F54: Electric Heat Pump | G54: 223.0216882 | H54: 0.05105807879
A55: 54 | B55: Retail - 3-Story Large | C55: 135 | D55: 240 | E55: Electric Heat Pump | F55: Electric Heat Pump | G55: 157.8550672 | H55: 0.03891890218
A56: 55 | B56: Retail - Single-Story Large | C56: 135 | D56: 240 | E56: Electric Heat Pump | F56: Electric Heat Pump | G56: 157.8550672 | H56: 0.03891890218
A57: 56 | B57: Retail - Small | C57: 135 | D57: 240 | E57: Electric Heat Pump | F57: Electric Heat Pump | G57: 157.8550672 | H57: 0.03891890218
A58: 57 | B58: Storage - Conditioned | C58: 135 | D58: 240 | E58: Electric Heat Pump | F58: Electric Heat Pump
A59: 58 | B59: Assembly | D59: 65 | E59: Forced Air Furnace (gas/propane) | F59: Electric Heat Pump | G59: 1149.277124 | H59: 0.2662829297
A60: 59 | B60: Education - Primary School | D60: 65 | E60: Forced Air Furnace (gas/propane) | F60: Electric Heat Pump | G60: 608.1244062 | H60: 0.1949116687
A61: 60 | B61: Education - Secondary School | D61: 65 | E61: Forced Air Furnace (gas/propane) | F61: Electric Heat Pump | G61: 608.1244062 | H61: 0.1949116687
A62: 61 | B62: Education - Community College | D62: 65 | E62: Forced Air Furnace (gas/propane) | F62: Electric Heat Pump | G62: 608.1244062 | H62: 0.1949116687
A63: 62 | B63: Education - University | D63: 65 | E63: Forced Air Furnace (gas/propane) | F63: Electric Heat Pump | G63: 608.1244062 | H63: 0.1949116687
A64: 63 | B64: Grocery | D64: 65 | E64: Forced Air Furnace (gas/propane) | F64: Electric Heat Pump | G64: 952.1285658 | H64: 0.1634836136
A65: 64 | B65: Health/Medical - Hospital | D65: 65 | E65: Forced Air Furnace (gas/propane) | F65: Electric Heat Pump | G65: 381.1071601 | H65: 0.06543735578
A66: 65 | B66: Health/Medical - Nursing Home | D66: 65 | E66: Forced Air Furnace (gas/propane) | F66: Electric Heat Pump | G66: 381.1071601 | H66: 0.06543735578
A67: 66 | B67: Lodging - Hotel | D67: 65 | E67: Forced Air Furnace (gas/propane) | F67: Electric Heat Pump | G67: 1070.407446 | H67: 0.1221926308
A68: 67 | B68: Lodging - Motel | D68: 65 | E68: Forced Air Furnace (gas/propane) | F68: Electric Heat Pump | G68: 1070.407446 | H68: 0.1221926308
A69: 68 | B69: Manufacturing - Light Industrial | D69: 65 | E69: Forced Air Furnace (gas/propane) | F69: Electric Heat Pump
A70: 69 | B70: Office - Large | D70: 65 | E70: Forced Air Furnace (gas/propane) | F70: Electric Heat Pump | G70: 571.2695666 | H70: 0.2197190641
A71: 70 | B71: Office - Small | D71: 65 | E71: Forced Air Furnace (gas/propane) | F71: Electric Heat Pump | G71: 571.2695666 | H71: 0.2197190641
A72: 71 | B72: Restaurant - Sit-Down | D72: 65 | E72: Forced Air Furnace (gas/propane) | F72: Electric Heat Pump | G72: 1191.627905 | H72: 0.2728085863
A73: 72 | B73: Restaurant - Fast-Food | D73: 65 | E73: Forced Air Furnace (gas/propane) | F73: Electric Heat Pump | G73: 1191.627905 | H73: 0.2728085863
A74: 73 | B74: Retail - 3-Story Large | D74: 65 | E74: Forced Air Furnace (gas/propane) | F74: Electric Heat Pump | G74: 618.9511645 | H74: 0.1526013719
A75: 74 | B75: Retail - Single-Story Large | D75: 65 | E75: Forced Air Furnace (gas/propane) | F75: Electric Heat Pump | G75: 618.9511645 | H75: 0.1526013719
A76: 75 | B76: Retail - Small | D76: 65 | E76: Forced Air Furnace (gas/propane) | F76: Electric Heat Pump | G76: 618.9511645 | H76: 0.1526013719
A77: 76 | B77: Storage - Conditioned | D77: 65 | E77: Forced Air Furnace (gas/propane) | F77: Electric Heat Pump
A78: 77 | B78: Assembly | C78: 65 | D78: 135 | E78: Forced Air Furnace (gas/propane) | F78: Electric Heat Pump | G78: 1028.144783 | H78: 0.2382170489
A79: 78 | B79: Education - Primary School | C79: 65 | D79: 135 | E79: Forced Air Furnace (gas/propane) | F79: Electric Heat Pump | G79: 534.2201538 | H79: 0.1712244083
A80: 79 | B80: Education - Secondary School | C80: 65 | D80: 135 | E80: Forced Air Furnace (gas/propane) | F80: Electric Heat Pump | G80: 534.2201538 | H80: 0.1712244083
A81: 80 | B81: Education - Community College | C81: 65 | D81: 135 | E81: Forced Air Furnace (gas/propane) | F81: Electric Heat Pump | G81: 534.2201538 | H81: 0.1712244083
A82: 81 | B82: Education - University | C82: 65 | D82: 135 | E82: Forced Air Furnace (gas/propane) | F82: Electric Heat Pump | G82: 534.2201538 | H82: 0.1712244083
A83: 82 | B83: Grocery | C83: 65 | D83: 135 | E83: Forced Air Furnace (gas/propane) | F83: Electric Heat Pump | G83: 1035.323916 | H83: 0.1777685295
A84: 83 | B84: Health/Medical - Hospital | C84: 65 | D84: 135 | E84: Forced Air Furnace (gas/propane) | F84: Electric Heat Pump | G84: 138.0031949 | H84: 0.02369560352
A85: 84 | B85: Health/Medical - Nursing Home | C85: 65 | D85: 135 | E85: Forced Air Furnace (gas/propane) | F85: Electric Heat Pump | G85: 138.0031949 | H85: 0.02369560352
A86: 85 | B86: Lodging - Hotel | C86: 65 | D86: 135 | E86: Forced Air Furnace (gas/propane) | F86: Electric Heat Pump | G86: 704.5037074 | H86: 0.08042279764
A87: 86 | B87: Lodging - Motel | C87: 65 | D87: 135 | E87: Forced Air Furnace (gas/propane) | F87: Electric Heat Pump | G87: 704.5037074 | H87: 0.08042279764
A88: 87 | B88: Manufacturing - Light Industrial | C88: 65 | D88: 135 | E88: Forced Air Furnace (gas/propane) | F88: Electric Heat Pump
A89: 88 | B89: Office - Large | C89: 65 | D89: 135 | E89: Forced Air Furnace (gas/propane) | F89: Electric Heat Pump | G89: 454.3662578 | H89: 0.174756253
A90: 89 | B90: Office - Small | C90: 65 | D90: 135 | E90: Forced Air Furnace (gas/propane) | F90: Electric Heat Pump | G90: 454.3662578 | H90: 0.174756253
A91: 90 | B91: Restaurant - Sit-Down | C91: 65 | D91: 135 | E91: Forced Air Furnace (gas/propane) | F91: Electric Heat Pump | G91: 973.9995518 | H91: 0.2229852454
A92: 91 | B92: Restaurant - Fast-Food | C92: 65 | D92: 135 | E92: Forced Air Furnace (gas/propane) | F92: Electric Heat Pump | G92: 973.9995518 | H92: 0.2229852454
A93: 92 | B93: Retail - 3-Story Large | C93: 65 | D93: 135 | E93: Forced Air Furnace (gas/propane) | F93: Electric Heat Pump | G93: 474.8713892 | H93: 0.1170787449
A94: 93 | B94: Retail - Single-Story Large | C94: 65 | D94: 135 | E94: Forced Air Furnace (gas/propane) | F94: Electric Heat Pump | G94: 474.8713892 | H94: 0.1170787449
A95: 94 | B95: Retail - Small | C95: 65 | D95: 135 | E95: Forced Air Furnace (gas/propane) | F95: Electric Heat Pump | G95: 474.8713892 | H95: 0.1170787449
A96: 95 | B96: Storage - Conditioned | C96: 65 | D96: 135 | E96: Forced Air Furnace (gas/propane) | F96: Electric Heat Pump
A97: 96 | B97: Assembly | C97: 135 | D97: 240 | E97: Forced Air Furnace (gas/propane) | F97: Electric Heat Pump | G97: 916.7590289 | H97: 0.2124094135
A98: 97 | B98: Education - Primary School | C98: 135 | D98: 240 | E98: Forced Air Furnace (gas/propane) | F98: Electric Heat Pump | G98: 534.8242758 | H98: 0.1714180371
A99: 98 | B99: Education - Secondary School | C99: 135 | D99: 240 | E99: Forced Air Furnace (gas/propane) | F99: Electric Heat Pump | G99: 534.8242758 | H99: 0.1714180371
A100: 99 | B100: Education - Community College | C100: 135 | D100: 240 | E100: Forced Air Furnace (gas/propane) | F100: Electric Heat Pump | G100: 534.8242758 | H100: 0.1714180371
A101: 100 | B101: Education - University | C101: 135 | D101: 240 | E101: Forced Air Furnace (gas/propane) | F101: Electric Heat Pump | G101: 534.8242758 | H101: 0.1714180371
A102: 101 | B102: Grocery | C102: 135 | D102: 240 | E102: Forced Air Furnace (gas/propane) | F102: Electric Heat Pump | G102: 952.2607268 | H102: 0.1635063061
A103: 102 | B103: Health/Medical - Hospital | C103: 135 | D103: 240 | E103: Forced Air Furnace (gas/propane) | F103: Electric Heat Pump | G103: 277.5466262 | H103: 0.0476556707
A104: 103 | B104: Health/Medical - Nursing Home | C104: 135 | D104: 240 | E104: Forced Air Furnace (gas/propane) | F104: Electric Heat Pump | G104: 277.5466262 | H104: 0.0476556707
A105: 104 | B105: Lodging - Hotel | C105: 135 | D105: 240 | E105: Forced Air Furnace (gas/propane) | F105: Electric Heat Pump | G105: 639.0022631 | H105: 0.07294546382
A106: 105 | B106: Lodging - Motel | C106: 135 | D106: 240 | E106: Forced Air Furnace (gas/propane) | F106: Electric Heat Pump | G106: 639.0022631 | H106: 0.07294546382
A107: 106 | B107: Manufacturing - Light Industrial | C107: 135 | D107: 240 | E107: Forced Air Furnace (gas/propane) | F107: Electric Heat Pump
A108: 107 | B108: Office - Large | C108: 135 | D108: 240 | E108: Forced Air Furnace (gas/propane) | F108: Electric Heat Pump | G108: 174.7313433 | H108: 0.0672043628
A109: 108 | B109: Office - Small | C109: 135 | D109: 240 | E109: Forced Air Furnace (gas/propane) | F109: Electric Heat Pump | G109: 174.7313433 | H109: 0.0672043628
A110: 109 | B110: Restaurant - Sit-Down | C110: 135 | D110: 240 | E110: Forced Air Furnace (gas/propane) | F110: Electric Heat Pump | G110: 907.9676402 | H110: 0.2078680495
A111: 110 | B111: Restaurant - Fast-Food | C111: 135 | D111: 240 | E111: Forced Air Furnace (gas/propane) | F111: Electric Heat Pump | G111: 907.9676402 | H111: 0.2078680495
A112: 111 | B112: Retail - 3-Story Large | C112: 135 | D112: 240 | E112: Forced Air Furnace (gas/propane) | F112: Electric Heat Pump | G112: 409.4459423 | H112: 0.1009482106
A113: 112 | B113: Retail - Single-Story Large | C113: 135 | D113: 240 | E113: Forced Air Furnace (gas/propane) | F113: Electric Heat Pump | G113: 409.4459423 | H113: 0.1009482106
A114: 113 | B114: Retail - Small | C114: 135 | D114: 240 | E114: Forced Air Furnace (gas/propane) | F114: Electric Heat Pump | G114: 409.4459423 | H114: 0.1009482106
A115: 114 | B115: Storage - Conditioned | C115: 135 | D115: 240 | E115: Forced Air Furnace (gas/propane) | F115: Electric Heat Pump
A116: 115 | B116: Assembly | D116: 65 | E116: Forced Air Furnace (gas/propane) | F116: Dual Fuel Heat Pump | G116: 942.2438831 | H116: 0.2183141527
A117: 116 | B117: Education - Primary School | D117: 65 | E117: Forced Air Furnace (gas/propane) | F117: Dual Fuel Heat Pump | G117: 716.8004441 | H117: 0.2297437321
A118: 117 | B118: Education - Secondary School | D118: 65 | E118: Forced Air Furnace (gas/propane) | F118: Dual Fuel Heat Pump | G118: 716.8004441 | H118: 0.2297437321
A119: 118 | B119: Education - Community College | D119: 65 | E119: Forced Air Furnace (gas/propane) | F119: Dual Fuel Heat Pump | G119: 716.8004441 | H119: 0.2297437321
A120: 119 | B120: Education - University | D120: 65 | E120: Forced Air Furnace (gas/propane) | F120: Dual Fuel Heat Pump | G120: 716.8004441 | H120: 0.2297437321
A121: 120 | B121: Grocery | D121: 65 | E121: Forced Air Furnace (gas/propane) | F121: Dual Fuel Heat Pump | G121: 953.8867526 | H121: 0.1637855001
A122: 121 | B122: Health/Medical - Hospital | D122: 65 | E122: Forced Air Furnace (gas/propane) | F122: Dual Fuel Heat Pump | G122: 442.620271 | H122: 0.07599935971
A123: 122 | B123: Health/Medical - Nursing Home | D123: 65 | E123: Forced Air Furnace (gas/propane) | F123: Dual Fuel Heat Pump | G123: 442.620271 | H123: 0.07599935971
A124: 123 | B124: Lodging - Hotel | D124: 65 | E124: Forced Air Furnace (gas/propane) | F124: Dual Fuel Heat Pump | G124: 828.096364 | H124: 0.0945315484
A125: 124 | B125: Lodging - Motel | D125: 65 | E125: Forced Air Furnace (gas/propane) | F125: Dual Fuel Heat Pump | G125: 828.096364 | H125: 0.0945315484
A126: 125 | B126: Manufacturing - Light Industrial | D126: 65 | E126: Forced Air Furnace (gas/propane) | F126: Dual Fuel Heat Pump
A127: 126 | B127: Office - Large | D127: 65 | E127: Forced Air Furnace (gas/propane) | F127: Dual Fuel Heat Pump | G127: 317.5032808 | H127: 0.1221166465
A128: 127 | B128: Office - Small | D128: 65 | E128: Forced Air Furnace (gas/propane) | F128: Dual Fuel Heat Pump | G128: 317.5032808 | H128: 0.1221166465
A129: 128 | B129: Restaurant - Sit-Down | D129: 65 | E129: Forced Air Furnace (gas/propane) | F129: Dual Fuel Heat Pump | G129: 826.7247948 | H129: 0.189268497
A130: 129 | B130: Restaurant - Fast-Food | D130: 65 | E130: Forced Air Furnace (gas/propane) | F130: Dual Fuel Heat Pump | G130: 826.7247948 | H130: 0.189268497
A131: 130 | B131: Retail - 3-Story Large | D131: 65 | E131: Forced Air Furnace (gas/propane) | F131: Dual Fuel Heat Pump | G131: 428.0971245 | H131: 0.1055466283
A132: 131 | B132: Retail - Single-Story Large | D132: 65 | E132: Forced Air Furnace (gas/propane) | F132: Dual Fuel Heat Pump | G132: 428.0971245 | H132: 0.1055466283
A133: 132 | B133: Retail - Small | D133: 65 | E133: Forced Air Furnace (gas/propane) | F133: Dual Fuel Heat Pump | G133: 428.0971245 | H133: 0.1055466283
A134: 133 | B134: Storage - Conditioned | D134: 65 | E134: Forced Air Furnace (gas/propane) | F134: Dual Fuel Heat Pump
A135: 134 | B135: Assembly | C135: 65 | D135: 135 | E135: Forced Air Furnace (gas/propane) | F135: Dual Fuel Heat Pump | G135: 890.6559392 | H135: 0.2063614317
A136: 135 | B136: Education - Primary School | C136: 65 | D136: 135 | E136: Forced Air Furnace (gas/propane) | F136: Dual Fuel Heat Pump | G136: 671.5816042 | H136: 0.2152505142
A137: 136 | B137: Education - Secondary School | C137: 65 | D137: 135 | E137: Forced Air Furnace (gas/propane) | F137: Dual Fuel Heat Pump | G137: 671.5816042 | H137: 0.2152505142
A138: 137 | B138: Education - Community College | C138: 65 | D138: 135 | E138: Forced Air Furnace (gas/propane) | F138: Dual Fuel Heat Pump | G138: 671.5816042 | H138: 0.2152505142
A139: 138 | B139: Education - University | C139: 65 | D139: 135 | E139: Forced Air Furnace (gas/propane) | F139: Dual Fuel Heat Pump | G139: 671.5816042 | H139: 0.2152505142
A140: 139 | B140: Grocery | C140: 65 | D140: 135 | E140: Forced Air Furnace (gas/propane) | F140: Dual Fuel Heat Pump | G140: 818.4217272 | H140: 0.1405257087
A141: 140 | B141: Health/Medical - Hospital | C141: 65 | D141: 135 | E141: Forced Air Furnace (gas/propane) | F141: Dual Fuel Heat Pump | G141: 301.4893589 | H141: 0.05176671685
A142: 141 | B142: Health/Medical - Nursing Home | C142: 65 | D142: 135 | E142: Forced Air Furnace (gas/propane) | F142: Dual Fuel Heat Pump | G142: 301.4893589 | H142: 0.05176671685
A143: 142 | B143: Lodging - Hotel | C143: 65 | D143: 135 | E143: Forced Air Furnace (gas/propane) | F143: Dual Fuel Heat Pump | G143: 746.0214404 | H143: 0.08516226489
A144: 143 | B144: Lodging - Motel | C144: 65 | D144: 135 | E144: Forced Air Furnace (gas/propane) | F144: Dual Fuel Heat Pump | G144: 746.0214404 | H144: 0.08516226489
A145: 144 | B145: Manufacturing - Light Industrial | C145: 65 | D145: 135 | E145: Forced Air Furnace (gas/propane) | F145: Dual Fuel Heat Pump
A146: 145 | B146: Office - Large | C146: 65 | D146: 135 | E146: Forced Air Furnace (gas/propane) | F146: Dual Fuel Heat Pump | G146: 304.4895452 | H146: 0.1171113636
A147: 146 | B147: Office - Small | C147: 65 | D147: 135 | E147: Forced Air Furnace (gas/propane) | F147: Dual Fuel Heat Pump | G147: 304.4895452 | H147: 0.1171113636
A148: 147 | B148: Restaurant - Sit-Down | C148: 65 | D148: 135 | E148: Forced Air Furnace (gas/propane) | F148: Dual Fuel Heat Pump | G148: 743.9298152 | H148: 0.1703136024
A149: 148 | B149: Restaurant - Fast-Food | C149: 65 | D149: 135 | E149: Forced Air Furnace (gas/propane) | F149: Dual Fuel Heat Pump | G149: 743.9298152 | H149: 0.1703136024
A150: 149 | B150: Retail - 3-Story Large | C150: 65 | D150: 135 | E150: Forced Air Furnace (gas/propane) | F150: Dual Fuel Heat Pump | G150: 359.5657663 | H150: 0.08865033686
A151: 150 | B151: Retail - Single-Story Large | C151: 65 | D151: 135 | E151: Forced Air Furnace (gas/propane) | F151: Dual Fuel Heat Pump | G151: 359.5657663 | H151: 0.08865033686
A152: 151 | B152: Retail - Small | C152: 65 | D152: 135 | E152: Forced Air Furnace (gas/propane) | F152: Dual Fuel Heat Pump | G152: 359.5657663 | H152: 0.08865033686
A153: 152 | B153: Storage - Conditioned | C153: 65 | D153: 135 | E153: Forced Air Furnace (gas/propane) | F153: Dual Fuel Heat Pump
A154: 153 | B154: Assembly | C154: 135 | D154: 240 | E154: Forced Air Furnace (gas/propane) | F154: Dual Fuel Heat Pump | G154: 812.2678024 | H154: 0.1881992128
A155: 154 | B155: Education - Primary School | C155: 135 | D155: 240 | E155: Forced Air Furnace (gas/propane) | F155: Dual Fuel Heat Pump | G155: 659.6947436 | H155: 0.2114406229
A156: 155 | B156: Education - Secondary School | C156: 135 | D156: 240 | E156: Forced Air Furnace (gas/propane) | F156: Dual Fuel Heat Pump | G156: 659.6947436 | H156: 0.2114406229
A157: 156 | B157: Education - Community College | C157: 135 | D157: 240 | E157: Forced Air Furnace (gas/propane) | F157: Dual Fuel Heat Pump | G157: 659.6947436 | H157: 0.2114406229
A158: 157 | B158: Education - University | C158: 135 | D158: 240 | E158: Forced Air Furnace (gas/propane) | F158: Dual Fuel Heat Pump | G158: 659.6947436 | H158: 0.2114406229
A159: 158 | B159: Grocery | C159: 135 | D159: 240 | E159: Forced Air Furnace (gas/propane) | F159: Dual Fuel Heat Pump | G159: 786.7691676 | H159: 0.1350908598
A160: 159 | B160: Health/Medical - Hospital | C160: 135 | D160: 240 | E160: Forced Air Furnace (gas/propane) | F160: Dual Fuel Heat Pump | G160: 275.5476001 | H160: 0.04731243133
A161: 160 | B161: Health/Medical - Nursing Home | C161: 135 | D161: 240 | E161: Forced Air Furnace (gas/propane) | F161: Dual Fuel Heat Pump | G161: 275.5476001 | H161: 0.04731243133
A162: 161 | B162: Lodging - Hotel | C162: 135 | D162: 240 | E162: Forced Air Furnace (gas/propane) | F162: Dual Fuel Heat Pump | G162: 716.3442096 | H162: 0.08177445316
A163: 162 | B163: Lodging - Motel | C163: 135 | D163: 240 | E163: Forced Air Furnace (gas/propane) | F163: Dual Fuel Heat Pump | G163: 716.3442096 | H163: 0.08177445316
A164: 163 | B164: Manufacturing - Light Industrial | C164: 135 | D164: 240 | E164: Forced Air Furnace (gas/propane) | F164: Dual Fuel Heat Pump
A165: 164 | B165: Office - Large | C165: 135 | D165: 240 | E165: Forced Air Furnace (gas/propane) | F165: Dual Fuel Heat Pump | G165: 205.0022922 | H165: 0.07884703545
A166: 165 | B166: Office - Small | C166: 135 | D166: 240 | E166: Forced Air Furnace (gas/propane) | F166: Dual Fuel Heat Pump | G166: 205.0022922 | H166: 0.07884703545
A167: 166 | B167: Restaurant - Sit-Down | C167: 135 | D167: 240 | E167: Forced Air Furnace (gas/propane) | F167: Dual Fuel Heat Pump | G167: 715.068185 | H167: 0.1637060863
A168: 167 | B168: Restaurant - Fast-Food | C168: 135 | D168: 240 | E168: Forced Air Furnace (gas/propane) | F168: Dual Fuel Heat Pump | G168: 715.068185 | H168: 0.1637060863
A169: 168 | B169: Retail - 3-Story Large | C169: 135 | D169: 240 | E169: Forced Air Furnace (gas/propane) | F169: Dual Fuel Heat Pump | G169: 312.689512 | H169: 0.07709307496
A170: 169 | B170: Retail - Single-Story Large | C170: 135 | D170: 240 | E170: Forced Air Furnace (gas/propane) | F170: Dual Fuel Heat Pump | G170: 312.689512 | H170: 0.07709307496
A171: 170 | B171: Retail - Small | C171: 135 | D171: 240 | E171: Forced Air Furnace (gas/propane) | F171: Dual Fuel Heat Pump | G171: 312.689512 | H171: 0.07709307496
A172: 171 | B172: Storage - Conditioned | C172: 135 | D172: 240 | E172: Forced Air Furnace (gas/propane) | F172: Dual Fuel Heat Pump
A173: 172 | B173: Assembly | D173: 65 | E173: Electric Resistance/Electric Strip | F173: Electric Heat Pump | G173: 1892.40697 | H173: 0.4384631533
A174: 173 | B174: Education - Primary School | D174: 65 | E174: Electric Resistance/Electric Strip | F174: Electric Heat Pump | G174: 716.8004441 | H174: 0.2297437321
A175: 174 | B175: Education - Secondary School | D175: 65 | E175: Electric Resistance/Electric Strip | F175: Electric Heat Pump | G175: 716.8004441 | H175: 0.2297437321
A176: 175 | B176: Education - Community College | D176: 65 | E176: Electric Resistance/Electric Strip | F176: Electric Heat Pump | G176: 716.8004441 | H176: 0.2297437321
A177: 176 | B177: Education - University | D177: 65 | E177: Electric Resistance/Electric Strip | F177: Electric Heat Pump | G177: 716.8004441 | H177: 0.2297437321
A178: 177 | B178: Grocery | D178: 65 | E178: Electric Resistance/Electric Strip | F178: Electric Heat Pump | G178: 953.8867526 | H178: 0.1637855001
A179: 178 | B179: Health/Medical - Hospital | D179: 65 | E179: Electric Resistance/Electric Strip | F179: Electric Heat Pump | G179: 442.620271 | H179: 0.07599935971
A180: 179 | B180: Health/Medical - Nursing Home | D180: 65 | E180: Electric Resistance/Electric Strip | F180: Electric Heat Pump | G180: 442.620271 | H180: 0.07599935971
A181: 180 | B181: Lodging - Hotel | D181: 65 | E181: Electric Resistance/Electric Strip | F181: Electric Heat Pump | G181: 828.096364 | H181: 0.0945315484
A182: 181 | B182: Lodging - Motel | D182: 65 | E182: Electric Resistance/Electric Strip | F182: Electric Heat Pump | G182: 828.096364 | H182: 0.0945315484
A183: 182 | B183: Manufacturing - Light Industrial | D183: 65 | E183: Electric Resistance/Electric Strip | F183: Electric Heat Pump
A184: 183 | B184: Office - Large | D184: 65 | E184: Electric Resistance/Electric Strip | F184: Electric Heat Pump | G184: 317.5032808 | H184: 0.1221166465
A185: 184 | B185: Office - Small | D185: 65 | E185: Electric Resistance/Electric Strip | F185: Electric Heat Pump | G185: 317.5032808 | H185: 0.1221166465
A186: 185 | B186: Restaurant - Sit-Down | D186: 65 | E186: Electric Resistance/Electric Strip | F186: Electric Heat Pump | G186: 826.7247948 | H186: 0.189268497
A187: 186 | B187: Restaurant - Fast-Food | D187: 65 | E187: Electric Resistance/Electric Strip | F187: Electric Heat Pump | G187: 826.7247948 | H187: 0.189268497
A188: 187 | B188: Retail - 3-Story Large | D188: 65 | E188: Electric Resistance/Electric Strip | F188: Electric Heat Pump | G188: 428.0971245 | H188: 0.1055466283
A189: 188 | B189: Retail - Single-Story Large | D189: 65 | E189: Electric Resistance/Electric Strip | F189: Electric Heat Pump | G189: 428.0971245 | H189: 0.1055466283
A190: 189 | B190: Retail - Small | D190: 65 | E190: Electric Resistance/Electric Strip | F190: Electric Heat Pump | G190: 428.0971245 | H190: 0.1055466283
A191: 190 | B191: Storage - Conditioned | D191: 65 | E191: Electric Resistance/Electric Strip | F191: Electric Heat Pump
A192: 191 | B192: Assembly | C192: 65 | D192: 135 | E192: Electric Resistance/Electric Strip | F192: Electric Heat Pump | G192: 890.6559392 | H192: 0.2063614317
A193: 192 | B193: Education - Primary School | C193: 65 | D193: 135 | E193: Electric Resistance/Electric Strip | F193: Electric Heat Pump | G193: 671.5816042 | H193: 0.2152505142
A194: 193 | B194: Education - Secondary School | C194: 65 | D194: 135 | E194: Electric Resistance/Electric Strip | F194: Electric Heat Pump | G194: 671.5816042 | H194: 0.2152505142
A195: 194 | B195: Education - Community College | C195: 65 | D195: 135 | E195: Electric Resistance/Electric Strip | F195: Electric Heat Pump | G195: 671.5816042 | H195: 0.2152505142
A196: 195 | B196: Education - University | C196: 65 | D196: 135 | E196: Electric Resistance/Electric Strip | F196: Electric Heat Pump | G196: 671.5816042 | H196: 0.2152505142
A197: 196 | B197: Grocery | C197: 65 | D197: 135 | E197: Electric Resistance/Electric Strip | F197: Electric Heat Pump | G197: 818.4217272 | H197: 0.1405257087
A198: 197 | B198: Health/Medical - Hospital | C198: 65 | D198: 135 | E198: Electric Resistance/Electric Strip | F198: Electric Heat Pump | G198: 301.4893589 | H198: 0.05176671685
A199: 198 | B199: Health/Medical - Nursing Home | C199: 65 | D199: 135 | E199: Electric Resistance/Electric Strip | F199: Electric Heat Pump | G199: 301.4893589 | H199: 0.05176671685
A200: 199 | B200: Lodging - Hotel | C200: 65 | D200: 135 | E200: Electric Resistance/Electric Strip | F200: Electric Heat Pump | G200: 746.0214404 | H200: 0.08516226489
... 143 more rows

Sheet Sheet5 (hidden)
A1: 609.8484098 | B1: 0.1412994462 | C1: =_xlfn.CONCAT(A1,B1) -> 609.8484097870890.141299446197194
A2: 301.1212319 | B2: 0.09651321536 | C2: =_xlfn.CONCAT(A2,B2) -> 301.1212319287390.0965132153617753
A3: 301.1212319 | B3: 301.1212319 | C3: 301.121231928739301.121231928739
A4: 301.1212319 | B4: 301.1212319 | C4: 301.121231928739301.121231928739
A5: 301.1212319 | B5: 301.1212319 | C5: 301.121231928739301.121231928739
A6: 731.1807347 | B6: 0.1255461426 | C6: 731.1807346619770.1255461426274
A7: 472.5272018 | B7: 0.08113447833 | C7: 472.5272017878080.0811344783289505
A8: 472.5272018 | B8: 472.5272018 | C8: 472.527201787808472.527201787808
A9: 689.0169475 | B9: 0.07865490268 | C9: 689.0169474625640.0786549026783749
A10: 689.0169475 | B10: 689.0169475 | C10: 689.016947462564689.016947462564
A11: NOT MODELED | B11: NOT MODELED | C11: NOT MODELEDNOT MODELED
A12: 274.1650365 | B12: 0.105448091 | C12: 274.1650364823010.105448090954731
A13: 274.1650365 | B13: 274.1650365 | C13: 274.165036482301274.165036482301
A14: 506.3904214 | B14: 0.115931873 | C14: 506.3904213502520.115931873019746
A15: 506.3904214 | B15: 506.3904214 | C15: 506.390421350252506.390421350252
A16: 365.1458897 | B16: 0.09002610693 | C16: 365.145889691860.090026106926001
A17: 365.1458897 | B17: 365.1458897 | C17: 365.14588969186365.14588969186
A18: 365.1458897 | B18: 365.1458897 | C18: 365.14588969186365.14588969186
A19: NOT MODELED | B19: NOT MODELED | C19: NOT MODELEDNOT MODELED
A20: 247.6100291 | B20: 0.05737025698 | C20: 247.6100291192380.0573702569785073
A21: 99.64656014 | B21: 0.03193800005 | C21: 99.64656014226780.0319380000455986
A22: 99.64656014 | B22: 99.64656014 | C22: 99.646560142267899.6465601422678
A23: 99.64656014 | B23: 99.64656014 | C23: 99.646560142267899.6465601422678
A24: 99.64656014 | B24: 99.64656014 | C24: 99.646560142267899.6465601422678
A25: 349.433685 | B25: 0.0599989157 | C25: 349.4336850332160.0599989156993846
A26: 303.9961136 | B26: 0.05219713489 | C26: 303.9961135941770.0521971348891101
A27: 303.9961136 | B27: 303.9961136 | C27: 303.996113594177303.996113594177
A28: 197.168544 | B28: 0.02250782466 | C28: 197.1685440108290.0225078246587704
A29: 197.168544 | B29: 197.168544 | C29: 197.168544010829197.168544010829
A30: NOT MODELED | B30: NOT MODELED | C30: NOT MODELEDNOT MODELED
A31: 141.5207608 | B31: 0.05443106184 | C31: 141.5207607915870.0544310618429181
A32: 141.5207608 | B32: 141.5207608 | C32: 141.520760791587141.520760791587
A33: 234.0998897 | B33: 0.05359429708 | C33: 234.0998896627820.0535942970839702
A34: 234.0998897 | B34: 234.0998897 | C34: 234.099889662782234.099889662782
A35: 163.089103 | B35: 0.04020934491 | C35: 163.0891029725560.0402093449143382
A36: 163.089103 | B36: 163.089103 | C36: 163.089102972556163.089102972556
A37: 163.089103 | B37: 163.089103 | C37: 163.089102972556163.089102972556
A38: NOT MODELED | B38: NOT MODELED | C38: NOT MODELEDNOT MODELED
A39: 240.3198578 | B39: 0.05568115334 | C39: 240.3198578073590.0556811533381277
A40: 101.0897404 | B40: 0.03240055781 | C40: 101.0897403666250.0324005578098158
A41: 101.0897404 | B41: 101.0897404 | C41: 101.089740366625101.089740366625
A42: 101.0897404 | B42: 101.0897404 | C42: 101.089740366625101.089740366625
A43: 101.0897404 | B43: 101.0897404 | C43: 101.089740366625101.089740366625
A44: 331.459789 | B44: 0.05691273849 | C44: 331.459788980070.0569127384924571
A45: 282.6102955 | B45: 0.04852511941 | C45: 282.6102954645370.0485251194135537
A46: 282.6102955 | B46: 282.6102955 | C46: 282.610295464537282.610295464537
A47: 198.6246994 | B47: 0.02267405244 | C47: 198.6246993630730.0226740524387069
A48: 198.6246994 | B48: 198.6246994 | C48: 198.624699363073198.624699363073
A49: NOT MODELED | B49: NOT MODELED | C49: NOT MODELEDNOT MODELED
A50: 133.7686305 | B50: 0.05144947326 | C50: 133.7686304701580.0514494732577531
A51: 133.7686305 | B51: 133.7686305 | C51: 133.768630470158133.768630470158
A52: 223.0216882 | B52: 0.05105807879 | C52: 223.0216881594370.05105807879108
A53: 223.0216882 | B53: 223.0216882 | C53: 223.021688159437223.021688159437
A54: 157.8550672 | B54: 0.03891890218 | C54: 157.855067222070.0389189021750665
A55: 157.8550672 | B55: 157.8550672 | C55: 157.85506722207157.85506722207
A56: 157.8550672 | B56: 157.8550672 | C56: 157.85506722207157.85506722207
A57: NOT MODELED | B57: NOT MODELED | C57: NOT MODELEDNOT MODELED
A58: 1149.277124 | B58: 0.2662829297 | C58: 1149.277124380740.266282929652628
A59: 608.1244062 | B59: 0.1949116687 | C59: 608.1244062252730.194911668661947
A60: 608.1244062 | B60: 608.1244062 | C60: 608.124406225273608.124406225273
A61: 608.1244062 | B61: 608.1244062 | C61: 608.124406225273608.124406225273
A62: 608.1244062 | B62: 608.1244062 | C62: 608.124406225273608.124406225273
A63: 952.1285658 | B63: 0.1634836136 | C63: 952.1285658460340.163483613641146
A64: 381.1071601 | B64: 0.06543735578 | C64: 381.1071600845060.0654373557837407
A65: 381.1071601 | B65: 381.1071601 | C65: 381.107160084506381.107160084506
A66: 1070.407446 | B66: 0.1221926308 | C66: =_xlfn.CONCAT(A66,B66) -> 1070.407446127070.122192630836424
A67: 1070.407446 | B67: 1070.407446 | C67: 1070.407446127071070.40744612707
A68: NOT MODELED | B68: NOT MODELED | C68: NOT MODELEDNOT MODELED
A69: 571.2695666 | B69: 0.2197190641 | C69: 571.2695665867610.219719064071831
A70: 571.2695666 | B70: 571.2695666 | C70: 571.269566586761571.269566586761
A71: 1191.627905 | B71: 0.2728085863 | C71: 1191.627904972070.27280858630313
A72: 1191.627905 | B72: 1191.627905 | C72: 1191.627904972071191.62790497207
A73: 618.9511645 | B73: 0.1526013719 | C73: 618.9511645098310.15260137192057
A74: 618.9511645 | B74: 618.9511645 | C74: 618.951164509831618.951164509831
A75: 618.9511645 | B75: 618.9511645 | C75: 618.951164509831618.951164509831
A76: NOT MODELED | B76: NOT MODELED | C76: NOT MODELEDNOT MODELED
A77: 1028.144783 | B77: 0.2382170489 | C77: 1028.144783118410.238217048915293
A78: 534.2201538 | B78: 0.1712244083 | C78: 534.2201538058480.171224408271105
A79: 534.2201538 | B79: 534.2201538 | C79: 534.220153805848534.220153805848
A80: 534.2201538 | B80: 534.2201538 | C80: 534.220153805848534.220153805848
A81: 534.2201538 | B81: 534.2201538 | C81: 534.220153805848534.220153805848
A82: 1035.323916 | B82: 0.1777685295 | C82: 1035.323915592030.177768529462917
A83: 138.0031949 | B83: 0.02369560352 | C83: 138.0031949125640.0236956035220748
A84: 138.0031949 | B84: 138.0031949 | C84: 138.003194912564138.003194912564
A85: 704.5037074 | B85: 0.08042279764 | C85: 704.5037073518570.0804227976429061
A86: 704.5037074 | B86: 704.5037074 | C86: 704.503707351857704.503707351857
A87: NOT MODELED | B87: NOT MODELED | C87: NOT MODELEDNOT MODELED
A88: 454.3662578 | B88: 0.174756253 | C88: 454.3662578082620.174756253003178
A89: 454.3662578 | B89: 454.3662578 | C89: 454.366257808262454.366257808262
A90: 973.9995518 | B90: 0.2229852454 | C90: 973.9995517550510.222985245365167
A91: 973.9995518 | B91: 973.9995518 | C91: 973.999551755051973.999551755051
A92: 474.8713892 | B92: 0.1170787449 | C92: 474.8713891805230.117078744866993
A93: 474.8713892 | B93: 474.8713892 | C93: 474.871389180523474.871389180523
A94: 474.8713892 | B94: 474.8713892 | C94: 474.871389180523474.871389180523
A95: NOT MODELED | B95: NOT MODELED | C95: NOT MODELEDNOT MODELED
A96: 916.7590289 | B96: 0.2124094135 | C96: 916.7590288545170.212409413543679
A97: 534.8242758 | B97: 0.1714180371 | C97: 534.824275760230.171418037102638
A98: 534.8242758 | B98: 534.8242758 | C98: 534.82427576023534.82427576023
A99: 534.8242758 | B99: 534.8242758 | C99: 534.82427576023534.82427576023
A100: 534.8242758 | B100: 534.8242758 | C100: 534.82427576023534.82427576023
A101: 952.2607268 | B101: 0.1635063061 | C101: 952.2607268464250.163506306120609
A102: 277.5466262 | B102: 0.0476556707 | C102: 277.5466261845450.0476556707047639
A103: 277.5466262 | B103: 277.5466262 | C103: 277.546626184545277.546626184545
A104: 639.0022631 | B104: 0.07294546382 | C104: 639.0022630860150.0729454638226045
A105: 639.0022631 | B105: 639.0022631 | C105: 639.002263086015639.002263086015
A106: NOT MODELED | B106: NOT MODELED | C106: NOT MODELEDNOT MODELED
A107: 174.7313433 | B107: 0.0672043628 | C107: 174.7313432835820.0672043628013777
A108: 174.7313433 | B108: 174.7313433 | C108: 174.731343283582174.731343283582
A109: 907.9676402 | B109: 0.2078680495 | C109: 907.9676401627470.207868049487808
A110: 907.9676402 | B110: 907.9676402 | C110: 907.967640162747907.967640162747
A111: 409.4459423 | B111: 0.1009482106 | C111: 409.4459422994510.100948210626097
A112: 409.4459423 | B112: 409.4459423 | C112: 409.445942299451409.445942299451
A113: 409.4459423 | B113: 409.4459423 | C113: 409.445942299451409.445942299451
A114: NOT MODELED | B114: NOT MODELED | C114: NOT MODELEDNOT MODELED
A115: 1892.40697 | B115: 0.4384631533 | C115: 1892.406969708430.438463153315206
A116: 716.8004441 | B116: 0.2297437321 | C116: 716.8004440574890.229743732069708
A117: 716.8004441 | B117: 716.8004441 | C117: 716.800444057489716.800444057489
A118: 716.8004441 | B118: 716.8004441 | C118: 716.800444057489716.800444057489
A119: 716.8004441 | B119: 716.8004441 | C119: 716.800444057489716.800444057489
A120: 953.8867526 | B120: 0.1637855001 | C120: 953.8867526377490.163785500109504
A121: 442.620271 | B121: 0.07599935971 | C121: 442.6202709798750.0759993597149511
A122: 442.620271 | B122: 442.620271 | C122: 442.620270979875442.620270979875
A123: 828.096364 | B123: 0.0945315484 | C123: 828.0963639549920.0945315483966886
A124: 828.096364 | B124: 828.096364 | C124: 828.096363954992828.096363954992
A125: NOT MODELED | B125: NOT MODELED | C125: NOT MODELEDNOT MODELED
A126: 317.5032808 | B126: 0.1221166465 | C126: 317.5032807824880.122116646454803
A127: 317.5032808 | B127: 317.5032808 | C127: 317.503280782488317.503280782488
A128: 826.7247948 | B128: 0.189268497 | C128: 826.7247948417350.189268496987577
A129: 826.7247948 | B129: 826.7247948 | C129: 826.724794841735826.724794841735
A130: 428.0971245 | B130: 0.1055466283 | C130: =_xlfn.CONCAT(A130,B130) -> 428.0971244963160.105546628327494
A131: 428.0971245 | B131: 428.0971245 | C131: 428.097124496316428.097124496316
A132: 428.0971245 | B132: 428.0971245 | C132: 428.097124496316428.097124496316
A133: NOT MODELED | B133: NOT MODELED | C133: NOT MODELEDNOT MODELED
A134: 890.6559392 | B134: 0.2063614317 | C134: 890.6559391899560.206361431693688
A135: 671.5816042 | B135: 0.2152505142 | C135: 671.5816041642960.215250514155223
A136: 671.5816042 | B136: 671.5816042 | C136: 671.581604164296671.581604164296
A137: 671.5816042 | B137: 671.5816042 | C137: 671.581604164296671.581604164296
A138: 671.5816042 | B138: 671.5816042 | C138: 671.581604164296671.581604164296
A139: 818.4217272 | B139: 0.1405257087 | C139: 818.4217272372020.140525708660234
A140: 301.4893589 | B140: 0.05176671685 | C140: 301.4893589414810.0517667168512158
A141: 301.4893589 | B141: 301.4893589 | C141: 301.489358941481301.489358941481
A142: 746.0214404 | B142: 0.08516226489 | C142: 746.0214403983510.0851622648856565
A143: 746.0214404 | B143: 746.0214404 | C143: 746.021440398351746.021440398351
A144: NOT MODELED | B144: NOT MODELED | C144: NOT MODELEDNOT MODELED
A145: 304.4895452 | B145: 0.1171113636 | C145: 304.4895452398030.117111363553771
A146: 304.4895452 | B146: 304.4895452 | C146: 304.489545239803304.489545239803
A147: 743.9298152 | B147: 0.1703136024 | C147: 743.929815185160.170313602377555
A148: 743.9298152 | B148: 743.9298152 | C148: 743.92981518516743.92981518516
A149: 359.5657663 | B149: 0.08865033686 | C149: 359.5657662907790.088650336856701
A150: 359.5657663 | B150: 359.5657663 | C150: 359.565766290779359.565766290779
A151: 359.5657663 | B151: 359.5657663 | C151: 359.565766290779359.565766290779
A152: NOT MODELED | B152: NOT MODELED | C152: NOT MODELEDNOT MODELED
A153: 812.2678024 | B153: 0.1881992128 | C153: 812.2678024429910.188199212799581
A154: 659.6947436 | B154: 0.2114406229 | C154: 659.6947435554770.211440622934448
A155: 659.6947436 | B155: 659.6947436 | C155: 659.694743555477659.694743555477
A156: 659.6947436 | B156: 659.6947436 | C156: 659.694743555477659.694743555477
A157: 659.6947436 | B157: 659.6947436 | C157: 659.694743555477659.694743555477
A158: 786.7691676 | B158: 0.1350908598 | C158: 786.7691676436110.135090859828917
A159: 275.5476001 | B159: 0.04731243133 | C159: 275.5476000757130.0473124313316815
A160: 275.5476001 | B160: 275.5476001 | C160: 275.547600075713275.547600075713
A161: 716.3442096 | B161: 0.08177445316 | C161: 716.3442096421360.081774453155495
A162: 716.3442096 | B162: 716.3442096 | C162: 716.344209642136716.344209642136
A163: NOT MODELED | B163: NOT MODELED | C163: NOT MODELEDNOT MODELED
A164: 205.0022922 | B164: 0.07884703545 | C164: 205.0022921733650.0788470354512943
A165: 205.0022922 | B165: 205.0022922 | C165: 205.002292173365205.002292173365
A166: 715.068185 | B166: 0.1637060863 | C166: 715.0681849527620.163706086298709
A167: 715.068185 | B167: 715.068185 | C167: 715.068184952762715.068184952762
A168: 312.689512 | B168: 0.07709307496 | C168: 312.6895120419230.0770930749610263
A169: 312.689512 | B169: 312.689512 | C169: 312.689512041923312.689512041923
A170: 312.689512 | B170: 312.689512 | C170: 312.689512041923312.689512041923
A171: NOT MODELED | B171: NOT MODELED | C171: NOT MODELEDNOT MODELED
A172: 942.2438831 | B172: 0.2183141527 | C172: 942.2438830692430.218314152703717
A173: 716.8004441 | B173: 0.2297437321 | C173: 716.8004440574890.229743732069708
A174: 716.8004441 | B174: 716.8004441 | C174: 716.800444057489716.800444057489
A175: 716.8004441 | B175: 716.8004441 | C175: 716.800444057489716.800444057489
A176: 716.8004441 | B176: 716.8004441 | C176: 716.800444057489716.800444057489
A177: 953.8867526 | B177: 0.1637855001 | C177: 953.8867526377490.163785500109504
A178: 442.620271 | B178: 0.07599935971 | C178: 442.6202709798750.0759993597149511
A179: 442.620271 | B179: 442.620271 | C179: 442.620270979875442.620270979875
A180: 828.096364 | B180: 0.0945315484 | C180: 828.0963639549920.0945315483966886
A181: 828.096364 | B181: 828.096364 | C181: 828.096363954992828.096363954992
A182: NOT MODELED | B182: NOT MODELED | C182: NOT MODELEDNOT MODELED
A183: 317.5032808 | B183: 0.1221166465 | C183: 317.5032807824880.122116646454803
A184: 317.5032808 | B184: 317.5032808 | C184: 317.503280782488317.503280782488
A185: 826.7247948 | B185: 0.189268497 | C185: 826.7247948417350.189268496987577
A186: 826.7247948 | B186: 826.7247948 | C186: 826.724794841735826.724794841735
A187: 428.0971245 | B187: 0.1055466283 | C187: 428.0971244963160.105546628327494
A188: 428.0971245 | B188: 428.0971245 | C188: 428.097124496316428.097124496316
A189: 428.0971245 | B189: 428.0971245 | C189: 428.097124496316428.097124496316
A190: NOT MODELED | B190: NOT MODELED | C190: NOT MODELEDNOT MODELED
A191: 890.6559392 | B191: 0.2063614317 | C191: 890.6559391899560.206361431693688
A192: 671.5816042 | B192: 0.2152505142 | C192: 671.5816041642960.215250514155223
A193: 671.5816042 | B193: 671.5816042 | C193: 671.581604164296671.581604164296
A194: 671.5816042 | B194: 671.5816042 | C194: =_xlfn.CONCAT(A194,B194) -> 671.581604164296671.581604164296
A195: 671.5816042 | B195: 671.5816042 | C195: 671.581604164296671.581604164296
A196: 818.4217272 | B196: 0.1405257087 | C196: 818.4217272372020.140525708660234
A197: 301.4893589 | B197: 0.05176671685 | C197: 301.4893589414810.0517667168512158
A198: 301.4893589 | B198: 301.4893589 | C198: 301.489358941481301.489358941481
A199: 746.0214404 | B199: 0.08516226489 | C199: 746.0214403983510.0851622648856565
A200: 746.0214404 | B200: 746.0214404 | C200: 746.021440398351746.021440398351
... 85 more rows

Sheet Lookups (hidden)
A1: Baseline Equipment | B1: Upgrade Type | D1: Proposed Equipment | F1: Project State | S1: Year | T1: YearPlusOne | U1: StateName | V1: StateAbrev | W1: UtilityName | X1: UtilityWebsite | Y1: AllianceWebsite | Z1: UtilityHotline | AA1: FXHotline | AB1: UtilityEmail | AC1: UtilityFax | AD1: VersionNmbr | AE1: ApplicationVersionNmber | AF1: EffectiveDate | AG1: CustInct | AH1: CustCap | AI1: HVACEmail | AJ1: MotorsEmail | AK1: FoodServiceEmail | AL1: IrrigationEmail | AM1: BldgEnvEmail | AN1: LightingEmail | AO1: CompAirEmail | AP1: FarmDairyEmail | AQ1: OtherEmail | AR1: NLApplicationEmail | AS1: RateSchedule | AT1: MailAddress1 | AU1: MailAddress2 | AV1: MailCity | AW1: MailState | AX1: MailZip | AY1: States | AZ1: OtherUtilityName | BA1: State1 | BB1: State2 | BC1: State3 | BD1: State1Abb | BE1: State2Abb | BF1: State3Abb | BG1: ST1_RT_Schedule | BH1: ST2_RT_Schedule | BI1: ST3_RT_Schedule | BJ1: ST1_CRD Name | BK1: ST1_CRD Info | BL1: ST1_CRD Number | BM1: ST1_CRD Email | BN1: ST2_CRD Name | BO1: ST2_CRD Number | BP1: ST2_CRD Info | BQ1: ST2_CRD Email | BR1: ST3_CRD Name | BS1: ST3_CRD Number | BT1: ST3_CRD Info | BU1: ST3_CRD Email | BV1: Costpercentage | BW1: Purchase Directions | BX1: Purchase Directions | BY1: NC/MR Pre Purchase Directions | BZ1: Letter of intent Note | CA1: Retrofit Directions | CB1: IA Retrofit Directions | CC1: Other Utility Directions | CD1: St1RetroLightingProcess | CE1: St1NCMRLightingProcess | CF1: St1NonlightProcess | CG1: St1CustomProcess | CH1: St2RetroLightingProcess | CI1: St2NCMRLightingProcess | CJ1: St2NonlightProcess | CK1: St2CustomProcess | CL1: St3RetroLightingProcess | CM1: St3NCMRLightingProcess | CN1: St3NonlightProcess | CO1: St3CustomProcess | CP1: HESWebsite | CQ1: ST1FinAnswerWebsite | CR1: ST2FinAnswerWebsite | CS1: ST3FinAnswerWebsite | CT1: BSTWebsite | CU1: EmailSuffix | CV1: EnergyCodeBaseline | CW1: CodeEffDate | CX1: AbbreviatedCode | CY1: Tariff # | CZ1: ApplyToFaxNL | DA1: ApplyToFaxLtg | DB1: Program name
A2: Forced Air Furnace (gas/propane) | B2: Conversion | D2: Electric Heat Pump | F2: UT | S2: 2020 | T2: =S2+1 -> 2021 | U2: Utah | V2: UT | W2: Rocky Mountain Power | X2: wattsmart.com | Y2: rockymountainpower.net/alliance | Z2: 1-800-222-4335 | AA2: 1-866-415-9800 | AB2: energy.expert@rockymountainpower.net | AC2: 801-233-0883 | AD2: V 11/14/12 | AE2: V 07/01/13 | AF2: 2014-07-01 | AG2: 0.1 | AH2: 50 | AI2: ut.hvacr@rockymountainpower.net | AJ2: ut.motors@rockymountainpower.net | AK2: ut.foodservice@rockymountainpower.net | AL2: ut.irrigation@rockymountainpower.net | AM2: ut.bldgenvelope@rockymountainpower.net | AN2: ut.lighting@rockymountainpower.net | AO2: ut.compair@rockymountainpower.net | AP2: ut.farmdairy@rockymountainpower.net | AQ2: ut.othertech@rockymountainpower.net | AR2: ut.finanswerexpress@rockymountainpower.net | AS2: 6, 6A, 6B, 8, 9, 9A, 10, 12, 15, 21, 23, Supplementary service under Schedule 31 | AT2: 2223 S Highland Drive #E6-333 | AV2: Salt Lake City | AW2: UT | AX2: 84106 | AY2: Utah, Wyoming and Idaho | AZ2: Pacific Power | BA2: Utah | BB2: Wyoming | BC2: Idaho | BD2: UT | BE2: WY | BF2: ID | BG2: 6, 6A, 6B, 8, 9, 9A, 10, 12, 15, 21, 23, Supplementary service under Schedule 31 | BH2: 25, 28, 33, 40, 46, 48, 54, 58, 210, 212, 213 | BI2: 6, 6A, 8, 9, 12, 19, 23, 23A, 24, 35, 35A | BJ2: Mark Clary | BL2: 801.233.0882 | BM2: ut.lighting@rockymountainpower.net | BN2: Jim Soukup | BO2: 307.235.0438 | BQ2: wy.lighting@rockymountainpower.net | BR2: William Gatchel | BS2: 541.727.5386 | BU2: id.lighting@rockymountainpower.net | BV2: 50 | BW2: Lighting retrofits must have a signed incentive agreement prior to purchase of equipment | CD2: Pre-purchase Agreement | CE2: Post-purchase Application | CF2: Post-purchase Application | CG2: Pre-purchase Agreement | CH2: Pre-purchase Agreement | CI2: Post-purchase Application | CJ2: Post-purchase Application | CK2: Pre-purchase Agreement | CL2: Pre-purchase Agreement | CM2: Post-purchase Application | CN2: Post-purchase Application | CO2: Pre-purchase Agreement | CP2: www.homeenergysavings.net | CQ2: www.rockymountainpower.net/bus/se/epi/utah/ilc/ef.html | CR2: www.rockymountainpower.net/bus/se/epi/wyoming/ilc/ef.html | CS2: www.rockymountainpower.net/bus/se/epi/idaho/ilc/ef.html | CT2: www.rockymountainpower.net/bus/bst.html | CU2: @rockymountainpower.net | CV2: International Energy Conservation Code 2021 | CW2: 2010-07-01 | CX2: IECC 2021 | CY2: 140 | CZ2: 1-801-266-4786 | DA2: 1-801-233-0883 | DB2: wattsmart Business
A3: Electric Resistance/Electric Strip | B3: Conversion | D3: Dual Fuel Heat Pump | S3: 2020 | T3: =S3+1 -> 2021 | U3: Wyoming | V3: WY | W3: Rocky Mountain Power | X3: rockymountainpower.net/wattsmart | Y3: rockymountainpower.net/alliance | Z3: 1-800-222-4335 | AA3: 1-866-415-9800 | AB3: energy.expert@rockymountainpower.net | AC3: 307-333-4952 | AD3: V 10/01/11 | AE3: V 01/01/13 | AF3: 2011-10-01 | AG3: 0.1 | AH3: 70 | AI3: wy.hvacr@rockymountainpower.net | AJ3: wy.motors@rockymountainpower.net | AK3: wy.foodservice@rockymountainpower.net | AL3: wy.irrigation@rockymountainpower.net | AM3: wy.bldgenvelope@rockymountainpower.net | AN3: wy.lighting@rockymountainpower.net | AO3: wy.compair@rockymountainpower.net | AP3: wy.farmdairy@rockymountainpower.net | AQ3: wy.othertech@rockymountainpower.net | AR3: wy.finanswerexpress@rockymountainpower.net | AS3: 25, 28, 33, 40, 46, 48T, 54, 58, 210, 212, 213 | AT3: 2223 S Highland Drive #E6-333 | AV3: Salt Lake City | AW3: UT | AX3: 84106 | AY3: Utah, Wyoming and Idaho | AZ3: Pacific Power | BA3: Utah | BB3: Wyoming | BC3: Idaho | BD3: UT | BE3: WY | BF3: ID | BG3: 6, 6A, 6B, 8, 9, 9A, 10, 12, 15, 21, 23, Supplementary service under Schedule 31 | BH3: 25, 28, 33, 40, 46, 48, 54, 58, 210, 212, 213 | BI3: 6, 6A, 8, 9, 12, 19, 23, 23A, 24, 35, 35A | BJ3: Mark Clary | BL3: 801.233.0882 | BM3: ut.lighting@rockymountainpower.net | BN3: Jim Soukup | BO3: 307.235.0438 | BQ3: wy.lighting@rockymountainpower.net | BR3: William Gatchel | BS3: 541.727.5386 | BU3: id.lighting@rockymountainpower.net | BV3: 50 | CD3: Pre-purchase Agreement | CE3: Post-purchase Application | CF3: Post-purchase Application | CG3: Pre-purchase Agreement | CH3: Pre-purchase Agreement | CI3: Post-purchase Application | CJ3: Post-purchase Application | CK3: Pre-purchase Agreement | CL3: Pre-purchase Agreement | CM3: Post-purchase Application | CN3: Post-purchase Application | CO3: Pre-purchase Agreement | CP3: www.homeenergysavings.net | CQ3: www.rockymountainpower.net/bus/se/epi/utah/ilc/ef.html | CR3: www.rockymountainpower.net/bus/se/epi/wyoming/ilc/ef.html | CS3: www.rockymountainpower.net/bus/se/epi/idaho/ilc/ef.html | CT3: www.rockymountainpower.net/bus/bst.html | CU3: @rockymountainpower.net | CV3: International Energy Conservation Code 2009 | CW3: December 1, 2014 (as determined by Rocky Mountain Power) | CX3: IECC 2009 | CY3: 140 | CZ3: 1-801-266-4787 | DA3: 1-541-376-8446 | DB3: wattsmart Business
A4: Electric Heat Pump | B4: Upgrade | S4: 2020 | T4: =S4+1 -> 2021 | U4: Idaho | V4: ID | W4: Rocky Mountain Power | X4: rockymountainpower.net/wattsmart | Y4: rockymountainpower.net/alliance | Z4: 1-800-222-4335 | AA4: 1-866-415-9800 | AB4: energy.expert@rockymountainpower.net | AC4: 541-376-8446 | AD4: V 07/14/12 | AE4: V 01/01/13 | AF4: 2014-11-01 | AG4: 0.1 | AH4: 50 | AI4: id.hvacr@rockymountainpower.net | AJ4: id.motors@rockymountainpower.net | AK4: id.foodservice@rockymountainpower.net | AL4: id.irrigation@rockymountainpower.net | AM4: id.bldgenvelope@rockymountainpower.net | AN4: id.lighting@rockymountainpower.net | AO4: id.compair@rockymountainpower.net | AP4: id.farmdairy@rockymountainpower.net | AQ4: id.othertech@rockymountainpower.net | AR4: id.finanswerexpress@rockymountainpower.net | AS4: 6, 6A, 7, 7A, 9, 12, 19, 23, 23A, 24, 35, 35A | AT4: 2223 S Highland Drive #E6-333 | AV4: Salt Lake City | AW4: UT | AX4: 84106 | AY4: Utah, Wyoming and Idaho | AZ4: Pacific Power | BA4: Utah | BB4: Wyoming | BC4: Idaho | BD4: UT | BE4: WY | BF4: ID | BG4: 6, 6A, 6B, 8, 9, 9A, 10, 12, 15, 21, 23, Supplementary service under Schedule 31 | BH4: 25, 28, 33, 40, 46, 48, 54, 58, 210, 212, 213 | BI4: 6, 6A, 7, 7A, 9, 12, 19, 23, 23A, 24, 35, 35A | BJ4: Mark Clary | BL4: 801.233.0882 | BM4: ut.lighting@rockymountainpower.net | BN4: Jim Soukup | BO4: 307.235.0438 | BQ4: wy.lighting@rockymountainpower.net | BR4: William Gatchel | BS4: 541.727.5386 | BU4: id.lighting@rockymountainpower.net | BV4: 50 | CD4: Pre-purchase Agreement | CE4: Post-purchase Application | CF4: Post-purchase Application | CG4: Pre-purchase Agreement | CH4: Pre-purchase Agreement | CI4: Post-purchase Application | CJ4: Post-purchase Application | CK4: Pre-purchase Agreement | CL4: Pre-purchase Agreement | CM4: Post-purchase Application | CN4: Post-purchase Application | CO4: Pre-purchase Agreement | CP4: www.homeenergysavings.net | CQ4: www.rockymountainpower.net/bus/se/epi/utah/ilc/ef.html | CR4: www.rockymountainpower.net/bus/se/epi/wyoming/ilc/ef.html | CS4: www.rockymountainpower.net/bus/se/epi/idaho/ilc/ef.html | CT4: www.rockymountainpower.net/bus/bst.html | CU4: @rockymountainpower.net | CV4: International Energy Conservation Code 2018 | CW4: 2011-01-01 | CX4: IECC 2018 | CY4: 140 | CZ4: 1-801-266-4788 | DA4: 1-503-482-7447 | DB4: wattsmart Business
A5: None | B5: Upgrade | S5: 2020 | T5: =S5+1 -> 2021 | U5: California | V5: CA | W5: Pacific Power | X5: pacificpower.net/wattsmart | Y5: pacificpower.net/alliance | Z5: 1-800-222-4335 | AA5: 1-866-415-9800 | AB5: energy.expert@pacificpower.net | AC5: (541) 770-2731 | AD5: V 01/19/12 | AE5: V 01/01/13 | AF5: 2014-07-01 | AG5: 0.1 | AH5: 70 | AI5: ca.hvacr@pacificpower.net | AJ5: ca.motors@pacificpower.net | AK5: ca.foodservice@pacificpower.net | AL5: ca.irrigation@pacificpower.net | AM5: ca.bldgenvelope@pacificpower.net | AN5: ca.lighting@pacificpower.net | AO5: ca.compair@pacificpower.net | AP5: ca.farmdairy@pacificpower.net | AQ5: ca.othertech@pacificpower.net | AR5: ca.finanswerexpress@pacificpower.net | AS5: A-25, A-32, A-33, A-36, AT-47, AT-48, LS-53, LS-58, OL-42, PA-20 | AT5: 6312 SW Capitol Way #1023 | AV5: Portland | AW5: OR | AX5: 97239 | AY5: California and Washington | AZ5: Rocky Mountain Power | BA5: California | BB5: Washington | BD5: CA | BE5: WA | BG5: A-25, A-32, A-33, A-36, AT-47, AT-48, AWH-31, LS-53, LS-58, OL-42, PA-20, PA-40 | BH5: 24, 33, 36, 40, 47T, 48T, 54 | BJ5: Bob Greeley | BL5: 541.601.8088 | BM5: ca.lighting@pacificpower.net | BN5: Lori Sanders | BO5: 509.727.0394 | BP5: - Yakima | BQ5: wa.lighting@pacificpower.net | BR5: William Gatchel | BS5: 541.377.7943 | BT5: - Walla Walla | BU5: wa.lighting@pacificpower.net | BV5: 60 | BW5: Lighting retrofits in Washington must have a signed incentive agreement prior to purchase of equipment. Lighting retrofits in California may be done post-purchase, but pre-approval is recommended. | BY5: Note that pre-purchase incentive agreements are only required in Washington for retrofit projects. Incentive Agreements and Letters of Intent are NOT required for any projects in California or for any New Construction/Major Renovation projects | BZ5: Note: Letter of Intent is only required for retrofit projects in California. | CA5: For Washington retrofit projects, instruct customer not to purchase equipment until an incentive agreement is executed. | CB5: For retrofit projects (except in California), the incentive agreement must be signed BEFORE the customer signs purchase orders or installation contracts for the project. | CC5: For information on Rocky Mountain Power customer incentives in Oregon, contact the Energy Trust of Oregon at www.energytrust.org. | CD5: Post-purchase Application | CE5: Post-purchase Application | CF5: Post-purchase Application | CG5: Pre-purchase Agreement | CH5: Pre-purchase Agreement | CI5: Post-purchase Application | CJ5: Post-purchase Application | CK5: Pre-purchase Agreement | CP5: www.homeenergysavings.net | CQ5: www.pacificpower.net/bus/se/epi/california/ilc/ef.html | CR5: www.pacificpower.net/bus/se/epi/washington/ilc/ef.html | CT5: www.pacificpower.net/bus/bst/index.html | CU5: @pacificpower.net | CV5: 2019 Building Efficiency Standards | CW5: 2010-01-01 | CX5: Title 24 2013 | CY5: 140 | CZ5: 1-503-482-7447 | DA5: 1-503-482-7447 | DB5: wattsmart Business
S6: 2020 | T6: =S6+1 -> 2021 | U6: Washington | V6: WA | W6: Pacific Power | X6: bewattsmart.com | Y6: pacificpower.net/alliance | Z6: 1-800-222-4335 | AA6: 1-866-415-9800 | AB6: energy.expert@pacificpower.net | AC6: (541) 376-8446 | AD6: V 01/01/14 | AE6: V 01/01/14 | AF6: 2014-01-01 | AG6: 0.1 | AH6: 70 | AI6: wa.hvacr@pacificpower.net | AJ6: wa.motors@pacificpower.net | AK6: wa.foodservice@pacificpower.net | AM6: wa.bldgenvelope@pacificpower.net | AN6: wa.lighting@pacificpower.net | AO6: wa.compair@pacificpower.net | AP6: wa.farmdairy@pacificpower.net | AQ6: wa.othertech@pacificpower.net | AR6: wa.finanswerexpress@pacificpower.net | AS6: 24, 33, 36, 40, 47T, 48T, 53, 54 | AT6: 6312 SW Capitol Way #1023 | AV6: Portland | AW6: OR | AX6: 97239 | AY6: California and Washington | AZ6: Rocky Mountain Power | BA6: California | BB6: Washington | BD6: CA | BE6: WA | BG6: A-25, A-32, A-33, A-36, AT-47, AT-48, AWH-31, LS-53, LS-58, OL-42, PA-20, PA-40 | BH6: 24, 33, 36, 40, 47T, 48T, 54 | BJ6: Bob Greeley | BL6: 541.601.8088 | BM6: ca.lighting@pacificpower.net | BN6: Lori Sanders | BO6: 509.727.0394 | BP6: - Yakima | BQ6: wa.lighting@pacificpower.net | BR6: William Gatchel | BS6: 541.377.7943 | BT6: - Walla Walla | BU6: wa.lighting@pacificpower.net | BV6: 60 | CD6: Post-purchase Application | CE6: Post-purchase Application | CF6: Post-purchase Application | CG6: Pre-purchase Agreement | CH6: Pre-purchase Agreement | CI6: Post-purchase Application | CJ6: Post-purchase Application | CK6: Pre-purchase Agreement | CP6: www.homeenergysavings.net | CQ6: www.pacificpower.net/bus/se/epi/california/ilc/ef.html | CR6: www.pacificpower.net/bus/se/epi/washington/ilc/ef.html | CT6: www.pacificpower.net/bus/bst/index.html | CU6: @pacificpower.net | CV6: Washington State Energy Code 2015 | CW6: 2013-07-01 | CX6: WSEC 2015 | CY6: 140 | CZ6: 1-503-482-7447 | DA6: 1-503-482-7447 | DB6: wattsmart Business
S12: Business Type List | T12: ID EFLCH | U12: ID EFLHH | V12: UT EFLCH | W12: UT EFLHH | X12: WY EFLCH | Y12: WY EFLHH | AA12: Install States | AC12: Rate Schedules | AD12: Rate Schedules(truncated) | AF12: Incentive Recipient List | AI12: Business Type | AJ12: ID Cooling | AK12: ID Heat Pump | AL12: UT Cooling | AM12: UT Heat Pump | AN12: WY Cooling | AO12: WY Heat Pump
S13: Assembly | T13: 476 | U13: 1477 | V13: 935 | W13: 1386 | X13: 519 | Y13: 1469 | AA13: UT | AC13: =HVAC!BB11 -> WY 212 | AD13: =RIGHT(AC13,LEN(AC13)-3) -> 212 | AI13: Assembly | AJ13: 0.00051147 | AK13: 0.00015306 | AL13: 0.00049646 | AM13: 0.00026735 | AN13: 0.00056427 | AO13: 0.0001214
S14: Education - Primary School | T14: 214 | U14: 990 | V14: 481 | W14: 911 | X14: 233 | Y14: 977 | AA14: ID | AC14: =HVAC!BB12 -> WY 210 | AD14: =RIGHT(AC14,LEN(AC14)-3) -> 210 | AF14: Project Address | AI14: Education - Primary School | AJ14: 0.00037288 | AK14: 4.899e-05 | AL14: 0.00077648 | AM14: 0.00026735 | AN14: 0.00055971 | AO14: 0.00015195
S15: Education - Secondary School | T15: 275 | U15: 1146 | V15: 502 | W15: 1061 | X15: 292 | Y15: 1132 | AA15: UT | AC15: =HVAC!BB13 -> WY 58 | AD15: 58 | AF15: Participant Business Address | AI15: Education - Secondary School | AJ15: 0.00037288 | AK15: 4.899e-05 | AL15: 0.00077648 | AM15: 0.00026735 | AN15: 0.00055971 | AO15: 0.00015195
S16: Education - Community College | T16: 420 | U16: 910 | V16: 674 | W16: 828 | X16: 445 | Y16: 900 | AA16: WA | AC16: =HVAC!BB14 -> WY 54 | AD16: 54 | AF16: Other 3rd Party (enter below) | AI16: Education - Community College | AJ16: 0.00037288 | AK16: 4.899e-05 | AL16: 0.00077648 | AM16: 0.00026735 | AN16: 0.00055971 | AO16: 0.00015195
S17: Education - University | T17: 523 | U17: 835 | V17: 782 | W17: 765 | X17: 553 | Y17: 827 | AA17: WY | AC17: =HVAC!BB15 -> WY 48T | AD17: 48T | AI17: Education - University | AJ17: 0.00037288 | AK17: 4.899e-05 | AL17: 0.00077648 | AM17: 0.00026735 | AN17: 0.00055971 | AO17: 0.00015195
S18: Grocery | T18: 465 | U18: 1361 | V18: 555 | W18: 1307 | X18: 480 | Y18: 1380 | AC18: =HVAC!BB16 -> WY 46 | AD18: 46 | AI18: Grocery | AJ18: 0.00033166 | AK18: 0.00015705 | AL18: 0.00036692 | AM18: 0.00026136 | AN18: 0.00033361 | AO18: 0.00015431
S19: Health/Medical - Hospital | T19: 1031 | U19: 765 | V19: 1715 | W19: 713 | X19: 1095 | Y19: 764 | AC19: =HVAC!BB17 -> WY 40 | AD19: 40 | AI19: Health/Medical - Hospital | AJ19: 0.00047345 | AK19: 9.358e-05 | AL19: 0.00047357 | AM19: 0.00021474 | AN19: 0.00055478 | AO19: 7.425e-05
S20: Health/Medical - Nursing Home | T20: 587 | U20: 1524 | V20: 1181 | W20: 1383 | X20: 640 | Y20: 1530 | AC20: =HVAC!BB18 -> WY 33 | AD20: 33 | AI20: Health/Medical - Nursing Home | AJ20: 0.00035532 | AK20: 8.704e-05 | AL20: 0.0003352 | AM20: 0.00017837 | AN20: 0.00035736 | AO20: 8.806e-05
S21: Lodging - Hotel | T21: 867 | U21: 1761 | V21: 1435 | W21: 1632 | X21: 921 | Y21: 1739 | AC21: =HVAC!BB19 -> WY 28 | AD21: 28 | AI21: Lodging - Hotel | AJ21: 0.00035532 | AK21: 8.704e-05 | AL21: 0.0003352 | AM21: 0.00017837 | AN21: 0.00035736 | AO21: 8.806e-05
S22: Lodging - Motel | T22: 731 | U22: 1334 | V22: 1283 | W22: 1225 | X22: 797 | Y22: 1333 | AC22: =HVAC!BB20 -> WY 25 | AD22: 25 | AI22: Lodging - Motel | AJ22: 0.00035532 | AK22: 8.704e-05 | AL22: 0.0003352 | AM22: 0.00017837 | AN22: 0.00035736 | AO22: 8.806e-05
S23: Office - Large | T23: 636 | U23: 696 | V23: 1076 | W23: 659 | X23: 674 | Y23: 685 | AC23: =HVAC!BB21 -> 0 | AI23: Manufacturing - Light Industrial | AJ23: 0.0011229 | AK23: 0.00017913 | AL23: 0.00104132 | AM23: 0.0004511 | AN23: 0.00137402 | AO23: 0.00015714
S24: Office - Small | T24: 536 | U24: 1287 | V24: 1133 | W24: 1195 | X24: 584 | Y24: 1266 | AC24: =HVAC!BB22 -> 0 | AI24: Office - Large | AJ24: 0.00047104 | AK24: 0.00011297 | AL24: 0.00042389 | AM24: 0.00026735 | AN24: 0.00054417 | AO24: 9.057e-05
S25: Restaurant - Sit-Down | T25: 483 | U25: 1175 | V25: 960 | W25: 1097 | X25: 526 | Y25: 1165 | AC25: =HVAC!BB23 -> 0 | AI25: Office - Small | AJ25: 0.00047104 | AK25: 0.00011297 | AL25: 0.00042389 | AM25: 0.00026735 | AN25: 0.00054417 | AO25: 9.057e-05
S26: Restaurant - Fast-Food | T26: 484 | U26: 1241 | V26: 965 | W26: 1165 | X26: 528 | Y26: 1232 | AC26: =HVAC!BB24 -> 0 | AI26: Restaurant - Sit-Down | AJ26: 0.00036258 | AK26: 0.00019804 | AL26: 0.00036298 | AM26: 0.00027783 | AN26: 0.0003452 | AO26: 0.00015629
S27: Retail - 3-Story Large | T27: 465 | U27: 1252 | V27: 846 | W27: 1094 | X27: 507 | Y27: 1260 | AC27: =HVAC!BB25 -> 0 | AI27: Restaurant - Fast-Food | AJ27: 0.00036258 | AK27: 0.00019804 | AL27: 0.00036298 | AM27: 0.00027783 | AN27: 0.0003452 | AO27: 0.00015629
S28: Retail - Single-Story Large | T28: 520 | U28: 1123 | V28: 867 | W28: 1032 | X28: 550 | Y28: 1122 | AC28: =HVAC!BB26 -> UT 23 | AD28: 23 | AI28: Retail - 3-Story Large | AJ28: 0.00055377 | AK28: 0.00019804 | AL28: 0.0005736 | AM28: 0.00033241 | AN28: 0.00058514 | AO28: 0.00015629
S29: Retail - Small | T29: 424 | U29: 1120 | V29: 857 | W29: 995 | X29: 462 | Y29: 1123 | AC29: =HVAC!BB27 -> UT 10 | AD29: 10 | AI29: Retail - Single-Story Large | AJ29: 0.00055377 | AK29: 0.00019804 | AL29: 0.0005736 | AM29: 0.00033241 | AN29: 0.00058514 | AO29: 0.00015629
S30: Storage - Conditioned | T30: 153 | U30: 1160 | V30: 325 | W30: 1016 | X30: 167 | Y30: 1158 | AC30: =HVAC!BB28 -> UT 9 | AD30: 9 | AI30: Retail - Small | AJ30: 0.00055377 | AK30: 0.00019804 | AL30: 0.0005736 | AM30: 0.00033241 | AN30: 0.00058514 | AO30: 0.00015629
AC31: =HVAC!BB29 -> UT 9A | AD31: 9A | AI31: Storage - Conditioned | AJ31: 0.0011229 | AK31: 0.00017913 | AL31: 0.00104132 | AM31: 0.0004511 | AN31: 0.00137402 | AO31: 0.00015714
S32: Manufacturing - Light Industrial | T32: 430 | U32: 1136 | V32: 899 | W32: 907 | X32: 469 | Y32: 1151 | AC32: =HVAC!BB30 -> UT 8 | AD32: 8
AC33: =HVAC!BB31 -> UT 6 | AD33: 6
AC34: =HVAC!BB32 -> 0
AC35: =HVAC!BB33 -> 0
AC36: =HVAC!BB34 -> 0
AC37: =HVAC!BB35 -> ID 35 | AD37: 35
AC38: =HVAC!BB36 -> ID 23 | AD38: 23
AC39: =HVAC!BB37 -> ID 10 | AD39: 10
AC40: =HVAC!BB38 -> ID 9 | AD40: 9
AC41: =HVAC!BB39 -> ID 6 | AD41: 6
AC42: =HVAC!BB40 -> ID 6A | AD42: 6A
AC43: =HVAC!BB41 -> 0
AC44: =HVAC!BB42 -> 0
AC45: =HVAC!BB43 -> 0
AC46: =HVAC!BB44 -> 0
AC47: =HVAC!BB45 -> 0
AC48: =HVAC!BB46 -> 0
AC49: =HVAC!BB47 -> 0
AC50: =HVAC!BB48 -> 0

Sheet CFR 10.430.32 (hidden)

Sheet IECC 2009 (hidden)

Sheet IECC 2012 (hidden)

Sheet CFR Title 10.431.97 (hidden)

Sheet Change Log (hidden)
A1: Date | B1: Change Description | C1: Name | D1: Previous Revision # | E1: New Revision # | F1: Current Revision (click to check)
A2: TBD | B2: Updating for UT program change effective 11/15/2023 - branched tool from HVAC Calculator Tool 111523.1 - updated effective date table - updated rates for software in rate table new tab for equipment table with heat pump equipment only | C2: Drew Petersen | D2: 70123.1 | E2: 111523.1
A3: 2025-04-01 | B3: -Removed mention of FinExpress -Updated Rates to 2/6/2025 Rates -Ensured Efficiency requirements align with source docs | C3: Emily Donohue | D3: 111523.1 | E3: 4012025.1 | F3: a
